Workbook

Sheet uzasadnienie dochody
A1: Zmiany w środkach przeznaczonych do dyspozycji Dzielnicy na realizację inwestycji i zadań własnych, w tym:
C3: zmniejszenia | D3: zwiększenia
A4: 1. Dochody bieżące | C4: =SUM(C6:C8) -> 2039335 | D4: =SUM(D6:D8) -> 8388901
A5: w tym:
A6: • Wpływy z opłat pobieranych na podstawie odrębnych ustaw | C6: =C36 -> 0 | D6: =D36 -> 0
A7: • Dochody z mienia | C7: =C51 -> 862000 | D7: =D51 -> 862000
A8: • Pozostałe dochody | C8: =C77 -> 1177335 | D8: =D77 -> 7526901
A9: 2. Dochody majątkowe z terenu Dzielnicy | C9: =C91 -> 0 | D9: =D91 -> 17615961
A10: 3. Dodatkowe środki finansowe przekazane do dyspozycji Dzielnicy | C10: =C118 -> 16469788 | D10: =D118 -> 217982
A11: Razem DOCHODY Dzielnicy Śródmieście | C11: =C4+C9+C10 -> 18509123 | D11: =D4+D9+D10 -> 26222844
A13: DOCHODY BIEŻĄCE | C13: =C15+C51+C77+C36 -> 2039335 | D13: =D15+D51+D77+D36 -> 8388901
A15: Podatki i opłaty lokalne ogółem | C15: =C18 -> 0 | D15: =D18 -> 0
A17: w tym:
A18: • podatek od nieruchomości | C18: =SUM(C23:C25) -> 0 | D18: 0
A19: • podatek od środków transportowych | D19: 0
A20: • opłata targowa | D20: 0
A23: • od osób prawnych
A25: • od osób fizycznych
A29: Podstawy prawne:
A30: - Ustawa z dnia 12.01.1991 r. o podatkach i opłatach lokalnych (tj.. Dz.U. z 2006 r. Nr 121, poz.844 z późn. zm.).
A31: - corocznie uchwalana Uchwała Rady m.st. Warszawy w przedmiotowej sprawie
A33: Klasyfikacja: rozdział: 75615, 75616
A36: Wpływy z opłat pobieranych na podstawie odrębnych ustaw | C36: =C40 -> 0 | D36: =D40 -> 0
A38: w tym:
A40: opłaty za zajęcie pasa drogowego | D40: 0
A44: Podstawy prawne:
A45: - Ustawa z dnia 21 marca 1985 r. o drogach publicznych
A46: - Rozporządzenie Rady Ministrów z dnia czerwca 2004 r. w sprawie określenia warunków udzielania zezwoleń za zajęcie pasa drogowego
A47: - Uchwała nr XLVII/1191/2005 Rady m.st. Warszawy z dnia 17 marca 2005 r w sprawie wysokości stawek opłat za zajęcie pasa drogowego dróg publicznych na obszarze m.st Warszawy z wyjątkiem autostrad i dróg ekspresowych.
A49: Klasyfikacja: rozdział: 75618
A51: Dochody z mienia (100%) | C51: =C56+C59 -> 862000 | D51: =D56+D59 -> 862000
A53: w tym:
A55: opłaty za zarząd, użytkowanie i użytkowanie wieczyste nieruchomości | C55: 0
A56: opłaty za trwały zarząd, użytkowanie i służebności | C56: 0 | D56: 400000
A59: dochody z najmu i dzierżawy mienia | C59: =SUM(C60:C67) -> 862000 | D59: =SUM(D60:D67) -> 462000
A60: wpływy z czynszu za mieszkania komunalne | C60: =681200 -> 681200 | D60: 0
A62: wpływy z najmu lokali użytkowych | C62: 0 | D62: =130000 -> 130000
A64: wpływy z najmu garaży | C64: =100000 -> 100000 | D64: 0
A65: wpływy z dzierżawy gruntów | C65: 0 | D65: 332000
A66: wpływy z najmu powierzchni pod reklamy | C66: =80800 -> 80800 | D66: 0
A67: pozostałe dochody z najmu i dzierżawy | C67: 0
A69: Zmiany dochodów z mienia zostały oszacowane na podstawie wykonanych dochodów i przewidywanych wpływów.
A71: Podstawa prawna:
A72: Ustawa z dnia 21 sierpnia 1997 r. o gospodarce nieruchomościami (t.j.Dz.U. z 2004 r. Nr 261, poz. 2603 ze zm.)
A77: Pozostałe dochody ogółem | C77: =SUM(C78:C89) -> 1177335 | D77: =SUM(D78:D89) -> 7526901
A79: w tym:
A80: mandaty i kary pieniężne | C80: 0 | D80: 149000
A81: wpływy z różnych opłat (z tytułu kosztów upomnień, czynności egzekucyjnych) | C81: 10000 | D81: 59000
A82: odsetki od nieterminowych płatności podatków | C82: 0 | D82: 0
A83: pozostałe odsetki (z tytułu użytkowania wieczystego gruntu, utrzymania zasobu komunalnego) | C83: 0 | D83: 1490000
A84: wpływy z usług (zwrot odpłatności za media) | C84: 0 | D84: 5200000
A85: wpływy z różnych dochodów (bezumownego korzystania z gruntu, zwrotu kosztów sądowych) | C85: 955000 | D85: 121000
A86: wpływy do budżetu nadwyżki środków obrotowych zakładów budżetowych | C86: 0 | D86: 41609
A87: wpływy z tytułu zwrotu podatku VAT | C87: 0 | D87: 120000
A88: zwroty dotacji | C88: 212335 | D88: 346292
A89: Zmiany pozostałych dochodów zostały oszacowane na podstawie wykonanych dochodów i przewidywanych wpływów. Środki zostaną przeznaczone na wydatki bieżące.
A91: DOCHODY MAJĄTKOWE | C91: =C108 -> 0 | D91: =D99+D108 -> 17615961
A93: w tym:
A94: • Wpływy z przekształcenia prawa użytkowania wieczystego w prawo własności | C94: 0 | D94: =D99 -> 4750000
A95: • Wpływy ze sprzedaży lokali i nieruchomości | C95: 0 | D95: =D108 -> 12865961
A99: Wpływy z przekształcenia prawa użytkowania wieczystego w prawo własności (100%) | C99: =C101+C103 -> 0 | D99: =D101+D103 -> 4750000
A101: wpływy z rocznej opłaty przekształceniowej | C101: 0 | D101: 3000000
A103: wpływy z opłaty jednorazowej za przekształcenie użytkowania wieczystego w prawo własności | C103: 0 | D103: 1750000
A108: Wpływy ze sprzedaży lokali i nieruchomości (100%) | C108: =SUM(C110:C117) -> 0 | D108: =SUM(D110:D117) -> 12865961
A110: w tym:
A111: wpływy ze sprzedaży lokali użytkowych (raty za lokale użytkowe sprzedane w latach poprzednich - 514.514 zł i sprzedaż lokalu użytkowego w 2024 r. przy ul. Przemysłowej 36 - 386.000 zł). | C111: 0 | D111: 900514
A112: wpływy ze sprzedaży lokali mieszkalnych (Noakowskiego 10/26 - 2.120.788 zł, Noakowskiego 12/11 - 5.189.481 zł, Al. Jerozolimskie 49/33 - 1.974.803 zł, Smolna 16/4 - 2.500.000 zł - 100% kwot uzyskanych w przetargach). | C112: 0 | D112: 11785072
A113: wpływy ze sprzedaży nieruchomości gruntowej przy ul. Tamka 49 | C113: 0 | D113: 180375
A114: Wnioskuje się o przyznanie do dyspozycji Dzielnicy 100% dochodów majątkowych. Zostaną one przeznaczone na zwrot 6.000.000 zł otrzymanych z Biura Edukacji na remonty placówek oświatowych w 2024 r., remonty dróg w 2025 r. - 2.965.527 zł i koszty utrzymania lokali położonych we wspólnotach mieszkaniowych - 8.650.434 zł.
A118: DODATKOWE ŚRODKI FINANSOWE | C118: =C120 -> 16469788 | D118: =D120 -> 217982
A120: DODATKOWE ŚRODKI FINANSOWE PRZEKAZANE DO DYSPOZYCJI DZIELNICY | C120: =C124 -> 16469788 | D120: =D122+D124+D123+D125 -> 217982
A122: Zwiększenie środków dla Dzielnicowego Biura Finansów Oświaty z tytułu świadczeń odszkodowawczych w ramach Warszawskiego Programu Ubezpieczeniowego. | C122: 0 | D122: =11523+72926 -> 84449
A123: Zwiększenie środków z Biura Sportu i Rekreacji dla Ośrodka Sportu i Rekreacji Dzielnicy Śródmieście z przeznaczeniem na organizację ogólnomiejskiej akcji "Rusz się Warszawo po Świętach". | C123: 0 | D123: 46955
A124: Przeniesienia środków w ramach środków inwestycyjnych. | C124: 16469788 | D124: 82578
A125: Zwiększenie środków z Centrum Komunikacji Społecznej dla Zespołu Szkół Gastronomicznych im. Prof. Eugeniusza Pijanowskiego z przeznaczeniem na dofinansowanie organizacji kursu: Młodzi w Kryzysie, kursu ABC pracownika młodzieżowego, spotkań z opiekunami Młodzieżowych Rad Dzielnic oraz spotkań z osobami zainteresowanymi budżetem obywatelskim. | C125: 0 | D125: 4000
A127: OGÓŁEM DOCHODY | C127: =C120+C13+C91 -> 18509123 | D127: =D120+D13+D91 -> 26222844

Sheet uzasadnienie wydatki
B2: DZIELNICA ŚRÓDMIEŚCIE
B4: Wyszczególnienie | C4: Zmniejszenia | D4: Zwiększenia
E5: =IF(C$6+D$6>0,"tak","nie") -> tak
A6: Wynik całkowity | B6: RAZEM DZIELNICA ŚRÓDMIEŚCIE | C6: =C8+C68+C191+C765+C945+C1045+C1115+C1334+C999+C351 -> 1949873 | D6: =D8+D68+D191+D765+D945+D1045+D1115+D1334+D999+D351 -> 17085277 | E6: tak
E7: tak
A8: I | B8: 2.2.1. TRANSPORT I KOMUNIKACJA | C8: =C10 -> 134000 | D8: =D10 -> 373000 | E8: =IF(C$8+D$8>0,"tak","nie") -> tak
E9: =IF(C$8+D$8>0,"tak","nie") -> tak
A10: I/2 | B10: Drogi i mosty - program 2 | C10: =C12+C34+C52+C60 -> 134000 | D10: =D12+D34+D52+D60 -> 373000 | E10: =IF(C$10+D$10>0,"tak","nie") -> tak
E11: =IF(C$10+D$10>0,"tak","nie") -> tak
A12: B/I/2/1 | B12: Utrzymanie i remonty dróg - zadanie 1 | C12: =SUM(C14,C26) -> 0 | D12: =SUM(D14,D26) -> 243000 | E12: =IF(C$12+D$12>0,"tak","nie") -> tak
E13: =IF(C$12+D$12>0,"tak","nie") -> tak
A14: B/I/2/1/1 | B14: Utrzymanie i remonty dróg gminnych | C14: =C18+C22 -> 0 | D14: =D18+D22 -> 243000 | E14: =IF(C$14+D$14>0,"tak","nie") -> tak
E15: =IF(C$14+D$14>0,"tak","nie") -> tak
B16: Dysponent: Zarząd Terenów Publicznych | E16: tak
E17: tak
B18: Klasyfikacja: rozdział: 60016 | C18: 0 | D18: 243000 | E18: tak
E19: tak
B20: Zwiększenie środków z przeznaczeniem na wykonanie remontów cząstkowych dróg. | E20: tak
E21: tak
B22: Klasyfikacja: rozdział: 60095 | E22: tak
E23: tak
B24: opis | E24: tak
E25: tak
A26: B/I/2/1/3 | B26: Utrzymanie i remonty dróg wewnętrznych | E26: =IF(C$26+D$26>0,"tak","nie") -> nie
E27: =IF(C$26+D$26>0,"tak","nie") -> nie
B28: Dysponent: Zarząd Terenów Publicznych | E28: nie
E29: nie
B30: Klasyfikacja: rozdział: 60017 | E30: nie
E31: nie
B32: opis | E32: nie
E33: nie
A34: B/I/2/4 | B34: Oświetlenie ulic - zadanie 4 | C34: =SUM(C36,C44) -> 134000 | D34: =SUM(D36,D44) -> 0 | E34: =IF(C$34+D$34>0,"tak","nie") -> tak
E35: =IF(C$34+D$34>0,"tak","nie") -> tak
A36: B/I/2/4/1 | B36: Iluminacje obiektów architektonicznych | C36: 36000 | D36: 0 | E36: =IF(C$36+D$36>0,"tak","nie") -> tak
E37: =IF(C$36+D$36>0,"tak","nie") -> tak
B38: Dysponent: Zarząd Terenów Publicznych | E38: tak
E39: tak
B40: Klasyfikacja: rozdział: 90015 | E40: tak
E41: tak
B42: Przeniesienie środków do zadania B/I/2/1/1. | E42: tak
E43: tak
A44: B/I/2/4/2 | B44: Utrzymanie i remonty oświetlenia ulic, placów i dróg | C44: 98000 | D44: 0 | E44: =IF(C$44+D$44>0,"tak","nie") -> tak
E45: =IF(C$44+D$44>0,"tak","nie") -> tak
B46: Dysponent: Zarząd Terenów Publicznych | E46: tak
E47: tak
B48: Klasyfikacja: rozdział: 90015 | E48: tak
E49: tak
B50: Przeniesienie środków do zadania B/I/2/1/1. | E50: tak
E51: tak
A52: B/I/2/5 | B52: Opracowania i analizy związane z drogami - zadanie 5 | E52: =IF(C$52+D$52>0,"tak","nie") -> nie
E53: =IF(C$52+D$52>0,"tak","nie") -> nie
B54: Dysponent: Zarząd Terenów Publicznych | E54: nie
E55: nie
B56: Klasyfikacja: rozdział: 60095 | E56: nie
E57: nie
B58: opis | E58: nie
E59: nie
A60: B/I/2/7 | B60: Gospodarowanie parkingami i węzłami komunikacyjnymi - zadanie 7 | C60: 0 | D60: 130000 | E60: =IF(C$60+D$60>0,"tak","nie") -> tak
E61: =IF(C$60+D$60>0,"tak","nie") -> tak
B62: Dysponent: Zarząd Terenów Publicznych | E62: tak
E63: tak
B64: Klasyfikacja: rozdział: 60019 | E64: tak
E65: tak
B66: Zwiększenie środków z przeznaczeniem na obsługę parkingów. | E66: tak
E67: tak
A68: II | B68: 2.2.2. ŁAD PRZESTRZENNY I GOSPODARKA NIERUCHOMOŚCIAMI | C68: =C70+C124+C148 -> 12000 | D68: =D70+D124+D148 -> 15000000 | E68: =IF(C$68+D$68>0,"tak","nie") -> tak
E69: =IF(C$68+D$68>0,"tak","nie") -> tak
A70: II/3 | B70: Mieszkaniowy zasób komunalny oraz pozostałe zadania związane z zapewnieniem lokali mieszkalnych - program 3 | C70: =C72+C86+C94+C102+C116 -> 12000 | D70: =D72+D86+D94+D102+D116 -> 15000000 | E70: =IF(C$70+D$70>0,"tak","nie") -> tak
E71: =IF(C$70+D$70>0,"tak","nie") -> tak
A72: B/II/3/1 | B72: Koszty eksploatacji mieszkaniowego zasobu komunalnego - zadanie 1 | C72: =SUM(C74,C80) -> 0 | D72: =SUM(D74,D80) -> 0 | E72: =IF(C$72+D$72>0,"tak","nie") -> nie
E73: =IF(C$72+D$72>0,"tak","nie") -> nie
B74: Dysponent: Zarząd Terenów Publicznych | C74: 0 | E74: nie
E75: nie
B76: Klasyfikacja: rozdział: 70007 | E76: nie
E77: nie
B78: Zwiększenie środków na utrzymanie czystości w otoczeniu budynków. | E78: nie
E79: nie
B80: Dysponent 2: Zarząd Terenów Publicznych | E80: nie
E81: nie
B82: Klasyfikacja: rozdział: 70007 | E82: nie
E83: nie
E84: nie
A86: B/II/3/2 | B86: Remonty mieszkaniowego zasobu komunalnego - zadanie 2 | E86: =IF(C$86+D$86>0,"tak","nie") -> nie
E87: =IF(C$86+D$86>0,"tak","nie") -> nie
B88: Dysponent: Zakład Gospodarowania Nieruchomościami | E88: nie
E89: nie
B90: Klasyfikacja: rozdział: 70007 | E90: nie
E91: nie
E92: nie
E93: nie
A94: B/II/3/3 | B94: Utrzymanie jednostek gospodarujących zasobem komunalnym - zadanie 3 | E94: =IF(C$94+D$94>0,"tak","nie") -> nie
E95: =IF(C$94+D$94>0,"tak","nie") -> nie
B96: Dysponent: Zakład Gospodarowania Nieruchomościami | E96: nie
E97: nie
B98: Klasyfikacja: rozdział: 70004 | E98: nie
E99: nie
E100: nie
E101: nie
A102: B/II/3/4 | B102: Rozliczenia ze wspólnotami mieszkaniowymi - zadanie 4 | C102: 0 | D102: =D106+D108 -> 15000000 | E102: =IF(C$102+D$102>0,"tak","nie") -> tak
E103: =IF(C$102+D$102>0,"tak","nie") -> tak
B104: Dysponent: Zakład Gospodarowania Nieruchomościami | E104: tak
E105: tak
B106: Klasyfikacja: rozdział: 70005 | C106: 0 | D106: 6500000 | E106: tak
E107: tak
B108: Klasyfikacja: rozdział: 70007 | C108: 0 | D108: 8500000 | E108: tak
E109: tak
B110: Dysponent 2: Wydział Wspólnot Mieszkaniowych | E110: tak
E111: tak
B112: Klasyfikacja: rozdział: 70007 | E112: tak
E113: tak
B114: Zwiększenie środków na energię cieplną i wodę, opłaty za odprowadzanie ścieków, opłaty za gospodarowanie odpadami komunalnymi oraz zaliczki dla lokali położonych we wspólnotach mieszkaniowych. Środki pochodzą z ponadplanowych dochodów osiągniętych przez Dzielnicę Śródmieście. | E114: tak
E115: tak
A116: B/II/3/6 | B116: Rozliczenia za lokale z właścicielami innymi niż m.st. Warszawa - zadanie 6 | C116: 12000 | D116: 0 | E116: =IF(C$116+D$116>0,"tak","nie") -> tak
E117: =IF(C$116+D$116>0,"tak","nie") -> tak
B118: Dysponent: Wydział Zasobów Lokalowych | E118: tak
E119: tak
B120: Klasyfikacja: rozdział: 70005 | E120: tak
E121: tak
B122: Przeniesienie środków do zadania B/VI/4/3. | E122: tak
E123: tak
A124: II/4 | B124: Zadania związane z nabywaniem i sprzedażą nieruchomości - program 4 | C124: =C126+C134 -> 0 | D124: =D126+D134 -> 0 | E124: =IF(C$124+D$124>0,"tak","nie") -> nie
E125: =IF(C$124+D$124>0,"tak","nie") -> nie
A126: B/II/4/1 | B126: Przygotowanie nieruchomości komunalnych przeznaczonych m.in. do zbycia i zamiany - zadanie 1 | C126: 0 | D126: 0 | E126: =IF(C$126+D$126>0,"tak","nie") -> nie
E127: =IF(C$126+D$126>0,"tak","nie") -> nie
B128: Dysponent: Wydział Zarządzania Nieruchomościami | E128: nie
E129: nie
B130: Klasyfikacja: rozdział: 70005 | E130: nie
E131: nie
B132: opis | E132: nie
E133: nie
A134: B/II/4/2 | B134: Regulacja stanów prawnych nieruchomości, w tym odszkodowania - zadanie 2 | C134: =C136+C142 -> 0 | D134: =D136+D142 -> 0 | E134: =IF(C$134+D$134>0,"tak","nie") -> nie
E135: =IF(C$134+D$134>0,"tak","nie") -> nie
B136: Dysponent 1: Wydział Zarządzania Nieruchomościami | E136: nie
E137: nie
B138: Klasyfikacja: rozdział: 70005 | E138: nie
E139: nie
B140: opis | E140: nie
E141: nie
B142: Dysponent 2: Wydział Zasobów Lokalowych | E142: nie
E143: nie
B144: Klasyfikacja: rozdział: 70005 | E144: nie
E145: nie
B146: opis | E146: nie
E147: =IF(C$72+D$72>0,"tak","nie") -> nie
A148: II/5 | B148: Pozostały zasób komunalny - program 5 | C148: =C150+C163+C177 -> 0 | D148: =D150+D163+D177 -> 0 | E148: =IF(C$148+D$148>0,"tak","nie") -> nie
E149: =IF(C$148+D$148>0,"tak","nie") -> nie
A150: B/II/5/1 | B150: Zarządzanie lokalami użytkowymi i ich eksploatacja - zadanie 1 | C150: =C152+C157 -> 0 | D150: =D152+D157 -> 0 | E150: =IF(C$150+D$150>0,"tak","nie") -> nie
E151: =IF(C$150+D$150>0,"tak","nie") -> nie
B152: Dysponent 1: Zakład Gospodarowania Nieruchomościami | E152: nie
E153: nie
B154: Klasyfikacja: rozdział: 70005 | E154: nie
E155: nie
E156: nie
B157: Dysponent: Zarząd Terenów Publicznych | E157: nie
E158: nie
B159: Klasyfikacja: rozdział: 70005 | E159: nie
E160: nie
E161: nie
E162: nie
A163: B/II/5/2 | B163: Remonty lokali użytkowych - zadanie 2 | C163: =C165+C171 -> 0 | D163: =D165+D171 -> 0 | E163: =IF(C$163+D$163>0,"tak","nie") -> nie
E164: =IF(C$163+D$163>0,"tak","nie") -> nie
B165: Dysponent 1: Zakład Gospodarowania Nieruchomościami | E165: nie
E166: nie
B167: Klasyfikacja: rozdział: 70005 | E167: nie
E168: nie
E169: nie
E170: nie
B171: Dysponent 2: Zarząd Terenów Publicznych | E171: nie
E172: nie
B173: Klasyfikacja: rozdział: 70005 | E173: nie
E174: nie
E175: nie
E176: nie
A177: B/II/5/6 | B177: Zarządzanie pozostałymi nieruchomościami - zadanie 6 | C177: =C179+C185 -> 0 | D177: =D179+D185 -> 0 | E177: =IF(C$177+D$177>0,"tak","nie") -> nie
E178: =IF(C$177+D$177>0,"tak","nie") -> nie
B179: Dysponent: Wydział Prawny | E179: nie
E180: nie
B181: Klasyfikacja: rozdział: 70005 | E181: nie
E182: nie
B183: opis | E183: nie
E184: nie
B185: Dysponent 2: Wydział Administracyjno-Gospodarczy | E185: nie
E186: nie
B187: Klasyfikacja: rozdział: 70005 | E187: nie
E188: nie
B189: opis | E189: nie
E190: nie
A191: III | B191: 2.2.3. GOSPODARKA KOMUNALNA I OCHRONA ŚRODOWISKA | C191: =SUM(C193,C259,C275,C315) -> 386342 | D191: =SUM(D193,D259,D275,D315) -> 101290 | E191: =IF(C$191+D$191>0,"tak","nie") -> tak
E192: =IF(C$191+D$191>0,"tak","nie") -> tak
A193: III/1 | B193: Utrzymanie porządku i czystości - program 1 | C193: =C195+C213+C221+C231+C239 -> 0 | D193: =D195+D213+D221+D231+D239 -> 10000 | E193: =IF(C$193+D$193>0,"tak","nie") -> tak
E194: =IF(C$193+D$193>0,"tak","nie") -> tak
A195: B/III/1/1 | B195: Oczyszczanie miasta - zadanie 1 | C195: =C197+C205 -> 0 | D195: =D197+D205 -> 10000 | E195: =IF(C$195+D$195>0,"tak","nie") -> tak
E196: =IF(C$195+D$195>0,"tak","nie") -> tak
A197: B/III/1/1/1 | B197: Zimowe oczyszczanie ulic | E197: =IF(C$197+D$197>0,"tak","nie") -> nie
E198: =IF(C$197+D$197>0,"tak","nie") -> nie
B199: Dysponent: Zarząd Terenów Publicznych | E199: nie
E200: nie
B201: Klasyfikacja: rozdział: 60016 | E201: nie
E202: nie
B203: opis | E203: nie
... 1151 more rows

Sheet uzasadnienie inwestycje
B1: Zmiany w opisie wydatków inwestycyjnych w układzie zadań
C2: 2024
C3: Zmniejszenia | D3: Zwiększenia
B5: OGÓŁEM | C5: =C28+C60+C7+C17 -> 16469788 | D5: =D28+D60+D7+D17 -> 82578
B7: ŁAD PRZESTRZENNY I GOSPODARKA NIERUCHOMOŚCIAMI | C7: =SUM(C9) -> 300000 | D7: =SUM(D9) -> 0
B9: Pozostały zasób komunalny - 5 program | C9: =SUM(C10:C15) -> 300000 | D9: 0
B11: Dostosowanie budynku użyteczności publicznej przy ul. Chmielnej 15 do obowiązkowych przepisów p.poż.-zadanie C/ŚRD/II/P5/8 | C11: 300000 | D11: 0
B13: Wnioskuje się o zmniejszenie zaplanowanych środków w roku 2024 na realizację zadania: "Dostosowanie budynku użyteczności publicznej przy ul. Chmielnej 15 do obowiązkowych przepisów p.poż" i przesunięcie na 2025 r. Postępowanie przetargowe zostało unieważnione z powodu wzrostu cen ofert i braku wystarczających środków finansowych zaplanowanych na realizację zadania inwestycyjnego. Najniższa oferta opiewa na kwotę około 1 450 000 zł. Unieważnienie postępowania przetargowego uniemożliwia realizację zadania w roku 2024.
B14: Dysponent: Zakład Gospodarowania Nieruchomościami
B15: Klasyfikacja: rozdział 70005
B17: GOSPODARKA KOMUNALNA I OCHRONA ŚRODOWISKA | C17: =C19 -> 0 | D17: =D19 -> 10000
B19: Pozostałe zadania z zakresu gospodarki komunalnej - 4 program | C19: =SUM(C21:C27) -> 0 | D19: =SUM(D21:D27) -> 10000
B21: Wykonanie Skweru na działce 46/2 w obrębie 5-05-01 w ramach NCW w miejscu dotychczasowego parkingu - zadanie nr C/ŚRD/III/P4/ | C21: 0 | D21: 10000
B23: Wnioskuje się o wprowadzenie w 2024 r. nowego, dwuletniego zadania inwestycyjnego pod nazwą ''Wykonanie Skweru na działce 46/2 w obrębie 5-05-01 w ramach NCW w miejscu dotychczasowego parkingu" w wysokości 10 000 zł. Wykonanie skweru spowoduje poprawę bilansu powierzchni biologicznie czynnej w centrum miasta, poprawi estetykę w sąsiedztwie remontowanego budynku dawnej Cepelii, stworzy fragment przestrzeni wypoczynkowej zamiast wybetonowanego parkingu. W roku 2024 zaplanowane jest wykonanie i częściowe fakturowanie dokumentacji projektowej. Źródłem finansowania są środki będące w dyspozycji Biura Funduszy Europejskich w ramach NCW.
B25: Dysponent: Zarząd Terenów Publicznych
B26: Klasyfikacja: rozdział 90095
B28: EDUKACJA | C28: =C30 -> 16097210 | D28: =D30 -> 0
B30: Oświata i edukacyjna opieka wychowawcza - 1 program | C30: =SUM(C32:C53) -> 16097210 | D30: =SUM(D32:D53) -> 0
B32: Zielona i sportowa Górnośląska - zadanie nr C/ŚRD/V/P1/91; (BO/24/09/0164) | C32: 484000 | D32: 0
B34: Wnioskuje się o przeniesienie zaplanowanych środków w kwocie 484 000 zł w roku 2024 przeznaczonych na realizację zadania " Zielona i sportowa Górnośląska" na rok 2025. W dniu 12.04.2024 r. Wykonawca podpisał umowę na wykonanie dokumentacji projektowej dla zadania z terminem wykonania 120 dni - ok.10 sierpnia. Do chwili obecnej nie wywiązał się z wykonania przedmiotu umowy. W związku z powyższym, brak możliwości realizacji zadania w roku bieżącym - została wszczęta procedura odstąpienia od umowy.
B36: Dysponent: Wydział Inwestycji
B37: Klasyfikacja: rozdział 80101
B39: Zadaszenie boiska sportowego przy Szkole Podstawowej nr 48 przy ul. Sempołowskiej 4 - zadanie nr C/ŚRD/V/P1/69 | C39: 2147110 | D39: 0
B41: Wnioskuje się o przeniesienie zaplanowanych środków w kwocie 2 147 110 zł w roku 2024 przeznaczonych na realizację zadania "Zadaszenie boiska sportowego przy Szkole Podstawowej nr 48 przy ul. Sempołowskiej 4" na rok 2025. W związku z szeregiem uwag ze strony przedstawicieli sieci ciepłowniczej, na chwilę obecną Wykonawca nie może uzyskać uzgodnienia, a to uniemożliwia ogłoszenie przetargu o udzielenie zamówienia na wykonanie zadania do końca bieżącego roku. Zachodzi konieczność sporządzenia nowego opracowania.
B43: Dysponent: Wydział Inwestycji
B44: Klasyfikacja: rozdział 80101
B46: Przebudowa sali gimnastycznej (małej) w LXII Liceum Ogólnokształcącym przy ul. Konwiktorskiej 5/7 - zadanie nr C/ŚRD/V/P1/87 | C46: 2611100 | D46: 0
B48: Wnioskuje się o przeniesienie części zaplanowanych środków w kwocie 2 611 100 zł w roku 2024 przeznaczonych na realizację zadania "Przebudowa sali gimnastycznej (małej) w LXII Liceum Ogólnokształcącym przy ul. Konwiktorskiej 5/7" na rok 2025. Przesunięcie spowodowane jest kolejnym, obecnie trzecim wyborem wykonawcy. Zawarcie umowy w okresie trwającego roku szkolnego, a nie jak pierwotnie planowano w okresie wakacyjnym, uniemożliwia prowadzenie niektórych robót, w tym związanych z przebudową c.o. i węzła cieplnego.
B50: Dysponent: Wydział Inwestycji
B51: Klasyfikacja: rozdział 80120
B53: Budowa siedziby Młodzieżowego Domu Kultury i Domu Kultury Śródmieście przy ul. Twardej 8/12 - zadanie nr C/ŚRD/V/P1/52 | C53: 10855000 | D53: 0
B55: Wnioskuje się o przeniesienie części zaplanowanych środków w kwocie 10 855 000 zł w roku 2024 przeznaczonych na realizację zadania "Budowa siedziby Młodzieżowego Domu Kultury i Domu Kultury Śródmieście przy ul. Twardej 8/12" na rok 2027. Przesunięcie spowodowane jest wciąż składanymi w dużej liczbie zapytaniami przez zainteresowanych Wykonawców oraz dużymi opóźnieniami projektantów w udzielaniu wyjaśnień. Do dnia dzisiejszego Zamawiający otrzymał 1.388 pytań (wiele pytań zawiera podpunkty) i udzielił odpowiedzi na 777 z nich.
B57: Dysponent: Wydział Inwestycji
B58: Klasyfikacja: rozdział 85407
B60: KULTURA I OCHRONA DZIEDZICTWA KULTUROWEGO | C60: =C62 -> 72578 | D60: =D62 -> 72578
B62: Działalność kulturalna - 3 program | C62: =SUM(C64:C71) -> 72578 | D62: =SUM(D64:D71) -> 72578
B64: Montaż zestawu podnoszącego ciśnienie wody w instalacji hydrantowej w lokalu Biblioteki Publicznej przy ul. Marszałkowskiej 55/73 - zadanie nr C/ŚRD/VII/P3/24 | C64: 72578 | D64: 0
B66: Wnioskuje się o przeniesienie zaplanowanych środków w kwocie 72 578 zł w roku 2024 przeznaczonych na realizację zadania "Montaż zestawu podnoszącego ciśnienie wody w instalacji hydrantowej w lokalu Biblioteki Publicznej przy ul. Marszałkowskiej 55/73" stanowiących oszczędności po zakończeniu zadania na nowe zadanie pod nazwą "Przebudowa lokalu Biblioteki Publicznej przy ul. Anielewicza 2 - koncepcja architektoniczna aranżacji wnętrza".
B68: Dysponent: Biblioteka Publiczna
B69: Klasyfikacja: rozdział 92116
B71: Przebudowa lokalu Biblioteki Publicznej przy ul. Anielewicza 2 - koncepcja architektoniczna aranżacji wnętrza - zadanie nr C/ŚRD/VII/P3/ | C71: 0 | D71: 72578
B73: Wnioskuje się o wprowadzenie do budżetu w roku 2024 nowego zadania w kwocie 72 578 zł pod nazwą: "Przebudowa lokalu Biblioteki Publicznej przy ul. Anielewicza 2 - koncepcja architektoniczna aranżacji wnętrza". Ww. lokal użytkowany przez Bibliotekę Publiczną w Dzielnicy Śródmieście wymaga przebudowy i dostosowania do obowiązujących przepisów. Źródłem finansowania są oszczędności po zakończeniu zadania pod nazwą "Montaż zestawu podnoszącego ciśnienie wody w instalacji hydrantowej w lokalu Biblioteki Publicznej przy ul. Marszałkowskiej 55/73".
B75: Dysponent: Biblioteka Publiczna
B76: Klasyfikacja: rozdział 92116

Sheet opis zakład budżetowy
A1: Zmiany w planie finansowym zakładu budżetowego - rok 2024
A2: Ośrodek Sportu i Rekreacji Dzielnicy Śródmieście
A6: Dział 926 - Kultura fizyczna i sport
A8: Rozdział 92604 - Instytucje kultury fizycznej
A10: Zmiany planu przychodów i wydatków na 2024 rok Ośrodka Sportu i Rekreacji Dzielnicy Śródmieście polegające na: - zwiększeniu dotacji przedmiotowej o 46.955 zł z przeznaczeniem na realizację akcji „Rusz się Warszawo po Świętach” – edycja 2024. Środki będą pochodzić z Biura Sportu i Rekreacji, - przeniesieniu wydatków inwestycyjnych w kwocie 44.600 zł na wydatki bieżące z przeznaczeniem na środki czystości, materiały do bieżącej konserwacji i naprawy oraz dodatkowe badania wody basenowej i wody bieżącej w obiekcie, - korekcie wynikającej z przewidywanego wykonania przychodów własnych i kosztów w 2024 r. - zmniejszenie o 1.920.000 zł.

Sheet wniosek dochody
L1: Załącznik nr 1 do Uchwały Nr Rady Dzielnicy Śródmieście m.st. Warszawy z dnia
A7: WNIOSEK W SPRAWIE ZMIAN W PLANIE DOCHODÓW
M9: w zł
A10: Stanowisko finansowe | C10: Pozycje finansowe | F10: Obszar funkcjonalny | G10: Program budżetowy | I10: Plan wg stanu na dzień 29.08.2024 | J10: Zaangażowanie | K10: Proponowane zmiany | M10: Plan po zmianach
A11: Nazwa dysponenta ** | B11: Kod | C11: Dział | D11: Rozdział | E11: § | F11: Kod | G11: Nazwa | H11: Kod | K11: zmniejszenia | L11: zwiększenia
A15: Zakład Gospodarowania Nieruchomościami | B15: J.09.000 | C15: 700.70007.D0750+000 | F15: GMMW | G15: wpływy z czynszu za mieszkania komunalne | H15: DWB/5/ND/MI | I15: 61731200 | K15: 681200 | L15: 0 | M15: 61050000
A16: Zakład Gospodarowania Nieruchomościami | B16: J.09.000 | C16: 700.70005.D0750+000 | F16: GMMW | G16: wpływy z najmu garaży | H16: DWB/5/ND/NG | I16: 2296000 | K16: 100000 | L16: 0 | M16: 2196000
A17: Zakład Gospodarowania Nieruchomościami | B17: J.09.000 | C17: 700.70005.D0750+000 | F17: GMMW | G17: wpływy z najmu lokali użytkowych | H17: DWB/5/ND/LU | I17: 151980000 | K17: 0 | L17: 130000 | M17: 152110000
A18: Zakład Gospodarowania Nieruchomościami | B18: J.09.000 | C18: 700.70005.D0750+000 | F18: GMMW | G18: wpływy z najmu powierzchni pod reklamy | H18: DWB/5/ND/PR | I18: 380800 | K18: 80800 | L18: 0 | M18: 300000
A19: Zakład Gospodarowania Nieruchomościami | B19: J.09.000 | C19: 700.70005.D0950+000 | F19: GMMW | G19: Pozostałe mandaty i kary pieniężne | H19: DWB/6/MP/PO | I19: 20000 | K19: 0 | L19: 14000 | M19: 244000
A20: Zakład Gospodarowania Nieruchomościami | B20: J.09.000 | C20: 700.70007.D0950+000 | F20: GMMW | G20: Pozostałe mandaty i kary pieniężne | H20: DWB/6/MP/PO | I20: 102000 | K20: 0 | L20: 80000 | M20: 182000
A21: Zakład Gospodarowania Nieruchomościami | B21: J.09.000 | C21: 700.70005.D0640+000 | F21: GMMW | G21: Pozostałe wpływy z różnych opłat | H21: DWB/6/RO/PO | I21: 20000 | K21: 10000 | L21: 0 | M21: 10000
A22: Zakład Gospodarowania Nieruchomościami | B22: J.09.000 | C22: 700.70007.D0640+000 | F22: GMMW | G22: Pozostałe wpływy z różnych opłat | H22: DWB/6/RO/PO | I22: 49000 | K22: 0 | L22: 9000 | M22: 58000
A23: Zakład Gospodarowania Nieruchomościami | B23: J.09.000 | C23: 700.70005.D0830+000 | F23: GMMW | G23: wpływy z usług - zwrot odpłatności za media | H23: DWB/6/WU/ME | I23: 32600000 | K23: 0 | L23: 2000000 | M23: 34600000
A24: Zakład Gospodarowania Nieruchomościami | B24: J.09.000 | C24: 700.70007.D0830+000 | F24: GMMW | G24: wpływy z usług - zwrot odpłatności za media | H24: DWB/6/WU/ME | I24: 61800000 | K24: 0 | L24: 3200000 | M24: 65000000
A25: Zakład Gospodarowania Nieruchomościami | B25: J.09.000 | C25: 700.70005.D0920+000 | F25: GMMW | G25: Pozostałe odsetki | H25: DWB/6/PO | I25: 1200000 | L25: 250000 | M25: =I25-K25+L25 -> 1450000
A26: Zakład Gospodarowania Nieruchomościami | B26: J.09.000 | C26: 700.70007.D0920+000 | F26: GMMW | G26: Pozostałe odsetki | H26: DWB/6/PO | I26: 1050000 | K26: 0 | L26: 240000 | M26: 1290000
A27: Zakład Gospodarowania Nieruchomościami | B27: J.09.000 | C27: 700.70005.D0940+000 | F27: GMMW | G27: Wpływy z różnych dochodów | H27: DWB/6/RD | I27: 122000 | K27: 0 | L27: 48000 | M27: 170000
A28: Zakład Gospodarowania Nieruchomościami | B28: J.09.000 | C28: 700.70007.D0940+000 | F28: GMMW | G28: Wpływy z różnych dochodów | H28: DWB/6/RD | I28: 65000 | K28: 45000 | L28: 0 | M28: 20000
A29: Zakład Gospodarowania Nieruchomościami | B29: J.09.000 | C29: 700.70005.D0970+000 | F29: GMMW | G29: Wpływy z różnych dochodów | H29: DWB/6/RD | I29: 1200000 | K29: 850000 | L29: 0 | M29: 350000
A30: Zakład Gospodarowania Nieruchomościami | B30: J.09.000 | C30: 700.70005.D0970+000 | F30: GKZP | G30: Wpływy z różnych dochodów | H30: DWB/6/RD | I30: 82000 | K30: 0 | L30: 8000 | M30: 90000
A31: Zakład Gospodarowania Nieruchomościami | B31: J.09.000 | C31: 700.70007.D0970+000 | F31: GMMW | G31: Wpływy z różnych dochodów | H31: DWB/6/RD | I31: 2750000 | K31: 60000 | L31: 0 | M31: 2690000
A32: Zakład Gospodarowania Nieruchomościami | B32: J.09.000 | C32: 700.70007.D0970+000 | F32: GKZP | G32: Wpływy z różnych dochodów | H32: DWB/6/RD | I32: 260000 | K32: 0 | L32: 10000 | M32: 270000
A33: Zakład Gospodarowania Nieruchomościami | B33: J.09.000 | C33: 700.70005.D0940+000 | F33: GMMW | G33: Wpływy z tytułu zwrotu podatku VAT | H33: DWB/6/WA | I33: 3020000 | K33: 0 | L33: 100000 | M33: 3120000
A34: Wydział Zarządzania Nieruchomościami | B34: U.09.000 | C34: 700.70005.D0470+000 | F34: GMMW | G34: Opłaty za trwały zarząd, użytkowanie i służebności | H34: DWB/5/ZS | I34: 1000000 | L34: 400000 | M34: 1400000
A35: Wydział Zarządzania Nieruchomościami | B35: U.09.000 | C35: 700.70005.D0750+000 | F35: GMMW | G35: wpływy z dzierżawy gruntów | H35: DWB/5/ND/DG | I35: 1500000 | L35: 332000 | M35: 1832000
A36: Wydział Zarządzania Nieruchomościami | B36: U.09.000 | C36: 700.70005.D0950+000 | F36: GMMW | G36: Pozostałe mandaty i kary pieniężne | H36: DWB/6/MP/PO | I36: 350000 | L36: 55000 | M36: 405000
A37: Wydział Budżetowo-Księgowy | B37: U.09.000 | C37: 700.70005.D0920+000 | F37: GMMW | G37: Pozostałe odsetki | H37: DWB/6/PO | I37: 3614349 | L37: 1000000 | M37: =I37-K37+L37 -> 4614349
A38: Wydział Budżetowo-Księgowy | B38: U.09.000 | C38: 750.75023.D0640+000 | F38: GMMW | G38: Pozostałe wpływy z różnych opłat | H38: DWB/6/RO/PO | I38: 0 | L38: 50000 | M38: 50000
A39: Wydział Budżetowo-Księgowy | B39: U.09.000 | C39: 750.75023.D0970+000 | F39: GMMW | G39: Wpływy z różnych dochodów | H39: DWB/6/RD | I39: 0 | L39: 55000 | M39: 55000
A40: Wydział Budżetowo-Księgowy | B40: U.09.000 | C40: 750.75023.D0940+000 | F40: GMMW | G40: Wpływy z tytułu zwrotu podatku VAT | H40: DWB/6/WA | I40: 190000 | L40: 20000 | M40: 210000
A41: Wydział Budżetowo-Księgowy | B41: U.09.000 | C41: 926.92604.D2370+000 | F41: GMMW | G41: wpływy do budżetu nadwyżki środków obrotowych zakładów budżetowych | H41: DWB/6/NA/ZB | L41: 41609 | M41: 41609
A42: Wydział Oświaty i Funduszy Europejskich | B42: U.09.000 | C42: 801.80116.D2950+000 | F42: GMMW | G42: Zwroty dotacji | H42: DWB/6/ZD | I42: 700000 | K42: 212335 | L42: 0 | M42: 487665
A43: Wydział Oświaty i Funduszy Europejskich | B43: U.09.000 | C43: 801.80120.D2950+000 | F43: GMMW | G43: Zwroty dotacji | H43: DWB/6/ZD | I43: 0 | L43: 283292 | M43: 283292
A44: Wydział Oświaty i Funduszy Europejskich | B44: U.09.000 | C44: 801.80152.D2950+000 | F44: GMMW | G44: Zwroty dotacji | H44: DWB/6/ZD | L44: 33000 | M44: 33000
A45: Wydział Sportu i Spraw Społecznych | B45: U.09.000 | C45: 851.85154.D2950+000 | F45: GMMW | G45: Zwroty dotacji | H45: DWB/6/ZD | I45: 0 | L45: 30000 | M45: 30000
A46: Wydział Zarządzania Nieruchomościami | B46: U.09.000 | C46: 700.70005.D0770+000 | F46: GMMW | G46: wpływy ze sprzedaży nieruchomości gruntowych | H46: DWM/1/NG | L46: 180375 | M46: 180375
A47: Wydział Zarządzania Nieruchomościami | B47: U.09.000 | C47: 700.70007.D0770+000 | F47: GMMW | G47: wpływy ze sprzedaży lokali mieszkalnych | H47: DWM/1/LM | I47: 13425296 | L47: 11785072 | M47: 25210368
A48: Wydział Zarządzania Nieruchomościami | B48: U.09.000 | C48: 700.70005.D0770+000 | F48: GMMW | G48: wpływy ze sprzedaży lokali użytkowych | H48: DWM/1/LU | I48: 0 | L48: =514514+386000 -> 900514 | M48: =514514+386000 -> 900514
A49: Wydział Zarządzania Nieruchomościami | B49: U.09.000 | C49: 700.70005.D0760+000 | F49: GMMW | G49: Wpływy z rocznej opłaty przekształceniowej | H49: DWM/4/OR | I49: 8100000 | L49: 3000000 | M49: 11100000
A50: Wydział Zarządzania Nieruchomościami | B50: U.09.000 | C50: 700.70005.D0760+000 | F50: GMMW | G50: Wpływy z opłaty jednorazowej za przekształcenie użytkowania wieczystego w prawo własności | H50: DWM/4/OJ | I50: 1000000 | L50: 1750000 | M50: 2750000
A51: Dzielnica Śródmieście Urząd | B51: U.09.000 | C51: 758.75814.D2710+000 | F51: GMMW | G51: Środki wyrównawcze z budżetu m. st. Warszawy | H51: SD/2/K | I51: 376559640 | K51: 16469788 | L51: =213982+4000 -> 217982 | M51: =I51-K51+L51 -> 360307834
A52: RAZEM | I52: =SUM(I15:I51) -> 727167285 | J52: =SUM(J15:J51) -> 0 | K52: 18509123 | L52: 26222844 | M52: 735091006
A54: *) niepotrzebne skreślić
A55: **) Dzielnice podają nazwę Wydziału lub nazwę jednostki budżetowej
B58: Sporządził: | F58: Zatwierdził:

Sheet wniosek wydatki
L1: Załącznik Nr 2
L2: do Uchwały Nr
L3: Rady Dzielnicy Śródmieście m.st. Warszawy
L4: z dnia
A7: WNIOSEK W SPRAWIE ZMIAN W PLANIE WYDATKÓW BIEŻĄCYCH
M9: w zł
A10: Stanowisko finansowe | C10: Pozycje finansowe | F10: Obszar funkcjonalny | G10: Program budżetowy | I10: Plan wg stanu na dzień 29.08.2024 r. | J10: Zaangażowanie | K10: Proponowane zmiany | M10: Plan po zmianach
A11: Nazwa dysponenta ** | B11: Kod | C11: Dział | D11: Rozdział | E11: § | F11: Kod | G11: Nazwa | H11: Kod | K11: zmniejszenia | L11: zwiększenia
A15: Zarząd Terenów Publicznych | B15: J.09.000 | C15: 600.60016.W4270+000 | F15: GMMW | G15: Utrzymanie i remonty dróg gminnych | H15: B/I/2/1/1 | I15: 10900000 | K15: 0 | L15: 243000 | M15: 11143000
A16: Zarząd Terenów Publicznych | B16: J.09.000 | C16: 900.90015.W4260+000 | F16: GMMW | G16: Iluminacje obiektów architektonicznych | H16: B/I/2/4/1 | I16: 461128 | K16: 36000 | L16: 0 | M16: 425128
A17: Zarząd Terenów Publicznych | B17: J.09.000 | C17: 900.90015.W4300+000 | F17: GMMW | G17: Utrzymanie i remonty oświetlenia ulic, placów i dróg | H17: B/I/2/4/2 | I17: 170000 | K17: 98000 | L17: 0 | M17: 72000
A18: Zarząd Terenów Publicznych | B18: J.09.000 | C18: 600.60019.W4300+000 | F18: GMMW | G18: Gospodarowanie parkingami i węzłami komunikacyjnymi | H18: B/I/2/7 | I18: 2515479 | K18: 0 | L18: 130000 | M18: 2645479
A19: Zakład Gospodarowania Nieruchomościami | B19: J.09.000 | C19: 700.70005.W4260+000 | F19: GMMW | G19: Rozliczenia ze wspólnotami mieszkaniowymi | H19: B/II/3/4 | I19: 21422485 | K19: 0 | L19: 3300000 | M19: 24722485
A20: Zakład Gospodarowania Nieruchomościami | B20: J.09.000 | C20: 700.70005.W4300+000 | F20: GMMW | G20: Rozliczenia ze wspólnotami mieszkaniowymi | H20: B/II/3/4 | I20: 1721800 | K20: 0 | L20: 400000 | M20: 2121800
A21: Zakład Gospodarowania Nieruchomościami | B21: J.09.000 | C21: 700.70005.W4430+000 | F21: GMMW | G21: Rozliczenia ze wspólnotami mieszkaniowymi | H21: B/II/3/4 | I21: 12156249 | K21: 0 | L21: 2800000 | M21: 14956249
A22: Zakład Gospodarowania Nieruchomościami | B22: J.09.000 | C22: 700.70007.W4260+000 | F22: GMMW | G22: Rozliczenia ze wspólnotami mieszkaniowymi | H22: B/II/3/4 | I22: 44398202 | K22: 0 | L22: 800000 | M22: 45198202
A23: Zakład Gospodarowania Nieruchomościami | B23: J.09.000 | C23: 700.70007.W4300+000 | F23: GMMW | G23: Rozliczenia ze wspólnotami mieszkaniowymi | H23: B/II/3/4 | I23: 4842000 | K23: 0 | L23: 1100000 | M23: 5942000
A24: Zakład Gospodarowania Nieruchomościami | B24: J.09.000 | C24: 700.70007.W4430+000 | F24: GMMW | G24: Rozliczenia ze wspólnotami mieszkaniowymi | H24: B/II/3/4 | I24: 25680519 | K24: 0 | L24: 5800000 | M24: 31480519
A25: Zakład Gospodarowania Nieruchomościami | B25: J.09.000 | C25: 700.70007.W4520+000 | F25: GMMW | G25: Rozliczenia ze wspólnotami mieszkaniowymi | H25: B/II/3/4 | I25: 7789644 | K25: 0 | L25: 800000 | M25: 8589644
A26: Zarząd Terenów Publicznych | B26: J.09.000 | C26: 600.60016.W4300+000 | F26: GMMW | G26: Letnie oczyszczanie ulic | H26: B/III/1/1/2 | I26: 2470500 | K26: 0 | L26: 10000 | M26: 2480500
A27: Zarząd Terenów Publicznych | B27: J.09.000 | C27: 400.40002.W4260+000 | F27: GMMW | G27: Utrzymanie i remonty sieci wodno-kanalizacyjnej | H27: B/III/2/1 | I27: 79305 | K27: 4700 | L27: 0 | M27: 74605
A28: Zarząd Terenów Publicznych | B28: J.09.000 | C28: 900.90004.W4390+000 | F28: GMMW | G28: Utrzymanie i konserwacja zieleni | H28: B/III/3/1 | I28: 40000 | K28: 8352 | L28: 0 | M28: 31648
A29: Zarząd Terenów Publicznych | B29: J.09.000 | C29: 600.60016.W4300+000 | F29: GMMW | G29: Utrzymanie i konserwacja zieleni przyulicznej | H29: B/III/3/2 | I29: 2138462 | K29: 0 | L29: 91290 | M29: 2229752
A30: Zarząd Terenów Publicznych | B30: J.09.000 | C30: 925.92595.W4270+000 | F30: GMMW | G30: Utrzymanie parków | H30: B/III/3/3 | I30: 1393000 | K30: 314290 | L30: 0 | M30: 1078710
A31: Zarząd Terenów Publicznych | B31: J.09.000 | C31: 925.92595.W4300+000 | F31: GMMW | G31: Utrzymanie parków | H31: B/III/3/3 | I31: 173500 | K31: 34000 | L31: 0 | M31: 139500
A32: Zarząd Terenów Publicznych | B32: J.09.000 | C32: 900.90095.W4300+000 | F32: GMMW | G32: Utrzymanie jednostek budżetowych realizujących zadania z zakresu infrastruktury w dzielnicach | H32: B/III/4/4/2 | I32: 1634884 | K32: 25000 | L32: 0 | M32: 1609884
A33: Dzielnicowe Biuro Finansów Oświaty | B33: J.09.000 | C33: 801.80104.W4270+000 | F33: GMMW | G33: Remonty w przedszkolach, szkołach i placówkach oświatowych | H33: B/V/1/27 | I33: 2406280 | K33: 0 | L33: 7380 | M33: 2413660
A34: Dzielnicowe Biuro Finansów Oświaty | B34: J.09.000 | C34: 801.80120.W4270+000 | F34: GMMW | G34: Remonty w przedszkolach, szkołach i placówkach oświatowych | H34: B/V/1/27 | I34: 2291065 | K34: 0 | L34: 72926 | M34: 2363991
A35: Dzielnicowe Biuro Finansów Oświaty | B35: J.09.000 | C35: 854.85407.W4270+000 | F35: GMMW | G35: Remonty w przedszkolach, szkołach i placówkach oświatowych | H35: B/V/1/27 | I35: 89900 | K35: 0 | L35: 4143 | M35: 94043
A36: Dzielnicowe Biuro Finansów Oświaty | B36: J.09.000 | C36: 801.80115.W4210+000 | F36: GMMW | G36: Prowadzenie publicznych techników | H36: B/V/1/36/1 | I36: 902959 | K36: 0 | L36: 4000 | M36: 906959
A37: Wydział Zasobów Lokalowych | B37: U.09.000 | C37: 700.70005.W4590+000 | F37: GMMW | G37: Rozliczenia za lokale z właścicielami innymi niż m.st. Warszawa | H37: B/II/3/6 | I37: 50000 | K37: 12000 | M37: 38000
A38: Wydział Oświaty i Funduszy Europejskich | B38: U.09.000 | C38: 801.80106.W2540+000 | F38: GMMW | G38: Dotacje dla niepublicznych przedszkoli i innych form wychowania przedszkolnego | H38: B/V/1/1/2 | I38: 141000 | K38: 118374 | M38: 22626
A39: Wydział Oświaty i Funduszy Europejskich | B39: U.09.000 | C39: 801.80105.W2540+000 | F39: GMMW | G39: Dotacje dla niepublicznych przedszkoli specjalnych | H39: B/V/1/2/2 | I39: 2646000 | K39: 500000 | M39: 2146000
A40: Wydział Oświaty i Funduszy Europejskich | B40: U.09.000 | C40: 801.80103.W2540+000 | F40: GMMW | G40: Dotacje dla niepublicznych oddziałów "0" w szkołach podstawowych | H40: B/V/1/3/2 | I40: 504000 | K40: 222000 | M40: 282000
A41: Wydział Oświaty i Funduszy Europejskich | B41: U.09.000 | C41: 801.80101.W2540+000 | F41: GMMW | G41: Dotacje dla niepublicznych szkół podstawowych | H41: B/V/1/4/2 | I41: 8190000 | L41: 500000 | M41: 8690000
A42: Wydział Oświaty i Funduszy Europejskich | B42: U.09.000 | C42: 801.80120.W2540+000 | F42: GMMW | G42: Dotacje dla niepublicznych liceów ogólnokształcących | H42: B/V/1/8/2 | I42: 13611188 | L42: 347184 | M42: 13958372
A43: Wydział Oświaty i Funduszy Europejskich | B43: U.09.000 | C43: 801.80113.W4300+000 | F43: GMMW | G43: Dowożenie uczniów do szkół | H43: B/V/1/29 | I43: 1480000 | K43: 141000 | M43: 1339000
A44: Wydział Oświaty i Funduszy Europejskich | B44: U.09.000 | C44: 801.80152.W2540+000 | F44: GMMW | G44: Dotacje dla podmiotów niepublicznych realizujących zadania wymagające stosowania specjalnej nauki organizacji i metod pracy | H44: B/V/1/34/2 | I44: 20128042 | L44: 278399 | M44: 20406441
A45: Wydział Oświaty i Funduszy Europejskich | B45: U.09.000 | C45: 801.80195.W4110+000 | F45: GMMW | G45: Postępowania związane z awansem zawodowym nauczycieli | H45: B/V/2/2 | I45: 1000 | K45: 1000 | M45: 0
A46: Wydział Oświaty i Funduszy Europejskich | B46: U.09.000 | C46: 801.80195.W4170+000 | F46: GMMW | G46: Postępowania związane z awansem zawodowym nauczycieli | H46: B/V/2/2 | I46: 31680 | K46: 7800 | M46: 23880
A47: Wydział Oświaty i Funduszy Europejskich | B47: U.09.000 | C47: 801.80195.W4210+000 | F47: GMMW | G47: Postępowania związane z awansem zawodowym nauczycieli | H47: B/V/2/2 | I47: 2660 | K47: 2660 | M47: 0
A48: Wydział Oświaty i Funduszy Europejskich | B48: U.09.000 | C48: 801.80195.W4190+000 | F48: GMMW | G48: Organizacja olimpiad, konkursów i uroczystości szkolnych oraz realizacja programów o charakterze innowacyjnym | H48: B/V/2/6 | I48: 35750 | K48: 25000 | M48: 10750
A49: Wydział Oświaty i Funduszy Europejskich | B49: U.09.000 | C49: 801.80195.W4210+000 | F49: GMMW | G49: Organizacja olimpiad, konkursów i uroczystości szkolnych oraz realizacja programów o charakterze innowacyjnym | H49: B/V/2/6 | I49: 24000 | K49: 5000 | M49: 19000
A50: Wydział Oświaty i Funduszy Europejskich | B50: U.09.000 | C50: 801.80195.W4300+000 | F50: GMMW | G50: Organizacja olimpiad, konkursów i uroczystości szkolnych oraz realizacja programów o charakterze innowacyjnym | H50: B/V/2/6 | I50: 30064 | K50: 10184 | M50: 19880
A51: Wydział Oświaty i Funduszy Europejskich | B51: U.09.000 | C51: 854.85412.W4110+000 | F51: GMMW | G51: Wypoczynek dzieci i młodzieży szkolnej | H51: B/V/2/7 | I51: 1600 | K51: 1600 | M51: 0
A52: Wydział Oświaty i Funduszy Europejskich | B52: U.09.000 | C52: 854.85412.W4120+000 | F52: GMMW | G52: Wypoczynek dzieci i młodzieży szkolnej | H52: B/V/2/7 | I52: 200 | K52: 200 | M52: 0
A53: Wydział Oświaty i Funduszy Europejskich | B53: U.09.000 | C53: 854.85412.W4170+000 | F53: GMMW | G53: Wypoczynek dzieci i młodzieży szkolnej | H53: B/V/2/7 | I53: 121426 | K53: 46857 | M53: 74569
A54: Wydział Oświaty i Funduszy Europejskich | B54: U.09.000 | C54: 854.85412.W4300+000 | F54: GMMW | G54: Wypoczynek dzieci i młodzieży szkolnej | H54: B/V/2/7 | I54: 39509 | K54: 33608 | M54: 5901
A55: Wydział Zasobów Lokalowych | B55: U.09.000 | C55: 852.85215.W3110+000 | F55: GMMW | G55: Dodatki mieszkaniowe i energetyczne | H55: B/VI/4/3 | I55: 5000000 | L55: 40000 | M55: 5040000
A56: Wydział Kultury i Promocji | B56: U.09.000 | C56: 921.92105.W4300+000 | F56: GMMW | G56: Przedsięwzięcia artystyczne i kulturalne | H56: B/VII/1/1 | I56: 3695389 | K56: 291948 | M56: 3403441
A57: Wydział Sportu i Spraw Społecznych | B57: U.09.000 | C57: 926.92604.W2650+000 | F57: GMMW | G57: Ośrodek Sportu i Rekreacji w Dzielnicy Śródmieście | H57: B/VIII/2/8/5 | I57: 4079750 | L57: 46955 | M57: 4126705
A58: Wydział Kultury i Promocji | B58: U.09.000 | C58: 750.75075.W4300+000 | F58: GMMW | G58: Wydawnictwa w tym wydawnictwa multimedialne | H58: B/IX/1/1/2 | I58: 350000 | L58: 160000 | M58: 510000
A59: Wydział Kultury i Promocji | B59: U.09.000 | C59: 750.75075.W4300+000 | F59: GMMW | G59: Reklama w mediach, zakup materiałów promocyjnych oraz zarządzanie marką miasta Warszawy | H59: B/IX/1/1/3 | I59: 185000 | L59: 150000 | M59: 335000
A60: Wydział Oświaty i Funduszy Europejskich | B60: U.09.000 | C60: 750.75023.W4300+000 | F60: GMMW | G60: Pozyskiwanie środków i funduszy pomocowych | H60: B/IX/2/1 | I60: 10800 | K60: 10300 | M60: 500
A61: RAZEM | I61: =SUM(I15:I60) -> 206036419 | J61: =SUM(J15:J60) -> 0 | K61: =SUM(K15:K60) -> 1949873 | L61: =SUM(L15:L60) -> 17085277 | M61: =SUM(M15:M60) -> 221171823
A63: *) niepotrzebne skreślić
A64: **) Dzielnice podają nazwę Wydziału lub nazwę jednostki budżetowej
B67: Sporządził: | F67: Zatwierdził:

Sheet wniosek inwestycje
L1: Załącznik Nr 3
L2: do Uchwały Nr
L3: Rady Dzielnicy Śródmieście m.st. Warszawy
L4: z dnia
A7: WNIOSEK W SPRAWIE ZMIAN W PLANIE WYDATKÓW MAJĄTKOWYCH
M9: w zł
A10: Stanowisko finansowe | C10: Pozycje finansowe | F10: Obszar funkcjonalny | G10: Program budżetowy | I10: Plan wg stanu na dzień 29.08.2024 r. | J10: Zaangażowanie | K10: Proponowane zmiany | M10: Plan po zmianach
A11: Nazwa dysponenta ** | B11: Kod dysponenta | C11: Dział | D11: rozdział | E11: § | F11: Kod | G11: Nazwa | H11: Kod | K11: zmniejszenia | L11: zwiększenia
C12: np.:1) 801.80195.D2707+000
C13: np.:2) 801.80195.W4307+000
C14: np.:3) 801.80195.W6060+000
A15: Zarząd Terenów Publicznych | B15: J.09.000 | C15: 900.90095.W6050+000 | F15: GMMW | G15: Wykonanie Skweru na działce 46/2 w obrębie 5-05-01 w ramach NCW w miejscu dotychczasowego parkingu | H15: C/ŚRD/III/P4/ | I15: 0 | K15: 0 | L15: 10000 | M15: =I15-K15+L15 -> 10000
A16: Zakład Gospodarowania Nieruchomościami | B16: J.09.000 | C16: 700.70005.W6050+000 | F16: GMMW | G16: Dostosowanie budynku użyteczności publicznej przy ul. Chmielnej 15 do obowiązkowych przepisów p.poż. | H16: C/ŚRD/II/P5/8 | I16: 300000 | K16: 300000 | L16: 0 | M16: 0
A17: Wydział Inwestycji | B17: U.09.000 | C17: 854.85407.W6050+000 | F17: GMMW | G17: Budowa siedziby Młodzieżowego Domu Kultury i Domu Kultury Śródmieście przy ul. Twardej 8/12 | H17: C/ŚRD/V/P1/52 | I17: 10955000 | J17: 0 | K17: 10855000 | L17: 0 | M17: =I17-K17+L17 -> 100000
A18: Wydział Inwestycji | B18: U.09.000 | C18: 801.80101.W6050+000 | F18: GMMW | G18: Zadaszenie boiska sportowego przy Szkole Podstawowej nr 48 przy ul. Sempołowskiej 4 | H18: C/ŚRD/V/P1/69 | I18: 2147110 | J18: 0 | K18: 2147110 | L18: 0 | M18: 0
A19: Wydział Inwestycji | B19: U.09.000 | C19: 801.80101.W6050+000 | F19: BO/24/09/0164 | G19: Zielona i sportowa Górnośląska | H19: C/ŚRD/V/P1/91 | I19: 484000 | J19: 0 | K19: 484000 | L19: 0 | M19: 0
A20: Wydział Inwestycji | B20: U.09.000 | C20: 801.80120.W6050+000 | F20: GMMW | G20: Przebudowa sali gimnastycznej (małej) w LXII Liceum Ogólnokształcącym przy ul. Konwiktorskiej 5/7 | H20: C/ŚRD/V/P1/87 | I20: 3411100 | J20: 0 | K20: 2611100 | L20: 0 | M20: 800000
A21: Biblioteka Publiczna w Dzielnicy Śródmieście | B21: U.09.000 | C21: 921.92116.W6220+000 | F21: GMMW | G21: Montaż zestawu podnoszącego ciśnienie wody w instalacji hydrantowej w lokalu Biblioteki Publicznej przy ul. Marszałkowskiej 55/73 | H21: C/ŚRD/VII/P3/24 | I21: 220000 | J21: 0 | K21: 72578 | L21: 0 | M21: 147422
A22: Biblioteka Publiczna w Dzielnicy Śródmieście | B22: U.09.000 | C22: 921.92116.W6220+000 | F22: GMMW | G22: Przebudowa lokalu Biblioteki Publicznej przy ul. Anielewicza 2 - koncepcja architektoniczna aranżacji wnętrza | H22: C/ŚRD/VII/P3/ | I22: 0 | J22: 0 | K22: 0 | L22: 72578 | M22: 72578
A23: RAZEM | I23: =SUM(I15:I22) -> 17517210 | J23: =SUM(J15:J22) -> 0 | K23: 16469788 | L23: 82578 | M23: 1130000
B26: Sporządził: | F26: Zatwierdził:

Sheet ZADANIOWY (3)
A1: PLAN DOCHODÓW REALIZOWANYCH W ROKU 2024 - WG ŹRÓDEŁ | Q1: Załącznik nr 4 do Uchwały Nr Rady Dzielnicy Śródmieście m.st. Warszawy z dnia
A2: U.09.000 | B2: U.09.000 | E2: =IF(OR(T3<>"",U3<>""),"Istnieją błędy","") ->  | J2: =J1731 -> 458829596 | K2: =K1731 -> 107590217 | L2: =L1731 -> 2039335 | M2: 26004862 | N2: 212335 | O2: 19915862 | P2: 482795123 | Q2: 127293744
A3: PROGRAM | B3: OPIS | D3: Header | E3: DZIAŁ | F3: ROZDZIAŁ | G3: § | H3: Kod | I3: OBSZAR FUNKCJONALNY | J3: PLAN | K3: w tym Urząd m.st. Warszawy | L3: PLAN Zmiana[-] | M3: PLAN Zmiana[+] | N3: w tym Urząd Zmiana[-] | O3: w tym Urząd Zmiana[+] | P3: PLAN PO ZMIANIE | Q3: w tym Urząd PO ZMIANIE | R3: WYPEŁNIONE POZYCJE | S3: WYPEŁNIONE ZMIANY | T3: =IF(COUNTIF(T4:T1731,"błędny urząd")<>0,"ŹLE","") ->  | U3: =IF(COUNTIF(U4:U1731,"ujemny plan")<>0,"ŹLE","") -> 
A4: DB | B4: DOCHODY BIEŻĄCE | D4: T | J4: =SUM(J5,J1006) -> 428022300 | K4: 76782921 | L4: 2039335 | M4: 8388901 | N4: 212335 | O4: 2299901 | P4: 434371866 | Q4: 78870487 | R4: =IF(SUM(J4:Q4)>0,"Tak","") -> Tak | S4: =IF(SUM(L4:O4)>0,"Tak","") -> Tak | T4: =IF(OR(J4<K4,P4<Q4,L4<N4,M4<O4),"błędny urząd","") ->  | U4: =IF(OR(J4<0,K4<0,P4<0,Q4<0),"ujemny plan","") -> 
A5: DWB | B5: DOCHODY WŁASNE | D5: T | J5: =SUM(J6,J20,J26,J32,J49,J276,J985,J992) -> 428022300 | K5: 76782921 | L5: 2039335 | M5: 8388901 | N5: 212335 | O5: 2299901 | P5: 434371866 | Q5: 78870487 | R5: Tak | S5: Tak
A6: DWB/1 | B6: Podatki i opłaty lokalne ogółem | D6: T | J6: =SUM(J7,J10,J13,J16,J19) -> 0 | K6: 0 | L6: 0 | M6: 0 | N6: 0 | O6: 0 | P6: 0 | Q6: 0
A7: DWB/1/PN | B7: Podatek od nieruchomości | D7: T | G7: 0310 | J7: =SUM(J8:J9) -> 0 | K7: 0 | L7: 0 | M7: 0 | N7: 0 | O7: 0 | P7: 0 | Q7: 0
A8: DWB/1/PN | B8: Podatek od nieruchomości | D8: NIE | E8: 756 | F8: 75615 | G8: 0310 | H8: =IF(I8="","",(CONCATENATE(F8,G8,IF(LEFT(I8,1)<>"S",LEFT(I8,1),(IF(OR(I8="SFUE/12/14",I8="SFUE/12/1",I8="SFUE/12/19",I8="SFUE/12/23"),"P","G")))))) -> 756150310G | I8: GMMW | J8: 0 | K8: 0 | P8: =J8+M8-L8 -> 0 | Q8: =K8+O8-N8 -> 0 | R8: =IF(SUM(J8:Q8)>0,"Tak","") ->  | S8: =IF(SUM(L8:O8)>0,"Tak","") ->  | T8: =IF(OR(J8<K8,P8<Q8,L8<N8,M8<O8),"błędny urząd","") ->  | U8: =IF(OR(J8<0,K8<0,P8<0,Q8<0),"ujemny plan","") -> 
A9: DWB/1/PN | B9: Podatek od nieruchomości | D9: NIE | E9: 756 | F9: 75616 | G9: 0310 | H9: 756160310G | I9: GMMW | J9: 0 | K9: 0 | P9: =J9+M9-L9 -> 0 | Q9: =K9+O9-N9 -> 0 | R9: =IF(SUM(J9:Q9)>0,"Tak","") ->  | S9: =IF(SUM(L9:O9)>0,"Tak","") ->  | T9: =IF(OR(J9<K9,P9<Q9,L9<N9,M9<O9),"błędny urząd","") ->  | U9: =IF(OR(J9<0,K9<0,P9<0,Q9<0),"ujemny plan","") -> 
A10: DWB/1/PR | B10: Podatek rolny | D10: T | G10: 0320 | J10: =SUM(J11:J12) -> 0 | K10: 0 | L10: 0 | M10: 0 | N10: 0 | O10: 0 | P10: 0 | Q10: 0
A11: DWB/1/PR | B11: Podatek rolny | D11: NIE | E11: 756 | F11: 75615 | G11: 0320 | H11: 756150320G | I11: GMMW | P11: 0 | Q11: 0
A12: DWB/1/PR | B12: Podatek rolny | D12: NIE | E12: 756 | F12: 75616 | G12: 0320 | H12: 756160320G | I12: GMMW | P12: 0 | Q12: 0
A13: DWB/1/PL | B13: Podatek leśny | D13: T | G13: 0330 | J13: =SUM(J14:J15) -> 0 | K13: 0 | L13: 0 | M13: 0 | N13: 0 | O13: 0 | P13: 0 | Q13: 0
A14: DWB/1/PL | B14: Podatek leśny | D14: NIE | E14: 756 | F14: 75615 | G14: 0330 | H14: 756150330G | I14: GMMW | P14: 0 | Q14: 0
A15: DWB/1/PL | B15: Podatek leśny | D15: NIE | E15: 756 | F15: 75616 | G15: 0330 | H15: 756160330G | I15: GMMW | P15: 0 | Q15: 0
A16: DWB/1/ST | B16: Podatek od środków transportowych | D16: T | G16: 0340 | J16: =SUM(J17:J18) -> 0 | K16: 0 | L16: 0 | M16: 0 | N16: 0 | O16: 0 | P16: 0 | Q16: 0
A17: DWB/1/ST | B17: Podatek od środków transportowych | D17: NIE | E17: 756 | F17: 75615 | G17: 0340 | H17: 756150340G | I17: GMMW | P17: 0 | Q17: 0
A18: DWB/1/ST | B18: Podatek od środków transportowych | D18: NIE | E18: 756 | F18: 75616 | G18: 0340 | H18: 756160340G | I18: GMMW | P18: 0 | Q18: 0
A19: DWB/1/PZ | B19: Zaległości z podatków zniesionych | D19: T | E19: 756 | F19: 75616 | G19: 0560 | H19: 756160560G | I19: GMMW | P19: 0 | Q19: 0
A20: DWB/2 | B20: Podatki pobierane przez urzędy skarbowe | D20: T | J20: =SUM(J21:J23) -> 0 | K20: 0 | L20: 0 | M20: 0 | N20: 0 | O20: 0 | P20: 0 | Q20: 0
A21: DWB/2/DG | B21: Podatek od działalności gospodarczej osób fizycznych opłacany w formie karty podatkowej | D21: T | E21: 756 | F21: 75601 | G21: 0350 | H21: 756010350G | I21: GMMW | P21: 0 | Q21: 0
A22: DWB/2/SD | B22: Podatek od spadków i darowizn | D22: T | E22: 756 | F22: 75616 | G22: 0360 | H22: 756160360G | I22: GMMW | P22: 0 | Q22: 0
A23: DWB/2/CC | B23: Podatek od czynności cywilnoprawnych | D23: T | G23: 0500 | J23: =SUM(J24:J25) -> 0 | K23: 0 | L23: 0 | M23: 0 | N23: 0 | O23: 0 | P23: 0 | Q23: 0
A24: DWB/2/CC | B24: Podatek od czynności cywilnoprawnych | D24: NIE | E24: 756 | F24: 75615 | G24: 0500 | H24: 756150500G | I24: GMMW | P24: 0 | Q24: 0
A25: DWB/2/CC | B25: Podatek od czynności cywilnoprawnych | D25: NIE | E25: 756 | F25: 75616 | G25: 0500 | H25: 756160500G | I25: GMMW | P25: 0 | Q25: 0
A26: DWB/3 | B26: Wpływy z opłat | D26: T | J26: =SUM(J27:J29) -> 0 | K26: 0 | L26: 0 | M26: 0 | N26: 0 | O26: 0 | P26: 0 | Q26: 0
A27: DWB/3/OS | B27: Opłata skarbowa | D27: T | E27: 756 | F27: 75618 | G27: 0410 | H27: 756180410G | I27: GMMW | P27: 0 | Q27: 0
A28: DWB/3/KO | B28: Opłata komunikacyjna | D28: T | E28: 756 | F28: 75618 | G28: 0420 | H28: 756180420P | I28: PWMW | P28: 0 | Q28: 0
A29: DWB/3/SA | B29: Opłata za wydawanie zezwoleń na sprzedaż napojów alkoholowych | D29: T | J29: =SUM(J30:J31) -> 0 | K29: 0 | L29: 0 | M29: 0 | N29: 0 | O29: 0 | P29: 0 | Q29: 0
A30: DWB/3/SA | B30: Opłata za wydawanie zezwoleń na sprzedaż napojów alkoholowych | D30: NIE | E30: 756 | F30: 75618 | G30: 0270 | P30: 0 | Q30: 0
A31: DWB/3/SA | B31: Opłata za wydawanie zezwoleń na sprzedaż napojów alkoholowych | D31: NIE | E31: 756 | F31: 75616 | G31: 0480 | P31: 0 | Q31: 0
A32: DWB/4 | B32: Inne opłaty pobierane na podstawie odrębnych ustaw | D32: T | J32: =SUM(J33:J42,J48) -> 0 | K32: =SUM(K33:K42,K48) -> 0 | L32: 0 | M32: 0 | N32: 0 | O32: 0 | P32: 0 | Q32: 0
A33: DWB/4/GO | B33: Opłata za gospodarowanie odpadami komunalnymi | D33: T | E33: 900 | F33: 90002 | G33: 0490 | H33: 900020490G | I33: GODK | J33: 0 | K33: 0 | P33: 0 | Q33: 0
A34: DWB/4/OA | B34: Opłaty adiacenckie | D34: T | E34: 756 | F34: 75618 | G34: 0490 | H34: 756180490G | I34: GMMW | J34: 0 | K34: 0 | P34: 0 | Q34: 0
A35: DWB/4/RP | B35: Renta planistyczna | D35: T | E35: 756 | F35: 75618 | G35: 0490 | H35: 756180490G | I35: GMMW | J35: 0 | K35: 0 | P35: 0 | Q35: 0
A36: DWB/4/PD | B36: Opłaty za zajęcie pasa drogowego | D36: T | E36: 756 | F36: 75618 | G36: 0490 | H36: 756180490G | I36: GMMW | J36: 0 | K36: 0 | P36: 0 | Q36: 0
A37: DWB/4/PJ | B37: Opłaty za wydanie prawa jazdy | D37: T | E37: 756 | F37: 75618 | G37: 0650 | I37: PWMW | J37: 0 | K37: 0 | P37: 0 | Q37: 0
A38: DWB/4/PL | B38: Opłaty za pozostałe licencje | D38: T | E38: 756 | F38: 75618 | G38: 0590 | H38: =IF(I38="","",(CONCATENATE(F38,G38,IF(LEFT(I38,1)<>"S",LEFT(I38,1),(IF(OR(I38="SFUE/12/14",I38="SFUE/12/1",I38="SFUE/12/19",I38="SFUE/12/23"),"P","G")))))) -> 756180590P | I38: PWMW | J38: 0 | K38: 0 | P38: 0 | Q38: 0
A39: DWB/4/LP | B39: Opłaty za licencje przewozowe | D39: T | E39: 756 | F39: 75618 | G39: 0590 | H39: 756180590G | I39: GMMW | J39: 0 | K39: 0 | P39: 0 | Q39: 0
A40: DWB/4/LP | B40: Opłaty za licencje przewozowe | D40: T | E40: 756 | F40: 75618 | G40: 0590 | H40: 756180590P | I40: PWMW | J40: 0 | K40: 0 | P40: 0 | Q40: 0
A41: DWB/4/OE | B41: Opłata eksploatacyjna | D41: T | E41: 756 | F41: 75618 | G41: 0460 | P41: 0 | Q41: 0
A42: DWB/4/OP | B42: Opłata prolongacyjna | D42: T | J42: =SUM(J43:J47) -> 0 | K42: 0 | L42: 0 | M42: 0 | N42: 0 | O42: 0 | P42: 0 | Q42: 0
A43: DWB/4/OP | B43: Opłata prolongacyjna | D43: NIE | E43: 600 | F43: 60095 | G43: 0880 | P43: 0 | Q43: 0
A44: DWB/4/OP | B44: Opłata prolongacyjna | D44: NIE | E44: 756 | F44: 75615 | G44: 0880 | P44: 0 | Q44: 0
A45: DWB/4/OP | B45: Opłata prolongacyjna | D45: NIE | E45: 756 | F45: 75616 | G45: 0880 | P45: 0 | Q45: 0
A46: DWB/4/OP | B46: Opłata prolongacyjna | D46: NIE | E46: 756 | F46: 75618 | G46: 0880 | P46: 0 | Q46: 0
A47: DWB/4/OP | B47: Opłata prolongacyjna | D47: NIE | E47: 900 | F47: 90002 | G47: 0880 | P47: 0 | Q47: 0
A48: DWB/4/OR | B48: Opłata restrukturyzacyjna | D48: T | E48: 756 | F48: 75619 | G48: 0130 | P48: 0 | Q48: 0
A49: DWB/5 | B49: Dochody z mienia | D49: T | J49: =SUM(J50,J54:J55,J56,J58,J274:J275) -> 298776572 | K49: =SUM(K50,K54:K55,K56,K58,K274:K275) -> 69428572 | L49: 862000 | M49: 862000 | N49: 0 | O49: 732000 | P49: 298776572 | Q49: 70160572 | R49: Tak | S49: Tak
A50: DWB/5/UW | B50: Opłaty za użytkowanie wieczyste nieruchomości | D50: T | G50: 0550 | J50: =SUM(J51:J53) -> 66428572 | K50: =SUM(K51:K53) -> 66428572 | L50: 0 | M50: 0 | N50: 0 | O50: 0 | P50: 66428572 | Q50: 66428572 | R50: Tak
A51: DWB/5/UW/PW | B51: pierwsza opłata za oddanie w użytkowanie wieczyste | D51: T | E51: 700 | F51: 70005 | G51: 0550 | H51: 700050550G | I51: GMMW | J51: 0 | K51: 0 | P51: 0 | Q51: 0
A52: DWB/5/UW/RW | B52: opłaty roczne za użytkowanie wieczyste | D52: T | E52: 700 | F52: 70005 | G52: 0550 | H52: 700050550G | I52: GMMW | J52: 66428572 | K52: 66428572 | P52: 66428572 | Q52: 66428572 | R52: Tak
A53: DWB/5/UW/PO | B53: pozostałe opłaty za użytkowanie wieczyste | D53: T | E53: 700 | F53: 70005 | G53: 0550 | H53: 700050550G | I53: GMMW | J53: 0 | K53: 0 | P53: 0 | Q53: 0
A54: DWB/5/ZS | B54: Opłaty za trwały zarząd, użytkowanie i służebności | D54: T | E54: 700 | F54: 70005 | G54: 0470 | H54: 700050470G | I54: GMMW | J54: 1000000 | K54: 1000000 | M54: 400000 | O54: 400000 | P54: 1400000 | Q54: 1400000 | R54: Tak | S54: Tak
A55: DWB/5/KO | B55: Wpłaty z zysku od przedsiębiorstw komunalnych | D55: T | E55: 756 | F55: 75605 | G55: 0730 | H55: 756050730G | I55: GMMW | P55: 0 | Q55: 0
A56: DWB/5/DZ | B56: Dywidenda od spółek | D56: T | G56: 0740 | J56: =SUM(J57:J57) -> 0 | K56: 0 | L56: 0 | M56: 0 | N56: 0 | O56: 0 | P56: 0 | Q56: 0
A57: DWB/5/DZ/PO | B57: Dywidendy | D57: NIE | E57: 756 | F57: 75624 | G57: 0740 | I57: GMMW | P57: 0 | Q57: 0
A58: DWB/5/ND | B58: Dochody z najmu i dzierżawy mienia | D58: T | G58: 0750 | H58: =IF(I58="","",(CONCATENATE(F58,G58,IF(LEFT(I58,1)<>"S",LEFT(I58,1),(IF(OR(I58="SFUE/12/14",I58="SFUE/12/1",I58="SFUE/12/19",I58="SFUE/12/23"),"P","G")))))) ->  | J58: =SUM(J148,J90,J179,J120,J59,J246,J88,J207,J209) -> 231348000 | K58: =SUM(K148,K90,K179,K120,K59,K246,K88,K207,K209) -> 2000000 | L58: 862000 | M58: 462000 | N58: 0 | O58: 332000 | P58: 230948000 | Q58: 2332000 | R58: Tak | S58: Tak
A59: DWB/5/ND/DG | B59: wpływy z dzierżawy gruntów | D59: T | G59: 0750 | J59: =SUM(J60:J87) -> 9948000 | K59: =SUM(K60:K87) -> 1500000 | L59: 0 | M59: 332000 | N59: 0 | O59: 332000 | P59: 10280000 | Q59: 1832000 | R59: Tak | S59: Tak
A60: DWB/5/ND/DG | B60: wpływy z dzierżawy gruntów | D60: NIE | E60: 600 | F60: 60004 | G60: 0750 | J60: 0 | K60: 0 | P60: 0 | Q60: 0
A61: DWB/5/ND/DG | B61: wpływy z dzierżawy gruntów | D61: NIE | E61: 600 | F61: 60015 | G61: 0750 | J61: 0 | K61: 0 | P61: 0 | Q61: 0
A62: DWB/5/ND/DG | B62: wpływy z dzierżawy gruntów | D62: NIE | E62: 600 | F62: 60016 | G62: 0750 | H62: 600160750G | I62: GMMW | J62: 0 | K62: 0 | P62: 0 | Q62: 0
A63: DWB/5/ND/DG | B63: wpływy z dzierżawy gruntów | D63: NIE | E63: 700 | F63: 70004 | G63: 0750 | J63: 0 | K63: 0 | P63: 0 | Q63: 0
A64: DWB/5/ND/DG | B64: wpływy z dzierżawy gruntów | D64: NIE | E64: 700 | F64: 70005 | G64: 0750 | H64: 700050750G | I64: GMMW | J64: 5448000 | K64: 1500000 | M64: 332000 | O64: 332000 | P64: 5780000 | Q64: 1832000 | R64: Tak | S64: Tak
A65: DWB/5/ND/DG | B65: wpływy z dzierżawy gruntów | D65: NIE | E65: 750 | F65: 75023 | G65: 0750 | H65: 750230750G | I65: GMMW | J65: 0 | K65: 0 | P65: 0 | Q65: 0
A66: DWB/5/ND/DG | B66: wpływy z dzierżawy gruntów | D66: NIE | E66: 801 | F66: 80101 | G66: 0750 | J66: 0 | K66: 0 | P66: 0 | Q66: 0
A67: DWB/5/ND/DG | B67: wpływy z dzierżawy gruntów | D67: NIE | E67: 801 | F67: 80102 | G67: 0750 | J67: 0 | K67: 0 | P67: 0 | Q67: 0
A68: DWB/5/ND/DG | B68: wpływy z dzierżawy gruntów | D68: NIE | E68: 801 | F68: 80104 | G68: 0750 | J68: 0 | K68: 0 | P68: 0 | Q68: 0
A69: DWB/5/ND/DG | B69: wpływy z dzierżawy gruntów | D69: NIE | E69: 801 | F69: 80120 | G69: 0750 | J69: 0 | K69: 0 | P69: 0 | Q69: 0
A70: DWB/5/ND/DG | B70: wpływy z dzierżawy gruntów | D70: NIE | E70: 801 | F70: 80134 | G70: 0750 | J70: 0 | K70: 0 | P70: 0 | Q70: 0
A71: DWB/5/ND/DG | B71: wpływy z dzierżawy gruntów | D71: NIE | E71: 801 | F71: 80140 | G71: 0750 | J71: 0 | K71: 0 | P71: 0 | Q71: 0
A72: DWB/5/ND/DG | B72: wpływy z dzierżawy gruntów | D72: NIE | E72: 801 | F72: 80148 | G72: 0750 | J72: 0 | K72: 0 | P72: 0 | Q72: 0
A73: DWB/5/ND/DG | B73: wpływy z dzierżawy gruntów | D73: NIE | E73: 851 | F73: 85158 | G73: 0750 | J73: 0 | K73: 0 | P73: =J73+M73-L73 -> 0 | Q73: =K73+O73-N73 -> 0 | R73: =IF(SUM(J73:Q73)>0,"Tak","") ->  | S73: =IF(SUM(L73:O73)>0,"Tak","") ->  | T73: =IF(OR(J73<K73,P73<Q73,L73<N73,M73<O73),"błędny urząd","") ->  | U73: =IF(OR(J73<0,K73<0,P73<0,Q73<0),"ujemny plan","") -> 
A74: DWB/5/ND/DG | B74: wpływy z dzierżawy gruntów | D74: NIE | E74: 852 | F74: 85202 | G74: 0750 | H74: 852020750P | I74: PWMW | J74: 0 | K74: 0 | P74: 0 | Q74: 0
A75: DWB/5/ND/DG | B75: wpływy z dzierżawy gruntów | D75: NIE | E75: 854 | F75: 85403 | G75: 0750 | J75: 0 | K75: 0 | P75: 0 | Q75: 0
A76: DWB/5/ND/DG | B76: wpływy z dzierżawy gruntów | D76: NIE | E76: 854 | F76: 85407 | G76: 0750 | J76: 0 | K76: 0 | P76: 0 | Q76: 0
A77: DWB/5/ND/DG | B77: wpływy z dzierżawy gruntów | D77: NIE | E77: 854 | F77: 85410 | G77: 0750 | J77: 0 | K77: 0 | P77: 0 | Q77: 0
A78: DWB/5/ND/DG | B78: wpływy z dzierżawy gruntów | D78: NIE | E78: 854 | F78: 85412 | G78: 0750 | J78: 0 | K78: 0 | P78: 0 | Q78: 0
A79: DWB/5/ND/DG | B79: wpływy z dzierżawy gruntów | D79: NIE | E79: 854 | F79: 85420 | G79: 0750 | J79: 0 | K79: 0 | P79: 0 | Q79: 0
A80: DWB/5/ND/DG | B80: wpływy z dzierżawy gruntów | D80: NIE | E80: 854 | F80: 85421 | G80: 0750 | J80: 0 | K80: 0 | P80: 0 | Q80: 0
A81: DWB/5/ND/DG | B81: wpływy z dzierżawy gruntów | D81: NIE | E81: 855 | F81: 85510 | G81: 0750 | H81: 855100750P | I81: PWMW | J81: 0 | K81: 0 | P81: 0 | Q81: 0
A82: DWB/5/ND/DG | B82: wpływy z dzierżawy gruntów | D82: NIE | E82: 900 | F82: 90002 | G82: 0750 | J82: 0 | K82: 0 | P82: 0 | Q82: 0
A83: DWB/5/ND/DG | B83: wpływy z dzierżawy gruntów | D83: NIE | E83: 900 | F83: 90003 | G83: 0750 | J83: 0 | K83: 0 | P83: 0 | Q83: 0
A84: DWB/5/ND/DG | B84: wpływy z dzierżawy gruntów | D84: NIE | E84: 900 | F84: 90004 | G84: 0750 | J84: 0 | K84: 0 | P84: 0 | Q84: 0
A85: DWB/5/ND/DG | B85: wpływy z dzierżawy gruntów | D85: NIE | E85: 900 | F85: 90095 | G85: 0750 | H85: 900950750G | I85: GMMW | J85: 4500000 | K85: 0 | P85: 4500000 | Q85: 0 | R85: Tak
A86: DWB/5/ND/DG | B86: wpływy z dzierżawy gruntów | D86: NIE | E86: 925 | F86: 92504 | G86: 0750 | J86: 0 | K86: 0 | P86: 0 | Q86: 0
A87: DWB/5/ND/DG | B87: wpływy z dzierżawy gruntów | D87: NIE | E87: 926 | F87: 92604 | G87: 0750 | H87: 926040750G | I87: GMMW | J87: 0 | K87: 0 | P87: 0 | Q87: 0
A88: DWB/5/ND/DP | B88: wpływy z dzierżawy parkingów | D88: T | G88: 0750 | J88: =SUM(J89) -> 0 | K88: 0 | L88: 0 | M88: 0 | N88: 0 | O88: 0 | P88: 0 | Q88: 0
A89: DWB/5/ND/DP | B89: wpływy z dzierżawy parkingów | D89: NIE | E89: 600 | F89: 60015 | G89: 0750 | H89: 600150750G | I89: GMMW | P89: 0 | Q89: 0
A90: DWB/5/ND/MI | B90: wpływy z czynszu za mieszkania komunalne | D90: T | G90: 0750 | J90: =SUM(J91:J119) -> 61731200 | K90: =SUM(K91:K119) -> 0 | L90: 681200 | M90: 0 | N90: 0 | O90: 0 | P90: 61050000 | Q90: 0 | R90: Tak | S90: Tak
A91: DWB/5/ND/MI | B91: wpływy z czynszu za mieszkania komunalne | D91: NIE | E91: 600 | F91: 60004 | G91: 0750 | P91: 0 | Q91: 0
A92: DWB/5/ND/MI | B92: wpływy z czynszu za mieszkania komunalne | D92: NIE | E92: 600 | F92: 60015 | G92: 0750 | P92: 0 | Q92: 0
A93: DWB/5/ND/MI | B93: wpływy z czynszu za mieszkania komunalne | D93: NIE | E93: 600 | F93: 60016 | G93: 0750 | P93: 0 | Q93: 0
A94: DWB/5/ND/MI | B94: wpływy z czynszu za mieszkania komunalne | D94: NIE | E94: 700 | F94: 70004 | G94: 0750 | P94: 0 | Q94: 0
A95: DWB/5/ND/MI | B95: wpływy z czynszu za mieszkania komunalne | D95: NIE | E95: 700 | F95: 70005 | G95: 0750 | H95: 700050750G | I95: GMMW | J95: 0 | K95: 0 | P95: 0 | Q95: 0
A96: DWB/5/ND/MI | B96: wpływy z czynszu za mieszkania komunalne | D96: NIE | E96: 700 | F96: 70007 | G96: 0750 | H96: 700070750G | I96: GMMW | J96: 61731200 | K96: 0 | L96: 681200 | P96: 61050000 | Q96: 0 | R96: Tak | S96: Tak
A97: DWB/5/ND/MI | B97: wpływy z czynszu za mieszkania komunalne | D97: NIE | E97: 750 | F97: 75023 | G97: 0750 | P97: 0 | Q97: 0
A98: DWB/5/ND/MI | B98: wpływy z czynszu za mieszkania komunalne | D98: NIE | E98: 801 | F98: 80101 | G98: 0750 | P98: 0 | Q98: 0
A99: DWB/5/ND/MI | B99: wpływy z czynszu za mieszkania komunalne | D99: NIE | E99: 801 | F99: 80102 | G99: 0750 | P99: 0 | Q99: 0
A100: DWB/5/ND/MI | B100: wpływy z czynszu za mieszkania komunalne | D100: NIE | E100: 801 | F100: 80104 | G100: 0750 | P100: 0 | Q100: 0
A101: DWB/5/ND/MI | B101: wpływy z czynszu za mieszkania komunalne | D101: NIE | E101: 801 | F101: 80120 | G101: 0750 | P101: 0 | Q101: 0
A102: DWB/5/ND/MI | B102: wpływy z czynszu za mieszkania komunalne | D102: NIE | E102: 801 | F102: 80134 | G102: 0750 | P102: 0 | Q102: 0
A103: DWB/5/ND/MI | B103: wpływy z czynszu za mieszkania komunalne | D103: NIE | E103: 801 | F103: 80140 | G103: 0750 | P103: 0 | Q103: 0
A104: DWB/5/ND/MI | B104: wpływy z czynszu za mieszkania komunalne | D104: NIE | E104: 801 | F104: 80148 | G104: 0750 | P104: 0 | Q104: 0
A105: DWB/5/ND/MI | B105: wpływy z czynszu za mieszkania komunalne | D105: NIE | E105: 851 | F105: 85158 | G105: 0750 | P105: 0 | Q105: 0
A106: DWB/5/ND/MI | B106: wpływy z czynszu za mieszkania komunalne | D106: NIE | E106: 852 | F106: 85202 | G106: 0750 | P106: 0 | Q106: 0
A107: DWB/5/ND/MI | B107: wpływy z czynszu za mieszkania komunalne | D107: NIE | E107: 854 | F107: 85403 | G107: 0750 | P107: 0 | Q107: 0
A108: DWB/5/ND/MI | B108: wpływy z czynszu za mieszkania komunalne | D108: NIE | E108: 854 | F108: 85407 | G108: 0750 | P108: 0 | Q108: 0
A109: DWB/5/ND/MI | B109: wpływy z czynszu za mieszkania komunalne | D109: NIE | E109: 854 | F109: 85410 | G109: 0750 | P109: 0 | Q109: 0
A110: DWB/5/ND/MI | B110: wpływy z czynszu za mieszkania komunalne | D110: NIE | E110: 854 | F110: 85412 | G110: 0750 | P110: 0 | Q110: 0
A111: DWB/5/ND/MI | B111: wpływy z czynszu za mieszkania komunalne | D111: NIE | E111: 854 | F111: 85420 | G111: 0750 | P111: 0 | Q111: 0
A112: DWB/5/ND/MI | B112: wpływy z czynszu za mieszkania komunalne | D112: NIE | E112: 854 | F112: 85421 | G112: 0750 | P112: 0 | Q112: 0
A113: DWB/5/ND/MI | B113: wpływy z czynszu za mieszkania komunalne | D113: NIE | E113: 855 | F113: 85510 | G113: 0750 | H113: 855100750P | I113: PWMW | P113: 0 | Q113: 0
A114: DWB/5/ND/MI | B114: wpływy z czynszu za mieszkania komunalne | D114: NIE | E114: 855 | F114: 85595 | G114: 0750 | P114: 0 | Q114: 0
A115: DWB/5/ND/MI | B115: wpływy z czynszu za mieszkania komunalne | D115: NIE | E115: 900 | F115: 90002 | G115: 0750 | P115: 0 | Q115: 0
A116: DWB/5/ND/MI | B116: wpływy z czynszu za mieszkania komunalne | D116: NIE | E116: 900 | F116: 90003 | G116: 0750 | P116: 0 | Q116: 0
A117: DWB/5/ND/MI | B117: wpływy z czynszu za mieszkania komunalne | D117: NIE | E117: 900 | F117: 90095 | G117: 0750 | P117: 0 | Q117: 0
A118: DWB/5/ND/MI | B118: wpływy z czynszu za mieszkania komunalne | D118: NIE | E118: 925 | F118: 92504 | G118: 0750 | P118: 0 | Q118: 0
A119: DWB/5/ND/MI | B119: wpływy z czynszu za mieszkania komunalne | D119: NIE | E119: 926 | F119: 92604 | G119: 0750 | H119: 926040750G | I119: GMMW | P119: 0 | Q119: 0
A120: DWB/5/ND/NG | B120: wpływy z najmu garaży | D120: T | G120: 0750 | J120: =SUM(J121:J147) -> 2296000 | K120: =SUM(K121:K147) -> 0 | L120: 100000 | M120: 0 | N120: 0 | O120: 0 | P120: 2196000 | Q120: 0 | R120: Tak | S120: Tak
A121: DWB/5/ND/NG | B121: wpływy z najmu garaży | D121: NIE | E121: 600 | F121: 60004 | G121: 0750 | J121: 0 | K121: 0 | P121: 0 | Q121: 0
A122: DWB/5/ND/NG | B122: wpływy z najmu garaży | D122: NIE | E122: 600 | F122: 60015 | G122: 0750 | J122: 0 | K122: 0 | P122: 0 | Q122: 0
A123: DWB/5/ND/NG | B123: wpływy z najmu garaży | D123: NIE | E123: 600 | F123: 60016 | G123: 0750 | J123: 0 | K123: 0 | P123: 0 | Q123: 0
A124: DWB/5/ND/NG | B124: wpływy z najmu garaży | D124: NIE | E124: 700 | F124: 70004 | G124: 0750 | J124: 0 | K124: 0 | P124: 0 | Q124: 0
A125: DWB/5/ND/NG | B125: wpływy z najmu garaży | D125: NIE | E125: 700 | F125: 70005 | G125: 0750 | H125: 700050750G | I125: GMMW | J125: 2296000 | K125: 0 | L125: 100000 | P125: 2196000 | Q125: 0 | R125: Tak | S125: Tak
A126: DWB/5/ND/NG | B126: wpływy z najmu garaży | D126: NIE | E126: 750 | F126: 75023 | G126: 0750 | J126: 0 | K126: 0 | P126: 0 | Q126: 0
A127: DWB/5/ND/NG | B127: wpływy z najmu garaży | D127: NIE | E127: 801 | F127: 80101 | G127: 0750 | J127: 0 | K127: 0 | P127: 0 | Q127: 0
A128: DWB/5/ND/NG | B128: wpływy z najmu garaży | D128: NIE | E128: 801 | F128: 80102 | G128: 0750 | J128: 0 | K128: 0 | P128: 0 | Q128: 0
A129: DWB/5/ND/NG | B129: wpływy z najmu garaży | D129: NIE | E129: 801 | F129: 80104 | G129: 0750 | J129: 0 | K129: 0 | P129: 0 | Q129: 0
A130: DWB/5/ND/NG | B130: wpływy z najmu garaży | D130: NIE | E130: 801 | F130: 80120 | G130: 0750 | J130: 0 | K130: 0 | P130: 0 | Q130: 0
A131: DWB/5/ND/NG | B131: wpływy z najmu garaży | D131: NIE | E131: 801 | F131: 80134 | G131: 0750 | J131: 0 | K131: 0 | P131: 0 | Q131: 0
A132: DWB/5/ND/NG | B132: wpływy z najmu garaży | D132: NIE | E132: 801 | F132: 80140 | G132: 0750 | J132: 0 | K132: 0 | P132: 0 | Q132: 0
A133: DWB/5/ND/NG | B133: wpływy z najmu garaży | D133: NIE | E133: 801 | F133: 80148 | G133: 0750 | J133: 0 | K133: 0 | P133: 0 | Q133: 0
A134: DWB/5/ND/NG | B134: wpływy z najmu garaży | D134: NIE | E134: 851 | F134: 85158 | G134: 0750 | J134: 0 | K134: 0 | P134: 0 | Q134: 0
A135: DWB/5/ND/NG | B135: wpływy z najmu garaży | D135: NIE | E135: 852 | F135: 85202 | G135: 0750 | J135: 0 | K135: 0 | P135: 0 | Q135: 0
A136: DWB/5/ND/NG | B136: wpływy z najmu garaży | D136: NIE | E136: 854 | F136: 85403 | G136: 0750 | J136: 0 | K136: 0 | P136: 0 | Q136: 0
A137: DWB/5/ND/NG | B137: wpływy z najmu garaży | D137: NIE | E137: 854 | F137: 85407 | G137: 0750 | J137: 0 | K137: 0 | P137: 0 | Q137: 0
A138: DWB/5/ND/NG | B138: wpływy z najmu garaży | D138: NIE | E138: 854 | F138: 85410 | G138: 0750 | J138: 0 | K138: 0 | P138: =J138+M138-L138 -> 0 | Q138: =K138+O138-N138 -> 0 | R138: =IF(SUM(J138:Q138)>0,"Tak","") ->  | S138: =IF(SUM(L138:O138)>0,"Tak","") ->  | T138: =IF(OR(J138<K138,P138<Q138,L138<N138,M138<O138),"błędny urząd","") ->  | U138: =IF(OR(J138<0,K138<0,P138<0,Q138<0),"ujemny plan","") -> 
A139: DWB/5/ND/NG | B139: wpływy z najmu garaży | D139: NIE | E139: 854 | F139: 85412 | G139: 0750 | J139: 0 | K139: 0 | P139: 0 | Q139: 0
A140: DWB/5/ND/NG | B140: wpływy z najmu garaży | D140: NIE | E140: 854 | F140: 85420 | G140: 0750 | J140: 0 | K140: 0 | P140: 0 | Q140: 0
A141: DWB/5/ND/NG | B141: wpływy z najmu garaży | D141: NIE | E141: 854 | F141: 85421 | G141: 0750 | J141: 0 | K141: 0 | P141: 0 | Q141: 0
A142: DWB/5/ND/NG | B142: wpływy z najmu garaży | D142: NIE | E142: 855 | F142: 85510 | G142: 0750 | J142: 0 | K142: 0 | P142: 0 | Q142: 0
A143: DWB/5/ND/NG | B143: wpływy z najmu garaży | D143: NIE | E143: 900 | F143: 90002 | G143: 0750 | J143: 0 | K143: 0 | P143: 0 | Q143: 0
A144: DWB/5/ND/NG | B144: wpływy z najmu garaży | D144: NIE | E144: 900 | F144: 90003 | G144: 0750 | J144: 0 | K144: 0 | P144: 0 | Q144: 0
A145: DWB/5/ND/NG | B145: wpływy z najmu garaży | D145: NIE | E145: 900 | F145: 90095 | G145: 0750 | J145: 0 | K145: 0 | P145: 0 | Q145: 0
A146: DWB/5/ND/NG | B146: wpływy z najmu garaży | D146: NIE | E146: 925 | F146: 92504 | G146: 0750 | J146: 0 | K146: 0 | P146: 0 | Q146: 0
A147: DWB/5/ND/NG | B147: wpływy z najmu garaży | D147: NIE | E147: 926 | F147: 92604 | G147: 0750 | J147: 0 | K147: 0 | P147: 0 | Q147: 0
A148: DWB/5/ND/NN | B148: wpływy z najmu nieruchomości | D148: T | G148: 0750 | J148: =SUM(J149:J178) -> 0 | K148: 0 | L148: 0 | M148: 0 | N148: 0 | O148: 0 | P148: 0 | Q148: 0
A149: DWB/5/ND/NN | B149: wpływy z najmu nieruchomości | D149: NIE | E149: 600 | F149: 60004 | G149: 0750 | P149: 0 | Q149: 0
A150: DWB/5/ND/NN | B150: wpływy z najmu nieruchomości | D150: NIE | E150: 600 | F150: 60015 | G150: 0750 | P150: 0 | Q150: 0
A151: DWB/5/ND/NN | B151: wpływy z najmu nieruchomości | D151: NIE | E151: 600 | F151: 60016 | G151: 0750 | P151: 0 | Q151: 0
A152: DWB/5/ND/NN | B152: wpływy z najmu nieruchomości | D152: NIE | E152: 700 | F152: 70004 | G152: 0750 | P152: 0 | Q152: 0
A153: DWB/5/ND/NN | B153: wpływy z najmu nieruchomości | D153: NIE | E153: 700 | F153: 70005 | G153: 0750 | H153: 700050750G | I153: GMMW | P153: 0 | Q153: 0
A154: DWB/5/ND/NN | B154: wpływy z najmu nieruchomości | D154: NIE | E154: 750 | F154: 75023 | G154: 0750 | P154: 0 | Q154: 0
A155: DWB/5/ND/NN | B155: wpływy z najmu nieruchomości | D155: NIE | E155: 801 | F155: 80101 | G155: 0750 | P155: 0 | Q155: 0
A156: DWB/5/ND/NN | B156: wpływy z najmu nieruchomości | D156: NIE | E156: 801 | F156: 80102 | G156: 0750 | P156: 0 | Q156: 0
A157: DWB/5/ND/NN | B157: wpływy z najmu nieruchomości | D157: NIE | E157: 801 | F157: 80104 | G157: 0750 | P157: 0 | Q157: 0
A158: DWB/5/ND/NN | B158: wpływy z najmu nieruchomości | D158: NIE | E158: 801 | F158: 80120 | G158: 0750 | P158: 0 | Q158: 0
A159: DWB/5/ND/NN | B159: wpływy z najmu nieruchomości | D159: NIE | E159: 801 | F159: 80134 | G159: 0750 | P159: 0 | Q159: 0
A160: DWB/5/ND/NN | B160: wpływy z najmu nieruchomości | D160: NIE | E160: 801 | F160: 80140 | G160: 0750 | P160: 0 | Q160: 0
A161: DWB/5/ND/NN | B161: wpływy z najmu nieruchomości | D161: NIE | E161: 801 | F161: 80148 | G161: 0750 | P161: 0 | Q161: 0
A162: DWB/5/ND/NN | B162: wpływy z najmu nieruchomości | D162: NIE | E162: 851 | F162: 85111 | G162: 0750 | P162: 0 | Q162: 0
A163: DWB/5/ND/NN | B163: wpływy z najmu nieruchomości | D163: NIE | E163: 851 | F163: 85158 | G163: 0750 | P163: 0 | Q163: 0
A164: DWB/5/ND/NN | B164: wpływy z najmu nieruchomości | D164: NIE | E164: 852 | F164: 85202 | G164: 0750 | P164: 0 | Q164: 0
A165: DWB/5/ND/NN | B165: wpływy z najmu nieruchomości | D165: NIE | E165: 852 | F165: 85295 | G165: 0750 | H165: 852950750G | I165: GMMW | P165: 0 | Q165: 0
A166: DWB/5/ND/NN | B166: wpływy z najmu nieruchomości | D166: NIE | E166: 854 | F166: 85403 | G166: 0750 | P166: 0 | Q166: 0
A167: DWB/5/ND/NN | B167: wpływy z najmu nieruchomości | D167: NIE | E167: 854 | F167: 85407 | G167: 0750 | P167: 0 | Q167: 0
A168: DWB/5/ND/NN | B168: wpływy z najmu nieruchomości | D168: NIE | E168: 854 | F168: 85410 | G168: 0750 | P168: 0 | Q168: 0
A169: DWB/5/ND/NN | B169: wpływy z najmu nieruchomości | D169: NIE | E169: 854 | F169: 85412 | G169: 0750 | P169: 0 | Q169: 0
A170: DWB/5/ND/NN | B170: wpływy z najmu nieruchomości | D170: NIE | E170: 854 | F170: 85420 | G170: 0750 | P170: 0 | Q170: 0
A171: DWB/5/ND/NN | B171: wpływy z najmu nieruchomości | D171: NIE | E171: 854 | F171: 85421 | G171: 0750 | P171: 0 | Q171: 0
A172: DWB/5/ND/NN | B172: wpływy z najmu nieruchomości | D172: NIE | E172: 855 | F172: 85510 | G172: 0750 | H172: 855100750P | I172: PWMW | P172: 0 | Q172: 0
A173: DWB/5/ND/NN | B173: wpływy z najmu nieruchomości | D173: NIE | E173: 900 | F173: 90002 | G173: 0750 | P173: 0 | Q173: 0
A174: DWB/5/ND/NN | B174: wpływy z najmu nieruchomości | D174: NIE | E174: 900 | F174: 90003 | G174: 0750 | H174: 900030750G | I174: GMMW | P174: 0 | Q174: 0
A175: DWB/5/ND/NN | B175: wpływy z najmu nieruchomości | D175: NIE | E175: 900 | F175: 90095 | G175: 0750 | P175: 0 | Q175: 0
A176: DWB/5/ND/NN | B176: wpływy z najmu nieruchomości | D176: NIE | E176: 900 | F176: 90004 | G176: 0750 | P176: 0 | Q176: 0
A177: DWB/5/ND/NN | B177: wpływy z najmu nieruchomości | D177: NIE | E177: 925 | F177: 92504 | G177: 0750 | P177: 0 | Q177: 0
A178: DWB/5/ND/NN | B178: wpływy z najmu nieruchomości | D178: NIE | E178: 926 | F178: 92604 | G178: 0750 | P178: 0 | Q178: 0
A179: DWB/5/ND/LU | B179: wpływy z najmu lokali użytkowych | D179: T | G179: 0750 | H179: =IF(I179="","",(CONCATENATE(F179,G179,IF(LEFT(I179,1)<>"S",LEFT(I179,1),(IF(OR(I179="SFUE/12/14",I179="SFUE/12/1",I179="SFUE/12/19",I179="SFUE/12/23"),"P","G")))))) ->  | J179: =SUM(J180:J206) -> 153980000 | K179: =SUM(K180:K206) -> 0 | L179: 0 | M179: 130000 | N179: 0 | O179: 0 | P179: 154110000 | Q179: 0 | R179: Tak | S179: Tak
A180: DWB/5/ND/LU | B180: wpływy z najmu lokali użytkowych | D180: NIE | E180: 600 | F180: 60004 | G180: 0750 | J180: 0 | K180: 0 | P180: 0 | Q180: 0
A181: DWB/5/ND/LU | B181: wpływy z najmu lokali użytkowych | D181: NIE | E181: 600 | F181: 60015 | G181: 0750 | J181: 0 | K181: 0 | P181: 0 | Q181: 0
A182: DWB/5/ND/LU | B182: wpływy z najmu lokali użytkowych | D182: NIE | E182: 600 | F182: 60016 | G182: 0750 | J182: 0 | K182: 0 | P182: 0 | Q182: 0
A183: DWB/5/ND/LU | B183: wpływy z najmu lokali użytkowych | D183: NIE | E183: 700 | F183: 70004 | G183: 0750 | J183: 0 | K183: 0 | P183: 0 | Q183: 0
A184: DWB/5/ND/LU | B184: wpływy z najmu lokali użytkowych | D184: NIE | E184: 700 | F184: 70005 | G184: 0750 | H184: 700050750G | I184: GMMW | J184: 151980000 | K184: 0 | M184: 130000 | P184: 152110000 | Q184: 0 | R184: Tak | S184: Tak
A185: DWB/5/ND/LU | B185: wpływy z najmu lokali użytkowych | D185: NIE | E185: 750 | F185: 75023 | G185: 0750 | H185: 750230750G | I185: GMMW | J185: 0 | K185: 0 | P185: 0 | Q185: 0
A186: DWB/5/ND/LU | B186: wpływy z najmu lokali użytkowych | D186: NIE | E186: 801 | F186: 80101 | G186: 0750 | J186: 0 | K186: 0 | P186: 0 | Q186: 0
A187: DWB/5/ND/LU | B187: wpływy z najmu lokali użytkowych | D187: NIE | E187: 801 | F187: 80102 | G187: 0750 | J187: 0 | K187: 0 | P187: 0 | Q187: 0
A188: DWB/5/ND/LU | B188: wpływy z najmu lokali użytkowych | D188: NIE | E188: 801 | F188: 80104 | G188: 0750 | J188: 0 | K188: 0 | P188: 0 | Q188: 0
A189: DWB/5/ND/LU | B189: wpływy z najmu lokali użytkowych | D189: NIE | E189: 801 | F189: 80120 | G189: 0750 | J189: 0 | K189: 0 | P189: 0 | Q189: 0
A190: DWB/5/ND/LU | B190: wpływy z najmu lokali użytkowych | D190: NIE | E190: 801 | F190: 80134 | G190: 0750 | J190: 0 | K190: 0 | P190: 0 | Q190: 0
A191: DWB/5/ND/LU | B191: wpływy z najmu lokali użytkowych | D191: NIE | E191: 801 | F191: 80140 | G191: 0750 | J191: 0 | K191: 0 | P191: 0 | Q191: 0
A192: DWB/5/ND/LU | B192: wpływy z najmu lokali użytkowych | D192: NIE | E192: 801 | F192: 80148 | G192: 0750 | J192: 0 | K192: 0 | P192: 0 | Q192: 0
A193: DWB/5/ND/LU | B193: wpływy z najmu lokali użytkowych | D193: NIE | E193: 851 | F193: 85158 | G193: 0750 | J193: 0 | K193: 0 | P193: 0 | Q193: 0
A194: DWB/5/ND/LU | B194: wpływy z najmu lokali użytkowych | D194: NIE | E194: 852 | F194: 85202 | G194: 0750 | J194: 0 | K194: 0 | P194: 0 | Q194: 0
A195: DWB/5/ND/LU | B195: wpływy z najmu lokali użytkowych | D195: NIE | E195: 854 | F195: 85403 | G195: 0750 | J195: 0 | K195: 0 | P195: 0 | Q195: 0
A196: DWB/5/ND/LU | B196: wpływy z najmu lokali użytkowych | D196: NIE | E196: 854 | F196: 85407 | G196: 0750 | J196: 0 | K196: 0 | P196: 0 | Q196: 0
A197: DWB/5/ND/LU | B197: wpływy z najmu lokali użytkowych | D197: NIE | E197: 854 | F197: 85410 | G197: 0750 | J197: 0 | K197: 0 | P197: 0 | Q197: 0
A198: DWB/5/ND/LU | B198: wpływy z najmu lokali użytkowych | D198: NIE | E198: 854 | F198: 85412 | G198: 0750 | J198: 0 | K198: 0 | P198: 0 | Q198: 0
A199: DWB/5/ND/LU | B199: wpływy z najmu lokali użytkowych | D199: NIE | E199: 854 | F199: 85420 | G199: 0750 | J199: 0 | K199: 0 | P199: 0 | Q199: 0
A200: DWB/5/ND/LU | B200: wpływy z najmu lokali użytkowych | D200: NIE | E200: 854 | F200: 85421 | G200: 0750 | J200: 0 | K200: 0 | P200: 0 | Q200: 0
... 1531 more rows

Sheet KLASYCZNY (3)
A1: PLAN DOCHODÓW NA 2024 W UKŁADZIE KLASYCZNYM | L1: Załącznik nr 5 do Uchwały Nr Rady Dzielnicy Śródmieście m.st. Warszawy z dnia
E3: =E1344 -> 458829596 | F3: 107590217 | G3: 2039335 | H3: 26004862 | I3: 212335 | J3: 19915862 | K3: 482795123 | L3: 127293744
A4: Dział | B4: Rozdział | C4: § | D4: Wyszczególnienie | E4: PLAN | F4: w tym Urząd m.st. Warszawy | G4: PLAN Zmiana[-] | H4: PLAN Zmiana[+] | I4: w tym Urząd Zmiana[-] | J4: w tym Urząd Zmiana[+] | K4: PLAN PO ZMIANIE | L4: w tym Urząd PO ZMIANIE | M4: Wypełnione Pozycje | N4: Wypełnione Zmiany | O4: =IF(COUNTIF(O5:O1474,"błędny urząd")<>0,"ŹLE","") ->  | P4: =IF(COUNTIF(P5:P1474,"ujemny plan")<>0,"ŹLE","") -> 
A5: 010 | D5: Rolnictwo i łowiectwo | E5: =SUM(E6) -> 0 | F5: 0 | G5: 0 | H5: 0 | I5: 0 | J5: 0 | K5: 0 | L5: 0 | M5: =IF(SUM(E5:L5)>0,"Tak","") ->  | N5: =IF(SUM(G5:J5)>0,"Tak","") ->  | O5: =IF(OR(E5<F5,K5<L5),"błędny urząd","") ->  | P5: =IF(OR(E5<0,F5<0,K5<0,L5<0),"ujemny plan","") -> 
B6: 01095 | D6: Pozostała działalność | E6: 0 | F6: 0 | G6: 0 | H6: 0 | I6: 0 | J6: 0 | K6: 0 | L6: 0
C7: 2010 | D7: Dotacje celowe otrzymane z budżetu państwa na realizację zadań bieżących z zakresu administracji rządowej oraz innych zadań zleconych gminie (związkom gmin, związkom powiatowo-gminnym) ustawami | E7: =0+'ZADANIOWY (3)'!J1054 -> 0 | F7: =0+'ZADANIOWY (3)'!K1054 -> 0 | G7: =0+'ZADANIOWY (3)'!L1054 -> 0 | H7: =0+'ZADANIOWY (3)'!M1054 -> 0 | I7: =0+'ZADANIOWY (3)'!N1054 -> 0 | J7: =0+'ZADANIOWY (3)'!O1054 -> 0 | K7: =E7-G7+H7 -> 0 | L7: =F7-I7+J7 -> 0
A8: 020 | D8: Leśnictwo | E8: =SUM(E9,E15) -> 0 | F8: 0 | G8: 0 | H8: 0 | I8: 0 | J8: 0 | K8: 0 | L8: 0
B9: 02001 | D9: Gospodarka leśna | E9: =SUM(E10:E14) -> 0 | F9: 0 | G9: 0 | H9: 0 | I9: 0 | J9: 0 | K9: 0 | L9: 0
C10: 0750 | D10: Wpływy z najmu i dzierżawy składników majątkowych Skarbu Państwa, jednostek samorządu terytorialnego lub innych jednostek zaliczanych do sektora finansów publicznych oraz innych umów o podobnym charakterze | E10: =0+'ZADANIOWY (3)'!J210 -> 0 | F10: =0+'ZADANIOWY (3)'!K210 -> 0 | G10: =0+'ZADANIOWY (3)'!L210 -> 0 | H10: =0+'ZADANIOWY (3)'!M210 -> 0 | I10: =0+'ZADANIOWY (3)'!N210 -> 0 | J10: =0+'ZADANIOWY (3)'!O210 -> 0 | K10: 0 | L10: 0
C11: 0830 | D11: Wpływy z usług | E11: =0+'ZADANIOWY (3)'!J452+'ZADANIOWY (3)'!J489 -> 0 | F11: =0+'ZADANIOWY (3)'!K452+'ZADANIOWY (3)'!K489 -> 0 | G11: =0+'ZADANIOWY (3)'!L452+'ZADANIOWY (3)'!L489 -> 0 | H11: =0+'ZADANIOWY (3)'!M452+'ZADANIOWY (3)'!M489 -> 0 | I11: =0+'ZADANIOWY (3)'!N452+'ZADANIOWY (3)'!N489 -> 0 | J11: =0+'ZADANIOWY (3)'!O452+'ZADANIOWY (3)'!O489 -> 0 | K11: 0 | L11: 0
C12: 0920 | D12: Wpływy z pozostałych odsetek | E12: =0+'ZADANIOWY (3)'!J586 -> 0 | F12: =0+'ZADANIOWY (3)'!K586 -> 0 | G12: =0+'ZADANIOWY (3)'!L586 -> 0 | H12: =0+'ZADANIOWY (3)'!M586 -> 0 | I12: =0+'ZADANIOWY (3)'!N586 -> 0 | J12: =0+'ZADANIOWY (3)'!O586 -> 0 | K12: 0 | L12: 0
C13: 0970 | D13: Wpływy z różnych dochodów | E13: =0+'ZADANIOWY (3)'!J711 -> 0 | F13: =0+'ZADANIOWY (3)'!K711 -> 0 | G13: =0+'ZADANIOWY (3)'!L711 -> 0 | H13: =0+'ZADANIOWY (3)'!M711 -> 0 | I13: =0+'ZADANIOWY (3)'!N711 -> 0 | J13: =0+'ZADANIOWY (3)'!O711 -> 0 | K13: 0 | L13: 0
C14: 2700 | D14: Środki na dofinansowanie własnych zadań bieżących gmin, powiatów (związków gmin, związków powiatowo-gminnych, związków powiatów), samorządów województw, pozyskane z innych źródeł | E14: =0+'ZADANIOWY (3)'!J1156 -> 0 | F14: =0+'ZADANIOWY (3)'!K1156 -> 0 | G14: =0+'ZADANIOWY (3)'!L1156 -> 0 | H14: =0+'ZADANIOWY (3)'!M1156 -> 0 | I14: =0+'ZADANIOWY (3)'!N1156 -> 0 | J14: =0+'ZADANIOWY (3)'!O1156 -> 0 | K14: 0 | L14: 0
B15: 02095 | D15: Pozostała działalność | E15: =SUM(E16:E16) -> 0 | F15: 0 | G15: 0 | H15: 0 | I15: 0 | J15: 0 | K15: 0 | L15: 0
C16: 2700 | D16: Środki na dofinansowanie własnych zadań bieżących gmin, powiatów (związków gmin, związków powiatowo-gminnych, związków powiatów), samorządów województw, pozyskane z innych źródeł | E16: =0+'ZADANIOWY (3)'!J903+'ZADANIOWY (3)'!J1157 -> 0 | F16: =0+'ZADANIOWY (3)'!K903+'ZADANIOWY (3)'!K1157 -> 0 | G16: =0+'ZADANIOWY (3)'!L903+'ZADANIOWY (3)'!L1157 -> 0 | H16: =0+'ZADANIOWY (3)'!M903+'ZADANIOWY (3)'!M1157 -> 0 | I16: =0+'ZADANIOWY (3)'!N903+'ZADANIOWY (3)'!N1157 -> 0 | J16: =0+'ZADANIOWY (3)'!O903+'ZADANIOWY (3)'!O1157 -> 0 | K16: 0 | L16: 0
A17: 400 | D17: Wytwarzanie i zaopatrywanie w energię elektryczną, gaz i wodę | E17: =SUM(E18) -> 0 | F17: 0 | G17: 0 | H17: 0 | I17: 0 | J17: 0 | K17: 0 | L17: 0
B18: 40002 | D18: Dostarczanie wody | E18: =SUM(E19:E23) -> 0 | F18: 0 | G18: 0 | H18: 0 | I18: 0 | J18: 0 | K18: 0 | L18: 0
C19: 0580 | D19: Wpływy z tytułu grzywien i innych kar pieniężnych od osób prawnych i innych jednostek organizacyjnych | E19: =0 -> 0 | F19: =0 -> 0 | G19: =0 -> 0 | H19: =0 -> 0 | I19: =0 -> 0 | J19: =0 -> 0 | K19: 0 | L19: 0
C20: 0690 | D20: Wpływy z różnych opłat | E20: =0 -> 0 | F20: =0 -> 0 | G20: =0 -> 0 | H20: =0 -> 0 | I20: =0 -> 0 | J20: =0 -> 0 | K20: 0 | L20: 0
C21: 0830 | D21: Wpływy z usług | E21: =0+'ZADANIOWY (3)'!J453+'ZADANIOWY (3)'!J490 -> 0 | F21: =0+'ZADANIOWY (3)'!K453+'ZADANIOWY (3)'!K490 -> 0 | G21: =0+'ZADANIOWY (3)'!L453+'ZADANIOWY (3)'!L490 -> 0 | H21: =0+'ZADANIOWY (3)'!M453+'ZADANIOWY (3)'!M490 -> 0 | I21: =0+'ZADANIOWY (3)'!N453+'ZADANIOWY (3)'!N490 -> 0 | J21: =0+'ZADANIOWY (3)'!O453+'ZADANIOWY (3)'!O490 -> 0 | K21: 0 | L21: 0
C22: 0920 | D22: Wpływy z pozostałych odsetek | E22: =0+'ZADANIOWY (3)'!J587 -> 0 | F22: =0+'ZADANIOWY (3)'!K587 -> 0 | G22: =0+'ZADANIOWY (3)'!L587 -> 0 | H22: =0+'ZADANIOWY (3)'!M587 -> 0 | I22: =0+'ZADANIOWY (3)'!N587 -> 0 | J22: =0+'ZADANIOWY (3)'!O587 -> 0 | K22: 0 | L22: 0
C23: 0970 | D23: Wpływy z różnych dochodów | E23: =0+'ZADANIOWY (3)'!J712 -> 0 | F23: =0+'ZADANIOWY (3)'!K712 -> 0 | G23: =0+'ZADANIOWY (3)'!L712 -> 0 | H23: =0+'ZADANIOWY (3)'!M712 -> 0 | I23: =0+'ZADANIOWY (3)'!N712 -> 0 | J23: =0+'ZADANIOWY (3)'!O712 -> 0 | K23: 0 | L23: 0
A24: 500 | D24: Handel | E24: =SUM(E25) -> 0 | F24: 0 | G24: 0 | H24: 0 | I24: 0 | J24: 0 | K24: 0 | L24: 0
B25: 50095 | D25: Pozostała działalność | E25: =SUM(E26:E27) -> 0 | F25: 0 | G25: 0 | H25: 0 | I25: 0 | J25: 0 | K25: 0 | L25: 0
C26: 0970 | D26: Wpływy z różnych dochodów | E26: =0+'ZADANIOWY (3)'!J713 -> 0 | F26: =0+'ZADANIOWY (3)'!K713 -> 0 | G26: =0+'ZADANIOWY (3)'!L713 -> 0 | H26: =0+'ZADANIOWY (3)'!M713 -> 0 | I26: =0+'ZADANIOWY (3)'!N713 -> 0 | J26: =0+'ZADANIOWY (3)'!O713 -> 0 | K26: 0 | L26: 0
C27: 6680 | D27: Wpłata środków finansowych z niewykorzystanych w terminie wydatków, które nie wygasają z upływem roku budżetowego | E27: =0+'ZADANIOWY (3)'!J1594 -> 0 | F27: =0+'ZADANIOWY (3)'!K1594 -> 0 | G27: =0+'ZADANIOWY (3)'!L1594 -> 0 | H27: =0+'ZADANIOWY (3)'!M1594 -> 0 | I27: =0+'ZADANIOWY (3)'!N1594 -> 0 | J27: =0+'ZADANIOWY (3)'!O1594 -> 0 | K27: 0 | L27: 0
A28: 600 | D28: Transport i łączność | E28: =SUM(E29,E46,E55,E62,E71,E83,E96,E100,E103,E106,E109,E111) -> 14841443 | F28: 0 | G28: 0 | H28: 0 | I28: 0 | J28: 0 | K28: 14841443 | L28: 0 | M28: Tak
B29: 60004 | D29: Lokalny transport zbiorowy | E29: =SUM(E30:E45) -> 0 | F29: 0 | G29: 0 | H29: 0 | I29: 0 | J29: 0 | K29: 0 | L29: 0
C30: 0620 | D30: Wpływy z opłat za zezwolenia, akredytacje oraz opłaty ewidencyjne, w tym opłaty za częstotliwości | E30: =0+'ZADANIOWY (3)'!J376 -> 0 | F30: =0+'ZADANIOWY (3)'!K376 -> 0 | G30: =0+'ZADANIOWY (3)'!L376 -> 0 | H30: =0+'ZADANIOWY (3)'!M376 -> 0 | I30: =0+'ZADANIOWY (3)'!N376 -> 0 | J30: =0+'ZADANIOWY (3)'!O376 -> 0 | K30: =E30-G30+H30 -> 0 | L30: =F30-I30+J30 -> 0 | N30: =IF(SUM(G30:J30)>0,"Tak","") -> 
C31: 0690 | D31: Wpływy z różnych opłat | E31: =0+'ZADANIOWY (3)'!J405 -> 0 | F31: =0+'ZADANIOWY (3)'!K405 -> 0 | G31: =0+'ZADANIOWY (3)'!L405 -> 0 | H31: =0+'ZADANIOWY (3)'!M405 -> 0 | I31: =0+'ZADANIOWY (3)'!N405 -> 0 | J31: =0+'ZADANIOWY (3)'!O405 -> 0 | K31: 0 | L31: 0
C32: 0750 | D32: Wpływy z najmu i dzierżawy składników majątkowych Skarbu Państwa, jednostek samorządu terytorialnego lub innych jednostek zaliczanych do sektora finansów publicznych oraz innych umów o podobnym charakterze | E32: =0+'ZADANIOWY (3)'!J60+'ZADANIOWY (3)'!J91+'ZADANIOWY (3)'!J121+'ZADANIOWY (3)'!J149+'ZADANIOWY (3)'!J180+'ZADANIOWY (3)'!J211+'ZADANIOWY (3)'!J212+'ZADANIOWY (3)'!J247 -> 0 | F32: =0+'ZADANIOWY (3)'!K60+'ZADANIOWY (3)'!K91+'ZADANIOWY (3)'!K121+'ZADANIOWY (3)'!K149+'ZADANIOWY (3)'!K180+'ZADANIOWY (3)'!K211+'ZADANIOWY (3)'!K212+'ZADANIOWY (3)'!K247 -> 0 | G32: =0+'ZADANIOWY (3)'!L60+'ZADANIOWY (3)'!L91+'ZADANIOWY (3)'!L121+'ZADANIOWY (3)'!L149+'ZADANIOWY (3)'!L180+'ZADANIOWY (3)'!L211+'ZADANIOWY (3)'!L212+'ZADANIOWY (3)'!L247 -> 0 | H32: =0+'ZADANIOWY (3)'!M60+'ZADANIOWY (3)'!M91+'ZADANIOWY (3)'!M121+'ZADANIOWY (3)'!M149+'ZADANIOWY (3)'!M180+'ZADANIOWY (3)'!M211+'ZADANIOWY (3)'!M212+'ZADANIOWY (3)'!M247 -> 0 | I32: =0+'ZADANIOWY (3)'!N60+'ZADANIOWY (3)'!N91+'ZADANIOWY (3)'!N121+'ZADANIOWY (3)'!N149+'ZADANIOWY (3)'!N180+'ZADANIOWY (3)'!N211+'ZADANIOWY (3)'!N212+'ZADANIOWY (3)'!N247 -> 0 | J32: =0+'ZADANIOWY (3)'!O60+'ZADANIOWY (3)'!O91+'ZADANIOWY (3)'!O121+'ZADANIOWY (3)'!O149+'ZADANIOWY (3)'!O180+'ZADANIOWY (3)'!O211+'ZADANIOWY (3)'!O212+'ZADANIOWY (3)'!O247 -> 0 | K32: 0 | L32: 0
C33: 0830 | D33: Wpływy z usług | E33: =0+'ZADANIOWY (3)'!J454+'ZADANIOWY (3)'!J491+'ZADANIOWY (3)'!J533 -> 0 | F33: =0+'ZADANIOWY (3)'!K454+'ZADANIOWY (3)'!K491+'ZADANIOWY (3)'!K533 -> 0 | G33: =0+'ZADANIOWY (3)'!L454+'ZADANIOWY (3)'!L491+'ZADANIOWY (3)'!L533 -> 0 | H33: =0+'ZADANIOWY (3)'!M454+'ZADANIOWY (3)'!M491+'ZADANIOWY (3)'!M533 -> 0 | I33: =0+'ZADANIOWY (3)'!N454+'ZADANIOWY (3)'!N491+'ZADANIOWY (3)'!N533 -> 0 | J33: =0+'ZADANIOWY (3)'!O454+'ZADANIOWY (3)'!O491+'ZADANIOWY (3)'!O533 -> 0 | K33: 0 | L33: 0
C34: 0870 | D34: Wpływy ze sprzedaży składników majątkowych | E34: =0+'ZADANIOWY (3)'!J1559 -> 0 | F34: =0+'ZADANIOWY (3)'!K1559 -> 0 | G34: =0+'ZADANIOWY (3)'!L1559 -> 0 | H34: =0+'ZADANIOWY (3)'!M1559 -> 0 | I34: =0+'ZADANIOWY (3)'!N1559 -> 0 | J34: =0+'ZADANIOWY (3)'!O1559 -> 0 | K34: 0 | L34: 0
C35: 0890 | D35: Wpływy z odsetek za nieterminowe rozliczenia, płacone przez urzędy obsługujące organy podatkowe | E35: =0 -> 0 | F35: =0 -> 0 | G35: =0 -> 0 | H35: =0 -> 0 | I35: =0 -> 0 | J35: =0 -> 0 | K35: 0 | L35: 0
C36: 0920 | D36: Wpływy z pozostałych odsetek | E36: =0+'ZADANIOWY (3)'!J588 -> 0 | F36: =0+'ZADANIOWY (3)'!K588 -> 0 | G36: =0+'ZADANIOWY (3)'!L588 -> 0 | H36: =0+'ZADANIOWY (3)'!M588 -> 0 | I36: =0+'ZADANIOWY (3)'!N588 -> 0 | J36: =0+'ZADANIOWY (3)'!O588 -> 0 | K36: 0 | L36: 0
C37: 0950 | D37: Wpływy z tytułu kar i odszkodowań wynikających z umów | E37: =0+'ZADANIOWY (3)'!J324 -> 0 | F37: =0+'ZADANIOWY (3)'!K324 -> 0 | G37: =0+'ZADANIOWY (3)'!L324 -> 0 | H37: =0+'ZADANIOWY (3)'!M324 -> 0 | I37: =0+'ZADANIOWY (3)'!N324 -> 0 | J37: =0+'ZADANIOWY (3)'!O324 -> 0 | K37: 0 | L37: 0
C38: 0940 | D38: Wpływy z rozliczeń/zwrotów z lat ubiegłych | E38: =0+'ZADANIOWY (3)'!J814 -> 0 | F38: =0+'ZADANIOWY (3)'!K814 -> 0 | G38: =0+'ZADANIOWY (3)'!L814 -> 0 | H38: =0+'ZADANIOWY (3)'!M814 -> 0 | I38: =0+'ZADANIOWY (3)'!N814 -> 0 | J38: =0+'ZADANIOWY (3)'!O814 -> 0 | K38: 0 | L38: 0
C39: 0970 | D39: Wpływy z różnych dochodów | E39: =0+'ZADANIOWY (3)'!J714+'ZADANIOWY (3)'!J830 -> 0 | F39: =0+'ZADANIOWY (3)'!K714+'ZADANIOWY (3)'!K830 -> 0 | G39: =0+'ZADANIOWY (3)'!L714+'ZADANIOWY (3)'!L830 -> 0 | H39: =0+'ZADANIOWY (3)'!M714+'ZADANIOWY (3)'!M830 -> 0 | I39: =0+'ZADANIOWY (3)'!N714+'ZADANIOWY (3)'!N830 -> 0 | J39: =0+'ZADANIOWY (3)'!O714+'ZADANIOWY (3)'!O830 -> 0 | K39: 0 | L39: 0
C40: 2008 | D40: Dotacje celowe w ramach programów finansowanych z udziałem środków europejskich oraz środków, o których mowa w art. 5 ust. 1 pkt 3 oraz ust. 3 pkt 5 i 6 ustawy, lub płatności w ramach budżetu środków europejskich, z wyłączeniem dochodów klasyfikowanych w paragrafie 205 | E40: =0+'ZADANIOWY (3)'!J1351+'ZADANIOWY (3)'!J1352 -> 0 | F40: =0+'ZADANIOWY (3)'!K1351+'ZADANIOWY (3)'!K1352 -> 0 | G40: =0+'ZADANIOWY (3)'!L1351+'ZADANIOWY (3)'!L1352 -> 0 | H40: =0+'ZADANIOWY (3)'!M1351+'ZADANIOWY (3)'!M1352 -> 0 | I40: =0+'ZADANIOWY (3)'!N1351+'ZADANIOWY (3)'!N1352 -> 0 | J40: =0+'ZADANIOWY (3)'!O1351+'ZADANIOWY (3)'!O1352 -> 0 | K40: 0 | L40: 0
C41: 2057 | D41: Dotacje celowe w ramach programów finansowanych z udziałem środków europejskich oraz środków, o których mowa w art. 5 ust. 3 pkt 5 lit. a i b ustawy, lub płatności w ramach budżetu środków europejskich, realizowanych przez jednostki samorządu terytorialnego | E41: =0+'ZADANIOWY (3)'!J1489 -> 0 | F41: =0+'ZADANIOWY (3)'!K1489 -> 0 | G41: =0+'ZADANIOWY (3)'!L1489 -> 0 | H41: =0+'ZADANIOWY (3)'!M1489 -> 0 | I41: =0+'ZADANIOWY (3)'!N1489 -> 0 | J41: =0+'ZADANIOWY (3)'!O1489 -> 0 | K41: 0 | L41: 0
C42: 2310 | D42: Dotacje celowe otrzymane z gminy na zadania bieżące realizowane na podstawie porozumień (umów) między jednostkami samorządu terytorialnego | E42: =0+'ZADANIOWY (3)'!J993 -> 0 | F42: =0+'ZADANIOWY (3)'!K993 -> 0 | G42: =0+'ZADANIOWY (3)'!L993 -> 0 | H42: =0+'ZADANIOWY (3)'!M993 -> 0 | I42: =0+'ZADANIOWY (3)'!N993 -> 0 | J42: =0+'ZADANIOWY (3)'!O993 -> 0 | K42: 0 | L42: 0
C43: 6207 | D43: Dotacje celowe w ramach programów finansowanych z udziałem środków europejskich oraz środków, o których mowa w art. 5 ust. 1 pkt 3 oraz ust. 3 pkt 5 i 6 ustawy, lub płatności w ramach budżetu środków europejskich, z wyłączeniem dochodów klasyfikowanych w paragrafie 625 | E43: =0+'ZADANIOWY (3)'!J1660+'ZADANIOWY (3)'!J1661 -> 0 | F43: =0+'ZADANIOWY (3)'!K1660+'ZADANIOWY (3)'!K1661 -> 0 | G43: =0+'ZADANIOWY (3)'!L1660+'ZADANIOWY (3)'!L1661 -> 0 | H43: =0+'ZADANIOWY (3)'!M1660+'ZADANIOWY (3)'!M1661 -> 0 | I43: =0+'ZADANIOWY (3)'!N1660+'ZADANIOWY (3)'!N1661 -> 0 | J43: =0+'ZADANIOWY (3)'!O1660+'ZADANIOWY (3)'!O1661 -> 0 | K43: 0 | L43: 0
C44: 6257 | D44: Dotacje celowe w ramach programów finansowanych z udziałem środków europejskich oraz środków, o których mowa w art. 5 ust. 3 pkt 5 lit. a i b ustawy, lub płatności w ramach budżetu środków europejskich, realizowanych przez jednostki samorządu terytorialnego | E44: =0+'ZADANIOWY (3)'!J1662+'ZADANIOWY (3)'!J1700 -> 0 | F44: =0+'ZADANIOWY (3)'!K1662+'ZADANIOWY (3)'!K1700 -> 0 | G44: =0+'ZADANIOWY (3)'!L1662+'ZADANIOWY (3)'!L1700 -> 0 | H44: =0+'ZADANIOWY (3)'!M1662+'ZADANIOWY (3)'!M1700 -> 0 | I44: =0+'ZADANIOWY (3)'!N1662+'ZADANIOWY (3)'!N1700 -> 0 | J44: =0+'ZADANIOWY (3)'!O1662+'ZADANIOWY (3)'!O1700 -> 0 | K44: 0 | L44: 0
C45: 6298 | D45: Środki na dofinansowanie własnych inwestycji gmin, powiatów (związków gmin, związków powiatowo-gminnych, związków powiatów), samorządów województw, pozyskane z innych źródeł | E45: =0 -> 0 | F45: =0 -> 0 | G45: =0 -> 0 | H45: =0 -> 0 | I45: =0 -> 0 | J45: =0 -> 0 | K45: 0 | L45: 0
B46: 60011 | D46: Drogi publiczne krajowe | E46: =SUM(E47:E54) -> 0 | F46: 0 | G46: 0 | H46: 0 | I46: 0 | J46: 0 | K46: 0 | L46: 0
C47: 0580 | D47: Wpływy z tytułu grzywien i innych kar pieniężnych od osób prawnych i innych jednostek organizacyjnych | E47: =0+'ZADANIOWY (3)'!J310 -> 0 | F47: =0+'ZADANIOWY (3)'!K310 -> 0 | G47: =0+'ZADANIOWY (3)'!L310 -> 0 | H47: =0+'ZADANIOWY (3)'!M310 -> 0 | I47: =0+'ZADANIOWY (3)'!N310 -> 0 | J47: =0+'ZADANIOWY (3)'!O310 -> 0 | K47: 0 | L47: 0
C48: 0970 | D48: Wpływy z różnych dochodów | E48: =0+'ZADANIOWY (3)'!J715 -> 0 | F48: =0+'ZADANIOWY (3)'!K715 -> 0 | G48: =0+'ZADANIOWY (3)'!L715 -> 0 | H48: =0+'ZADANIOWY (3)'!M715 -> 0 | I48: =0+'ZADANIOWY (3)'!N715 -> 0 | J48: =0+'ZADANIOWY (3)'!O715 -> 0 | K48: 0 | L48: 0
C49: 2057 | D49: Dotacje celowe w ramach programów finansowanych z udziałem środków europejskich oraz środków, o których mowa w art. 5 ust. 3 pkt 5 lit. a i b ustawy, lub płatności w ramach budżetu środków europejskich, realizowanych przez jednostki samorządu terytorialnego | E49: =0+'ZADANIOWY (3)'!J1490 -> 0 | F49: =0+'ZADANIOWY (3)'!K1490 -> 0 | G49: =0+'ZADANIOWY (3)'!L1490 -> 0 | H49: =0+'ZADANIOWY (3)'!M1490 -> 0 | I49: =0+'ZADANIOWY (3)'!N1490 -> 0 | J49: =0+'ZADANIOWY (3)'!O1490 -> 0 | K49: 0 | L49: 0
C50: 6207 | D50: Dotacje celowe w ramach programów finansowanych z udziałem środków europejskich oraz środków, o których mowa w art. 5 ust. 1 pkt 3 oraz ust. 3 pkt 5 i 6 ustawy, lub płatności w ramach budżetu środków europejskich, z wyłączeniem dochodów klasyfikowanych w paragrafie 625 | E50: =0+'ZADANIOWY (3)'!J1663+'ZADANIOWY (3)'!J1664+'ZADANIOWY (3)'!J1665+'ZADANIOWY (3)'!J1666+'ZADANIOWY (3)'!J1667+'ZADANIOWY (3)'!J1668 -> 0 | F50: =0+'ZADANIOWY (3)'!K1663+'ZADANIOWY (3)'!K1664+'ZADANIOWY (3)'!K1665+'ZADANIOWY (3)'!K1666+'ZADANIOWY (3)'!K1667+'ZADANIOWY (3)'!K1668 -> 0 | G50: =0+'ZADANIOWY (3)'!L1663+'ZADANIOWY (3)'!L1664+'ZADANIOWY (3)'!L1665+'ZADANIOWY (3)'!L1666+'ZADANIOWY (3)'!L1667+'ZADANIOWY (3)'!L1668 -> 0 | H50: =0+'ZADANIOWY (3)'!M1663+'ZADANIOWY (3)'!M1664+'ZADANIOWY (3)'!M1665+'ZADANIOWY (3)'!M1666+'ZADANIOWY (3)'!M1667+'ZADANIOWY (3)'!M1668 -> 0 | I50: =0+'ZADANIOWY (3)'!N1663+'ZADANIOWY (3)'!N1664+'ZADANIOWY (3)'!N1665+'ZADANIOWY (3)'!N1666+'ZADANIOWY (3)'!N1667+'ZADANIOWY (3)'!N1668 -> 0 | J50: =0+'ZADANIOWY (3)'!O1663+'ZADANIOWY (3)'!O1664+'ZADANIOWY (3)'!O1665+'ZADANIOWY (3)'!O1666+'ZADANIOWY (3)'!O1667+'ZADANIOWY (3)'!O1668 -> 0 | K50: 0 | L50: 0
C51: 6257 | D51: Dotacje celowe w ramach programów finansowanych z udziałem środków europejskich oraz środków, o których mowa w art. 5 ust. 3 pkt 5 lit. a i b ustawy, lub płatności w ramach budżetu środków europejskich, realizowanych przez jednostki samorządu terytorialnego | E51: =0+'ZADANIOWY (3)'!J1701 -> 0 | F51: =0+'ZADANIOWY (3)'!K1701 -> 0 | G51: =0+'ZADANIOWY (3)'!L1701 -> 0 | H51: =0+'ZADANIOWY (3)'!M1701 -> 0 | I51: =0+'ZADANIOWY (3)'!N1701 -> 0 | J51: =0+'ZADANIOWY (3)'!O1701 -> 0 | K51: 0 | L51: 0
C52: 6290 | D52: Środki na dofinansowanie własnych inwestycji gmin, powiatów (związków gmin, związków powiatowo-gminnych, związków powiatów), samorządów województw, pozyskane z innych źródeł | E52: =0+'ZADANIOWY (3)'!J1720 -> 0 | F52: =0+'ZADANIOWY (3)'!K1720 -> 0 | G52: =0+'ZADANIOWY (3)'!L1720 -> 0 | H52: =0+'ZADANIOWY (3)'!M1720 -> 0 | I52: =0+'ZADANIOWY (3)'!N1720 -> 0 | J52: =0+'ZADANIOWY (3)'!O1720 -> 0 | K52: 0 | L52: 0
C53: 6298 | D53: Środki na dofinansowanie własnych inwestycji gmin, powiatów (związków gmin, związków powiatowo-gminnych, związków powiatów), samorządów województw, pozyskane z innych źródeł | E53: =0 -> 0 | F53: =0 -> 0 | G53: =0 -> 0 | H53: =0 -> 0 | I53: =0 -> 0 | J53: =0 -> 0 | K53: 0 | L53: 0
C54: 6680 | D54: Wpłata środków finansowych z niewykorzystanych w terminie wydatków, które nie wygasają z upływem roku budżetowego | E54: =0+'ZADANIOWY (3)'!J1595 -> 0 | F54: =0+'ZADANIOWY (3)'!K1595 -> 0 | G54: =0+'ZADANIOWY (3)'!L1595 -> 0 | H54: =0+'ZADANIOWY (3)'!M1595 -> 0 | I54: =0+'ZADANIOWY (3)'!N1595 -> 0 | J54: =0+'ZADANIOWY (3)'!O1595 -> 0 | K54: 0 | L54: 0
B55: 60013 | D55: Drogi publiczne wojewódzkie | E55: =SUM(E56:E61) -> 0 | F55: 0 | G55: 0 | H55: 0 | I55: 0 | J55: 0 | K55: 0 | L55: 0
C56: 0920 | D56: Wpływy z pozostałych odsetek | E56: =0+'ZADANIOWY (3)'!J589 -> 0 | F56: =0+'ZADANIOWY (3)'!K589 -> 0 | G56: =0+'ZADANIOWY (3)'!L589 -> 0 | H56: =0+'ZADANIOWY (3)'!M589 -> 0 | I56: =0+'ZADANIOWY (3)'!N589 -> 0 | J56: =0+'ZADANIOWY (3)'!O589 -> 0 | K56: 0 | L56: 0
C57: 0970 | D57: Wpływy z różnych dochodów | E57: =0+'ZADANIOWY (3)'!J716 -> 0 | F57: =0+'ZADANIOWY (3)'!K716 -> 0 | G57: =0+'ZADANIOWY (3)'!L716 -> 0 | H57: =0+'ZADANIOWY (3)'!M716 -> 0 | I57: =0+'ZADANIOWY (3)'!N716 -> 0 | J57: =0+'ZADANIOWY (3)'!O716 -> 0 | K57: 0 | L57: 0
C58: 2057 | D58: Dotacje celowe w ramach programów finansowanych z udziałem środków europejskich oraz środków, o których mowa w art. 5 ust. 3 pkt 5 lit. a i b ustawy, lub płatności w ramach budżetu środków europejskich, realizowanych przez jednostki samorządu terytorialnego | E58: =0+'ZADANIOWY (3)'!J1491 -> 0 | F58: =0+'ZADANIOWY (3)'!K1491 -> 0 | G58: =0+'ZADANIOWY (3)'!L1491 -> 0 | H58: =0+'ZADANIOWY (3)'!M1491 -> 0 | I58: =0+'ZADANIOWY (3)'!N1491 -> 0 | J58: =0+'ZADANIOWY (3)'!O1491 -> 0 | K58: 0 | L58: 0
C59: 6257 | D59: Dotacje celowe w ramach programów finansowanych z udziałem środków europejskich oraz środków, o których mowa w art. 5 ust. 3 pkt 5 lit. a i b ustawy, lub płatności w ramach budżetu środków europejskich, realizowanych przez jednostki samorządu terytorialnego | E59: =0+'ZADANIOWY (3)'!J1702 -> 0 | F59: =0+'ZADANIOWY (3)'!K1702 -> 0 | G59: =0+'ZADANIOWY (3)'!L1702 -> 0 | H59: =0+'ZADANIOWY (3)'!M1702 -> 0 | I59: =0+'ZADANIOWY (3)'!N1702 -> 0 | J59: =0+'ZADANIOWY (3)'!O1702 -> 0 | K59: 0 | L59: 0
C60: 6298 | D60: Środki na dofinansowanie własnych inwestycji gmin, powiatów (związków gmin, związków powiatowo-gminnych, związków powiatów), samorządów województw, pozyskane z innych źródeł | E60: =0 -> 0 | F60: =0 -> 0 | G60: =0 -> 0 | H60: =0 -> 0 | I60: =0 -> 0 | J60: =0 -> 0 | K60: 0 | L60: 0
C61: 6680 | D61: Wpłata środków finansowych z niewykorzystanych w terminie wydatków, które nie wygasają z upływem roku budżetowego | E61: =0+'ZADANIOWY (3)'!J1596 -> 0 | F61: =0+'ZADANIOWY (3)'!K1596 -> 0 | G61: =0+'ZADANIOWY (3)'!L1596 -> 0 | H61: =0+'ZADANIOWY (3)'!M1596 -> 0 | I61: =0+'ZADANIOWY (3)'!N1596 -> 0 | J61: =0+'ZADANIOWY (3)'!O1596 -> 0 | K61: 0 | L61: 0
B62: 60014 | D62: Drogi publiczne powiatowe | E62: =SUM(E63:E70) -> 0 | F62: 0 | G62: 0 | H62: 0 | I62: 0 | J62: 0 | K62: 0 | L62: 0
C63: 0580 | D63: Wpływy z tytułu grzywien i innych kar pieniężnych od osób prawnych i innych jednostek organizacyjnych | E63: =0 -> 0 | F63: =0 -> 0 | G63: =0 -> 0 | H63: =0 -> 0 | I63: =0 -> 0 | J63: =0 -> 0 | K63: 0 | L63: 0
C64: 0920 | D64: Wpływy z pozostałych odsetek | E64: =0+'ZADANIOWY (3)'!J590 -> 0 | F64: =0+'ZADANIOWY (3)'!K590 -> 0 | G64: =0+'ZADANIOWY (3)'!L590 -> 0 | H64: =0+'ZADANIOWY (3)'!M590 -> 0 | I64: =0+'ZADANIOWY (3)'!N590 -> 0 | J64: =0+'ZADANIOWY (3)'!O590 -> 0 | K64: 0 | L64: 0
C65: 0970 | D65: Wpływy z różnych dochodów | E65: =0+'ZADANIOWY (3)'!J717 -> 0 | F65: =0+'ZADANIOWY (3)'!K717 -> 0 | G65: =0+'ZADANIOWY (3)'!L717 -> 0 | H65: =0+'ZADANIOWY (3)'!M717 -> 0 | I65: =0+'ZADANIOWY (3)'!N717 -> 0 | J65: =0+'ZADANIOWY (3)'!O717 -> 0 | K65: 0 | L65: 0
C66: 2030 | D66: Dotacje celowe otrzymane z budżetu państwa na realizację własnych zadań bieżących gmin (związków gmin, związków powiatowo-gminnych) | E66: =0+'ZADANIOWY (3)'!J1017 -> 0 | F66: =0+'ZADANIOWY (3)'!K1017 -> 0 | G66: =0+'ZADANIOWY (3)'!L1017 -> 0 | H66: =0+'ZADANIOWY (3)'!M1017 -> 0 | I66: =0+'ZADANIOWY (3)'!N1017 -> 0 | J66: =0+'ZADANIOWY (3)'!O1017 -> 0 | K66: 0 | L66: 0
C67: 6207 | D67: Dotacje celowe w ramach programów finansowanych z udziałem środków europejskich oraz środków, o których mowa w art. 5 ust. 1 pkt 3 oraz ust. 3 pkt 5 i 6 ustawy, lub płatności w ramach budżetu środków europejskich, z wyłączeniem dochodów klasyfikowanych w paragrafie 625 | E67: =0+'ZADANIOWY (3)'!J1669+'ZADANIOWY (3)'!J1670+'ZADANIOWY (3)'!J1671+'ZADANIOWY (3)'!J1672 -> 0 | F67: =0+'ZADANIOWY (3)'!K1669+'ZADANIOWY (3)'!K1670+'ZADANIOWY (3)'!K1671+'ZADANIOWY (3)'!K1672 -> 0 | G67: =0+'ZADANIOWY (3)'!L1669+'ZADANIOWY (3)'!L1670+'ZADANIOWY (3)'!L1671+'ZADANIOWY (3)'!L1672 -> 0 | H67: =0+'ZADANIOWY (3)'!M1669+'ZADANIOWY (3)'!M1670+'ZADANIOWY (3)'!M1671+'ZADANIOWY (3)'!M1672 -> 0 | I67: =0+'ZADANIOWY (3)'!N1669+'ZADANIOWY (3)'!N1670+'ZADANIOWY (3)'!N1671+'ZADANIOWY (3)'!N1672 -> 0 | J67: =0+'ZADANIOWY (3)'!O1669+'ZADANIOWY (3)'!O1670+'ZADANIOWY (3)'!O1671+'ZADANIOWY (3)'!O1672 -> 0 | K67: 0 | L67: 0
C68: 6290 | D68: Środki na dofinansowanie własnych inwestycji gmin, powiatów (związków gmin, związków powiatowo-gminnych, związków powiatów), samorządów województw, pozyskane z innych źródeł | E68: =0+'ZADANIOWY (3)'!J1721 -> 0 | F68: =0+'ZADANIOWY (3)'!K1721 -> 0 | G68: =0+'ZADANIOWY (3)'!L1721 -> 0 | H68: =0+'ZADANIOWY (3)'!M1721 -> 0 | I68: =0+'ZADANIOWY (3)'!N1721 -> 0 | J68: =0+'ZADANIOWY (3)'!O1721 -> 0 | K68: 0 | L68: 0
C69: 6298 | D69: Środki na dofinansowanie własnych inwestycji gmin, powiatów (związków gmin, związków powiatowo-gminnych, związków powiatów), samorządów województw, pozyskane z innych źródeł | E69: =0 -> 0 | F69: =0 -> 0 | G69: =0 -> 0 | H69: =0 -> 0 | I69: =0 -> 0 | J69: =0 -> 0 | K69: 0 | L69: 0 | M69: =IF(SUM(E69:L69)>0,"Tak","") ->  | O69: =IF(OR(E69<F69,K69<L69),"błędny urząd","") ->  | P69: =IF(OR(E69<0,F69<0,K69<0,L69<0),"ujemny plan","") -> 
C70: 6680 | D70: Wpłata środków finansowych z niewykorzystanych w terminie wydatków, które nie wygasają z upływem roku budżetowego | E70: =0+'ZADANIOWY (3)'!J1597 -> 0 | F70: =0+'ZADANIOWY (3)'!K1597 -> 0 | G70: =0+'ZADANIOWY (3)'!L1597 -> 0 | H70: =0+'ZADANIOWY (3)'!M1597 -> 0 | I70: =0+'ZADANIOWY (3)'!N1597 -> 0 | J70: =0+'ZADANIOWY (3)'!O1597 -> 0 | K70: 0 | L70: 0
B71: 60015 | D71: Drogi publiczne w miastach na prawach powiatu (w rozdziale nie ujmuje się wydatków na drogi gminne) | E71: =SUM(E72:E82) -> 0 | F71: 0 | G71: 0 | H71: 0 | I71: 0 | J71: 0 | K71: 0 | L71: 0
C72: 0580 | D72: Wpływy z tytułu grzywien i innych kar pieniężnych od osób prawnych i innych jednostek organizacyjnych | E72: =0 -> 0 | F72: =0 -> 0 | G72: =0 -> 0 | H72: =0 -> 0 | I72: =0 -> 0 | J72: =0 -> 0 | K72: 0 | L72: 0
C73: 0690 | D73: Wpływy z różnych opłat | E73: =0 -> 0 | F73: =0 -> 0 | G73: =0 -> 0 | H73: =0 -> 0 | I73: =0 -> 0 | J73: =0 -> 0 | K73: 0 | L73: 0
C74: 0750 | D74: Wpływy z najmu i dzierżawy składników majątkowych Skarbu Państwa, jednostek samorządu terytorialnego lub innych jednostek zaliczanych do sektora finansów publicznych oraz innych umów o podobnym charakterze | E74: =0+'ZADANIOWY (3)'!J61+'ZADANIOWY (3)'!J89+'ZADANIOWY (3)'!J92+'ZADANIOWY (3)'!J122+'ZADANIOWY (3)'!J150+'ZADANIOWY (3)'!J181+'ZADANIOWY (3)'!J213+'ZADANIOWY (3)'!J248 -> 0 | F74: =0+'ZADANIOWY (3)'!K61+'ZADANIOWY (3)'!K89+'ZADANIOWY (3)'!K92+'ZADANIOWY (3)'!K122+'ZADANIOWY (3)'!K150+'ZADANIOWY (3)'!K181+'ZADANIOWY (3)'!K213+'ZADANIOWY (3)'!K248 -> 0 | G74: =0+'ZADANIOWY (3)'!L61+'ZADANIOWY (3)'!L89+'ZADANIOWY (3)'!L92+'ZADANIOWY (3)'!L122+'ZADANIOWY (3)'!L150+'ZADANIOWY (3)'!L181+'ZADANIOWY (3)'!L213+'ZADANIOWY (3)'!L248 -> 0 | H74: =0+'ZADANIOWY (3)'!M61+'ZADANIOWY (3)'!M89+'ZADANIOWY (3)'!M92+'ZADANIOWY (3)'!M122+'ZADANIOWY (3)'!M150+'ZADANIOWY (3)'!M181+'ZADANIOWY (3)'!M213+'ZADANIOWY (3)'!M248 -> 0 | I74: =0+'ZADANIOWY (3)'!N61+'ZADANIOWY (3)'!N89+'ZADANIOWY (3)'!N92+'ZADANIOWY (3)'!N122+'ZADANIOWY (3)'!N150+'ZADANIOWY (3)'!N181+'ZADANIOWY (3)'!N213+'ZADANIOWY (3)'!N248 -> 0 | J74: =0+'ZADANIOWY (3)'!O61+'ZADANIOWY (3)'!O89+'ZADANIOWY (3)'!O92+'ZADANIOWY (3)'!O122+'ZADANIOWY (3)'!O150+'ZADANIOWY (3)'!O181+'ZADANIOWY (3)'!O213+'ZADANIOWY (3)'!O248 -> 0 | K74: 0 | L74: 0
C75: 0830 | D75: Wpływy z usług | E75: =0+'ZADANIOWY (3)'!J455+'ZADANIOWY (3)'!J492 -> 0 | F75: =0+'ZADANIOWY (3)'!K455+'ZADANIOWY (3)'!K492 -> 0 | G75: =0+'ZADANIOWY (3)'!L455+'ZADANIOWY (3)'!L492 -> 0 | H75: =0+'ZADANIOWY (3)'!M455+'ZADANIOWY (3)'!M492 -> 0 | I75: =0+'ZADANIOWY (3)'!N455+'ZADANIOWY (3)'!N492 -> 0 | J75: =0+'ZADANIOWY (3)'!O455+'ZADANIOWY (3)'!O492 -> 0 | K75: 0 | L75: 0
C76: 0920 | D76: Wpływy z pozostałych odsetek | E76: =0+'ZADANIOWY (3)'!J591 -> 0 | F76: =0+'ZADANIOWY (3)'!K591 -> 0 | G76: =0+'ZADANIOWY (3)'!L591 -> 0 | H76: =0+'ZADANIOWY (3)'!M591 -> 0 | I76: =0+'ZADANIOWY (3)'!N591 -> 0 | J76: =0+'ZADANIOWY (3)'!O591 -> 0 | K76: 0 | L76: 0
C77: 0940 | D77: Wpływy z rozliczeń/zwrotów z lat ubiegłych | E77: =0+'ZADANIOWY (3)'!J674 -> 0 | F77: =0+'ZADANIOWY (3)'!K674 -> 0 | G77: =0+'ZADANIOWY (3)'!L674 -> 0 | H77: =0+'ZADANIOWY (3)'!M674 -> 0 | I77: =0+'ZADANIOWY (3)'!N674 -> 0 | J77: =0+'ZADANIOWY (3)'!O674 -> 0 | K77: 0 | L77: 0
C78: 0970 | D78: Wpływy z różnych dochodów | E78: =0+'ZADANIOWY (3)'!J718 -> 0 | F78: =0+'ZADANIOWY (3)'!K718 -> 0 | G78: =0+'ZADANIOWY (3)'!L718 -> 0 | H78: =0+'ZADANIOWY (3)'!M718 -> 0 | I78: =0+'ZADANIOWY (3)'!N718 -> 0 | J78: =0+'ZADANIOWY (3)'!O718 -> 0 | K78: 0 | L78: 0
C79: 2058 | D79: Dotacje celowe w ramach programów finansowanych z udziałem środków europejskich oraz środków, o których mowa w art. 5 ust. 3 pkt 5 lit. a i b ustawy, lub płatności w ramach budżetu środków europejskich, realizowanych przez jednostki samorządu terytorialnego | E79: =0+'ZADANIOWY (3)'!J1500 -> 0 | F79: =0+'ZADANIOWY (3)'!K1500 -> 0 | G79: =0+'ZADANIOWY (3)'!L1500 -> 0 | H79: =0+'ZADANIOWY (3)'!M1500 -> 0 | I79: =0+'ZADANIOWY (3)'!N1500 -> 0 | J79: =0+'ZADANIOWY (3)'!O1500 -> 0 | K79: 0 | L79: 0
C80: 6290 | D80: Środki na dofinansowanie własnych inwestycji gmin, powiatów (związków gmin, związków powiatowo-gminnych, związków powiatów), samorządów województw, pozyskane z innych źródeł | E80: =0+'ZADANIOWY (3)'!J1722 -> 0 | F80: =0+'ZADANIOWY (3)'!K1722 -> 0 | G80: =0+'ZADANIOWY (3)'!L1722 -> 0 | H80: =0+'ZADANIOWY (3)'!M1722 -> 0 | I80: =0+'ZADANIOWY (3)'!N1722 -> 0 | J80: =0+'ZADANIOWY (3)'!O1722 -> 0 | K80: 0 | L80: 0
C81: 6298 | D81: Środki na dofinansowanie własnych inwestycji gmin, powiatów (związków gmin, związków powiatowo-gminnych, związków powiatów), samorządów województw, pozyskane z innych źródeł | E81: =0 -> 0 | F81: =0 -> 0 | G81: =0 -> 0 | H81: =0 -> 0 | I81: =0 -> 0 | J81: =0 -> 0 | K81: 0 | L81: 0
C82: 6680 | D82: Wpłata środków finansowych z niewykorzystanych w terminie wydatków, które nie wygasają z upływem roku budżetowego | E82: =0+'ZADANIOWY (3)'!J1598 -> 0 | F82: =0+'ZADANIOWY (3)'!K1598 -> 0 | G82: =0+'ZADANIOWY (3)'!L1598 -> 0 | H82: =0+'ZADANIOWY (3)'!M1598 -> 0 | I82: =0+'ZADANIOWY (3)'!N1598 -> 0 | J82: =0+'ZADANIOWY (3)'!O1598 -> 0 | K82: 0 | L82: 0
B83: 60016 | D83: Drogi publiczne gminne | E83: =SUM(E84:E95) -> 9797243 | F83: =SUM(F84:F95) -> 0 | G83: 0 | H83: 0 | I83: 0 | J83: 0 | K83: 9797243 | L83: 0 | M83: Tak
C84: 0570 | D84: Wpływy z tytułu grzywien, mandatów i innych kar pieniężnych od osób fizycznych | E84: =0+'ZADANIOWY (3)'!J292 -> 230000 | F84: =0+'ZADANIOWY (3)'!K292 -> 0 | G84: =0+'ZADANIOWY (3)'!L292 -> 0 | H84: =0+'ZADANIOWY (3)'!M292 -> 0 | I84: =0+'ZADANIOWY (3)'!N292 -> 0 | J84: =0+'ZADANIOWY (3)'!O292 -> 0 | K84: =E84-G84+H84 -> 230000 | L84: =F84-I84+J84 -> 0 | M84: =IF(SUM(E84:L84)>0,"Tak","") -> Tak | N84: =IF(SUM(G84:J84)>0,"Tak","") -> 
C85: 0580 | D85: Wpływy z tytułu grzywien i innych kar pieniężnych od osób prawnych i innych jednostek organizacyjnych | E85: =0+'ZADANIOWY (3)'!J311 -> 1005000 | F85: =0+'ZADANIOWY (3)'!K311 -> 0 | G85: =0+'ZADANIOWY (3)'!L311 -> 0 | H85: =0+'ZADANIOWY (3)'!M311 -> 0 | I85: =0+'ZADANIOWY (3)'!N311 -> 0 | J85: =0+'ZADANIOWY (3)'!O311 -> 0 | K85: 1005000 | L85: 0 | M85: Tak
C86: 0620 | D86: Wpływy z opłat za zezwolenia, akredytacje oraz opłaty ewidencyjne, w tym opłaty za częstotliwości | E86: =0+'ZADANIOWY (3)'!J435 -> 8500000 | F86: =0+'ZADANIOWY (3)'!K435 -> 0 | G86: =0+'ZADANIOWY (3)'!L435 -> 0 | H86: =0+'ZADANIOWY (3)'!M435 -> 0 | I86: =0+'ZADANIOWY (3)'!N435 -> 0 | J86: =0+'ZADANIOWY (3)'!O435 -> 0 | K86: 8500000 | L86: 0 | M86: =IF(SUM(E86:L86)>0,"Tak","") -> Tak | N86: =IF(SUM(G86:J86)>0,"Tak","") -> 
C87: 0870 | D87: Wpływy ze sprzedaży składników majątkowych | E87: =0+'ZADANIOWY (3)'!J1560 -> 0 | F87: =0+'ZADANIOWY (3)'!K1560 -> 0 | G87: =0+'ZADANIOWY (3)'!L1560 -> 0 | H87: =0+'ZADANIOWY (3)'!M1560 -> 0 | I87: =0+'ZADANIOWY (3)'!N1560 -> 0 | J87: =0+'ZADANIOWY (3)'!O1560 -> 0 | K87: 0 | L87: 0
C88: 0750 | D88: Wpływy z najmu i dzierżawy składników majątkowych Skarbu Państwa, jednostek samorządu terytorialnego lub innych jednostek zaliczanych do sektora finansów publicznych oraz innych umów o podobnym charakterze | E88: =0+'ZADANIOWY (3)'!J62+'ZADANIOWY (3)'!J93+'ZADANIOWY (3)'!J123+'ZADANIOWY (3)'!J151+'ZADANIOWY (3)'!J182+'ZADANIOWY (3)'!J214+'ZADANIOWY (3)'!J249 -> 0 | F88: =0+'ZADANIOWY (3)'!K62+'ZADANIOWY (3)'!K93+'ZADANIOWY (3)'!K123+'ZADANIOWY (3)'!K151+'ZADANIOWY (3)'!K182+'ZADANIOWY (3)'!K214+'ZADANIOWY (3)'!K249 -> 0 | G88: =0+'ZADANIOWY (3)'!L62+'ZADANIOWY (3)'!L93+'ZADANIOWY (3)'!L123+'ZADANIOWY (3)'!L151+'ZADANIOWY (3)'!L182+'ZADANIOWY (3)'!L214+'ZADANIOWY (3)'!L249 -> 0 | H88: =0+'ZADANIOWY (3)'!M62+'ZADANIOWY (3)'!M93+'ZADANIOWY (3)'!M123+'ZADANIOWY (3)'!M151+'ZADANIOWY (3)'!M182+'ZADANIOWY (3)'!M214+'ZADANIOWY (3)'!M249 -> 0 | I88: =0+'ZADANIOWY (3)'!N62+'ZADANIOWY (3)'!N93+'ZADANIOWY (3)'!N123+'ZADANIOWY (3)'!N151+'ZADANIOWY (3)'!N182+'ZADANIOWY (3)'!N214+'ZADANIOWY (3)'!N249 -> 0 | J88: =0+'ZADANIOWY (3)'!O62+'ZADANIOWY (3)'!O93+'ZADANIOWY (3)'!O123+'ZADANIOWY (3)'!O151+'ZADANIOWY (3)'!O182+'ZADANIOWY (3)'!O214+'ZADANIOWY (3)'!O249 -> 0 | K88: 0 | L88: 0
C89: 0920 | D89: Wpływy z pozostałych odsetek | E89: =0+'ZADANIOWY (3)'!J592 -> 62243 | F89: =0+'ZADANIOWY (3)'!K592 -> 0 | G89: =0+'ZADANIOWY (3)'!L592 -> 0 | H89: =0+'ZADANIOWY (3)'!M592 -> 0 | I89: =0+'ZADANIOWY (3)'!N592 -> 0 | J89: =0+'ZADANIOWY (3)'!O592 -> 0 | K89: 62243 | L89: 0 | M89: Tak
C90: 0940 | D90: Wpływy z rozliczeń/zwrotów z lat ubiegłych | E90: =0+'ZADANIOWY (3)'!J815 -> 0 | F90: =0+'ZADANIOWY (3)'!K815 -> 0 | G90: =0+'ZADANIOWY (3)'!L815 -> 0 | H90: =0+'ZADANIOWY (3)'!M815 -> 0 | I90: =0+'ZADANIOWY (3)'!N815 -> 0 | J90: =0+'ZADANIOWY (3)'!O815 -> 0 | K90: 0 | L90: 0
C91: 0960 | D91: Wpływy z otrzymanych spadków, zapisów i darowizn w postaci pieniężnej | E91: =0+'ZADANIOWY (3)'!J660 -> 0 | F91: =0+'ZADANIOWY (3)'!K660 -> 0 | G91: =0+'ZADANIOWY (3)'!L660 -> 0 | H91: =0+'ZADANIOWY (3)'!M660 -> 0 | I91: =0+'ZADANIOWY (3)'!N660 -> 0 | J91: =0+'ZADANIOWY (3)'!O660 -> 0 | K91: 0 | L91: 0
C92: 0970 | D92: Wpływy z różnych dochodów | E92: =0+'ZADANIOWY (3)'!J719+'ZADANIOWY (3)'!J831 -> 0 | F92: =0+'ZADANIOWY (3)'!K719+'ZADANIOWY (3)'!K831 -> 0 | G92: =0+'ZADANIOWY (3)'!L719+'ZADANIOWY (3)'!L831 -> 0 | H92: =0+'ZADANIOWY (3)'!M719+'ZADANIOWY (3)'!M831 -> 0 | I92: =0+'ZADANIOWY (3)'!N719+'ZADANIOWY (3)'!N831 -> 0 | J92: =0+'ZADANIOWY (3)'!O719+'ZADANIOWY (3)'!O831 -> 0 | K92: 0 | L92: 0
C93: 2700 | D93: Środki na dofinansowanie własnych zadań bieżących gmin, powiatów (związków gmin, związków powiatowo-gminnych, związków powiatów), samorządów województw, pozyskane z innych źródeł | E93: =0+'ZADANIOWY (3)'!J904 -> 0 | F93: =0+'ZADANIOWY (3)'!K904 -> 0 | G93: =0+'ZADANIOWY (3)'!L904 -> 0 | H93: =0+'ZADANIOWY (3)'!M904 -> 0 | I93: =0+'ZADANIOWY (3)'!N904 -> 0 | J93: =0+'ZADANIOWY (3)'!O904 -> 0 | K93: 0 | L93: 0
C94: 6290 | D94: Środki na dofinansowanie własnych inwestycji gmin, powiatów (związków gmin, związków powiatowo-gminnych, związków powiatów), samorządów województw, pozyskane z innych źródeł | E94: =0+'ZADANIOWY (3)'!J1723 -> 0 | F94: =0+'ZADANIOWY (3)'!K1723 -> 0 | G94: =0+'ZADANIOWY (3)'!L1723 -> 0 | H94: =0+'ZADANIOWY (3)'!M1723 -> 0 | I94: =0+'ZADANIOWY (3)'!N1723 -> 0 | J94: =0+'ZADANIOWY (3)'!O1723 -> 0 | K94: 0 | L94: 0
C95: 6680 | D95: Wpłata środków finansowych z niewykorzystanych w terminie wydatków, które nie wygasają z upływem roku budżetowego | E95: =0+'ZADANIOWY (3)'!J1599 -> 0 | F95: =0+'ZADANIOWY (3)'!K1599 -> 0 | G95: =0+'ZADANIOWY (3)'!L1599 -> 0 | H95: =0+'ZADANIOWY (3)'!M1599 -> 0 | I95: =0+'ZADANIOWY (3)'!N1599 -> 0 | J95: =0+'ZADANIOWY (3)'!O1599 -> 0 | K95: 0 | L95: 0
B96: 60019 | D96: Płatne parkowanie | E96: =SUM(E97:E99) -> 5044200 | F96: =SUM(F97:F99) -> 0 | G96: 0 | H96: 0 | I96: 0 | J96: 0 | K96: 5044200 | L96: 0 | M96: Tak | N96: =IF(SUM(G96:J96)>0,"Tak","") -> 
C97: 0690 | D97: Wpływy z różnych opłat | E97: =0+'ZADANIOWY (3)'!J406+'ZADANIOWY (3)'!J444 -> 5040000 | F97: =0+'ZADANIOWY (3)'!K406+'ZADANIOWY (3)'!K444 -> 0 | G97: =0+'ZADANIOWY (3)'!L406+'ZADANIOWY (3)'!L444 -> 0 | H97: =0+'ZADANIOWY (3)'!M406+'ZADANIOWY (3)'!M444 -> 0 | I97: =0+'ZADANIOWY (3)'!N406+'ZADANIOWY (3)'!N444 -> 0 | J97: =0+'ZADANIOWY (3)'!O406+'ZADANIOWY (3)'!O444 -> 0 | K97: =E97-G97+H97 -> 5040000 | L97: =F97-I97+J97 -> 0 | M97: Tak
C98: 0920 | D98: Wpływy z pozostałych odsetek | E98: =0+'ZADANIOWY (3)'!J593 -> 0 | F98: =0+'ZADANIOWY (3)'!K593 -> 0 | G98: =0+'ZADANIOWY (3)'!L593 -> 0 | H98: =0+'ZADANIOWY (3)'!M593 -> 0 | I98: =0+'ZADANIOWY (3)'!N593 -> 0 | J98: =0+'ZADANIOWY (3)'!O593 -> 0 | K98: 0 | L98: 0
C99: 0970 | D99: Wpływy z różnych dochodów | E99: =0+'ZADANIOWY (3)'!J720 -> 4200 | F99: =0+'ZADANIOWY (3)'!K720 -> 0 | G99: =0+'ZADANIOWY (3)'!L720 -> 0 | H99: =0+'ZADANIOWY (3)'!M720 -> 0 | I99: =0+'ZADANIOWY (3)'!N720 -> 0 | J99: =0+'ZADANIOWY (3)'!O720 -> 0 | K99: 4200 | L99: 0 | M99: =IF(SUM(E99:L99)>0,"Tak","") -> Tak | N99: =IF(SUM(G99:J99)>0,"Tak","") -> 
B100: 60020 | D100: Funkcjonowanie przystanków komunikacyjnych | E100: =SUM(E101:E102) -> 0 | F100: 0 | G100: 0 | H100: 0 | I100: 0 | J100: 0 | K100: 0 | L100: 0
C101: 0750 | D101: Wpływy z najmu i dzierżawy składników majątkowych Skarbu Państwa, jednostek samorządu terytorialnego lub innych jednostek zaliczanych do sektora finansów publicznych oraz innych umów o podobnym charakterze | E101: =0+'ZADANIOWY (3)'!J215 -> 0 | F101: =0+'ZADANIOWY (3)'!K215 -> 0 | G101: =0+'ZADANIOWY (3)'!L215 -> 0 | H101: =0+'ZADANIOWY (3)'!M215 -> 0 | I101: =0+'ZADANIOWY (3)'!N215 -> 0 | J101: =0+'ZADANIOWY (3)'!O215 -> 0 | K101: 0 | L101: 0
C102: 0920 | D102: Wpływy z pozostałych odsetek | E102: =0+'ZADANIOWY (3)'!J594 -> 0 | F102: =0+'ZADANIOWY (3)'!K594 -> 0 | G102: =0+'ZADANIOWY (3)'!L594 -> 0 | H102: =0+'ZADANIOWY (3)'!M594 -> 0 | I102: =0+'ZADANIOWY (3)'!N594 -> 0 | J102: =0+'ZADANIOWY (3)'!O594 -> 0 | K102: 0 | L102: 0
B103: 60021 | D103: Funkcjonowanie dworców i węzłów przesiadkowych | E103: =SUM(E104:E105) -> 0 | F103: 0 | G103: 0 | H103: 0 | I103: 0 | J103: 0 | K103: 0 | L103: 0
C104: 0750 | D104: Wpływy z najmu i dzierżawy składników majątkowych Skarbu Państwa, jednostek samorządu terytorialnego lub innych jednostek zaliczanych do sektora finansów publicznych oraz innych umów o podobnym charakterze | E104: =0+'ZADANIOWY (3)'!J216 -> 0 | F104: =0+'ZADANIOWY (3)'!K216 -> 0 | G104: =0+'ZADANIOWY (3)'!L216 -> 0 | H104: =0+'ZADANIOWY (3)'!M216 -> 0 | I104: =0+'ZADANIOWY (3)'!N216 -> 0 | J104: =0+'ZADANIOWY (3)'!O216 -> 0 | K104: 0 | L104: 0
C105: 0920 | D105: Wpływy z pozostałych odsetek | E105: =0+'ZADANIOWY (3)'!J595 -> 0 | F105: =0+'ZADANIOWY (3)'!K595 -> 0 | G105: =0+'ZADANIOWY (3)'!L595 -> 0 | H105: =0+'ZADANIOWY (3)'!M595 -> 0 | I105: =0+'ZADANIOWY (3)'!N595 -> 0 | J105: =0+'ZADANIOWY (3)'!O595 -> 0 | K105: 0 | L105: 0
B106: 60022 | D106: Funkcjonowanie systemów rowerów publicznych | E106: =SUM(E107:E108) -> 0 | F106: 0 | G106: 0 | H106: 0 | I106: 0 | J106: 0 | K106: 0 | L106: 0
C107: 0690 | D107: Wpływy z różnych opłat | E107: =0+'ZADANIOWY (3)'!J447 -> 0 | F107: =0+'ZADANIOWY (3)'!K447 -> 0 | G107: =0+'ZADANIOWY (3)'!L447 -> 0 | H107: =0+'ZADANIOWY (3)'!M447 -> 0 | I107: =0+'ZADANIOWY (3)'!N447 -> 0 | J107: =0+'ZADANIOWY (3)'!O447 -> 0 | K107: 0 | L107: 0
C108: 0920 | D108: Wpływy z pozostałych odsetek | E108: =0+'ZADANIOWY (3)'!J596 -> 0 | F108: =0+'ZADANIOWY (3)'!K596 -> 0 | G108: =0+'ZADANIOWY (3)'!L596 -> 0 | H108: =0+'ZADANIOWY (3)'!M596 -> 0 | I108: =0+'ZADANIOWY (3)'!N596 -> 0 | J108: =0+'ZADANIOWY (3)'!O596 -> 0 | K108: 0 | L108: 0
B109: 60078 | D109: Usuwanie skutków klęsk żywiołowych | E109: =SUM(E110) -> 0 | F109: 0 | G109: 0 | H109: 0 | I109: 0 | J109: 0 | K109: 0 | L109: 0
C110: 2030 | D110: Dotacje celowe otrzymane z budżetu państwa na realizację własnych zadań bieżących gmin (związków gmin, związków powiatowo-gminnych) | E110: =0+'ZADANIOWY (3)'!J1018 -> 0 | F110: =0+'ZADANIOWY (3)'!K1018 -> 0 | G110: =0+'ZADANIOWY (3)'!L1018 -> 0 | H110: =0+'ZADANIOWY (3)'!M1018 -> 0 | I110: =0+'ZADANIOWY (3)'!N1018 -> 0 | J110: =0+'ZADANIOWY (3)'!O1018 -> 0 | K110: 0 | L110: 0
B111: 60095 | D111: Pozostała działalność | E111: =SUM(E112:E130) -> 0 | F111: 0 | G111: 0 | H111: 0 | I111: 0 | J111: 0 | K111: 0 | L111: 0
C112: 0570 | D112: Wpływy z tytułu grzywien, mandatów i innych kar pieniężnych od osób fizycznych | K112: 0 | L112: 0
C113: 0610 | D113: Wpływy z opłat egzaminacyjnych oraz opłat za wydawanie świadectw, dyplomów, zaświadczeń, certyfikatów i ich duplikatów | E113: =0+'ZADANIOWY (3)'!J363+'ZADANIOWY (3)'!J364 -> 0 | F113: =0+'ZADANIOWY (3)'!K363+'ZADANIOWY (3)'!K364 -> 0 | G113: =0+'ZADANIOWY (3)'!L363+'ZADANIOWY (3)'!L364 -> 0 | H113: =0+'ZADANIOWY (3)'!M363+'ZADANIOWY (3)'!M364 -> 0 | I113: =0+'ZADANIOWY (3)'!N363+'ZADANIOWY (3)'!N364 -> 0 | J113: =0+'ZADANIOWY (3)'!O363+'ZADANIOWY (3)'!O364 -> 0 | K113: 0 | L113: 0
C114: 0640 | D114: Wpływy z tytułu kosztów egzekucyjnych, opłaty komorniczej i kosztów upomnień | E114: =0+'ZADANIOWY (3)'!J380 -> 0 | F114: =0+'ZADANIOWY (3)'!K380 -> 0 | G114: =0+'ZADANIOWY (3)'!L380 -> 0 | H114: =0+'ZADANIOWY (3)'!M380 -> 0 | I114: =0+'ZADANIOWY (3)'!N380 -> 0 | J114: =0+'ZADANIOWY (3)'!O380 -> 0 | K114: 0 | L114: 0
C115: 0620 | D115: Wpływy z opłat za zezwolenia, akredytacje oraz opłaty ewidencyjne, w tym opłaty za częstotliwości | E115: =0+'ZADANIOWY (3)'!J377 -> 0 | F115: =0+'ZADANIOWY (3)'!K377 -> 0 | G115: =0+'ZADANIOWY (3)'!L377 -> 0 | H115: =0+'ZADANIOWY (3)'!M377 -> 0 | I115: =0+'ZADANIOWY (3)'!N377 -> 0 | J115: =0+'ZADANIOWY (3)'!O377 -> 0 | K115: 0 | L115: 0
C116: 0690 | D116: Wpływy z różnych opłat | E116: =0+'ZADANIOWY (3)'!J407+'ZADANIOWY (3)'!J408+'ZADANIOWY (3)'!J438 -> 0 | F116: =0+'ZADANIOWY (3)'!K407+'ZADANIOWY (3)'!K408+'ZADANIOWY (3)'!K438 -> 0 | G116: =0+'ZADANIOWY (3)'!L407+'ZADANIOWY (3)'!L408+'ZADANIOWY (3)'!L438 -> 0 | H116: =0+'ZADANIOWY (3)'!M407+'ZADANIOWY (3)'!M408+'ZADANIOWY (3)'!M438 -> 0 | I116: =0+'ZADANIOWY (3)'!N407+'ZADANIOWY (3)'!N408+'ZADANIOWY (3)'!N438 -> 0 | J116: =0+'ZADANIOWY (3)'!O407+'ZADANIOWY (3)'!O408+'ZADANIOWY (3)'!O438 -> 0 | K116: 0 | L116: 0
C117: 0880 | D117: Wpływy z opłaty prolongacyjnej | E117: =0+'ZADANIOWY (3)'!J43 -> 0 | F117: =0+'ZADANIOWY (3)'!K43 -> 0 | G117: =0+'ZADANIOWY (3)'!L43 -> 0 | H117: =0+'ZADANIOWY (3)'!M43 -> 0 | I117: =0+'ZADANIOWY (3)'!N43 -> 0 | J117: =0+'ZADANIOWY (3)'!O43 -> 0 | K117: 0 | L117: 0
C118: 0910 | D118: Wpływy z odsetek od nieterminowych wpłat z tytułu podatków i opłat | E118: =0+'ZADANIOWY (3)'!J576 -> 0 | F118: =0+'ZADANIOWY (3)'!K576 -> 0 | G118: =0+'ZADANIOWY (3)'!L576 -> 0 | H118: =0+'ZADANIOWY (3)'!M576 -> 0 | I118: =0+'ZADANIOWY (3)'!N576 -> 0 | J118: =0+'ZADANIOWY (3)'!O576 -> 0 | K118: 0 | L118: 0
C119: 0920 | D119: Wpływy z pozostałych odsetek | E119: =0+'ZADANIOWY (3)'!J597 -> 0 | F119: =0+'ZADANIOWY (3)'!K597 -> 0 | G119: =0+'ZADANIOWY (3)'!L597 -> 0 | H119: =0+'ZADANIOWY (3)'!M597 -> 0 | I119: =0+'ZADANIOWY (3)'!N597 -> 0 | J119: =0+'ZADANIOWY (3)'!O597 -> 0 | K119: 0 | L119: 0
C120: 0970 | D120: Wpływy z różnych dochodów | E120: =0+'ZADANIOWY (3)'!J721 -> 0 | F120: =0+'ZADANIOWY (3)'!K721 -> 0 | G120: =0+'ZADANIOWY (3)'!L721 -> 0 | H120: =0+'ZADANIOWY (3)'!M721 -> 0 | I120: =0+'ZADANIOWY (3)'!N721 -> 0 | J120: =0+'ZADANIOWY (3)'!O721 -> 0 | K120: 0 | L120: 0
C121: 2007 | D121: Dotacje celowe w ramach programów finansowanych z udziałem środków europejskich oraz środków, o których mowa w art. 5 ust. 1 pkt 3 oraz ust. 3 pkt 5 i 6 ustawy, lub płatności w ramach budżetu środków europejskich, z wyłączeniem dochodów klasyfikowanych w paragrafie 205 | E121: =0+'ZADANIOWY (3)'!J1199 -> 0 | F121: =0+'ZADANIOWY (3)'!K1199 -> 0 | G121: =0+'ZADANIOWY (3)'!L1199 -> 0 | H121: =0+'ZADANIOWY (3)'!M1199 -> 0 | I121: =0+'ZADANIOWY (3)'!N1199 -> 0 | J121: =0+'ZADANIOWY (3)'!O1199 -> 0 | K121: 0 | L121: 0
C122: 2009 | D122: Dotacje celowe w ramach programów finansowanych z udziałem środków europejskich oraz środków, o których mowa w art. 5 ust. 1 pkt 3 oraz ust. 3 pkt 5 i 6 ustawy, lub płatności w ramach budżetu środków europejskich, z wyłączeniem dochodów klasyfikowanych w paragrafie 205 | E122: =0+'ZADANIOWY (3)'!J1380 -> 0 | F122: =0+'ZADANIOWY (3)'!K1380 -> 0 | G122: =0+'ZADANIOWY (3)'!L1380 -> 0 | H122: =0+'ZADANIOWY (3)'!M1380 -> 0 | I122: =0+'ZADANIOWY (3)'!N1380 -> 0 | J122: =0+'ZADANIOWY (3)'!O1380 -> 0 | K122: 0 | L122: 0
C123: 2010 | D123: Dotacje celowe otrzymane z budżetu państwa na realizację zadań bieżących z zakresu administracji rządowej oraz innych zadań zleconych gminie (związkom gmin, związkom powiatowo-gminnym) ustawami | E123: =0+'ZADANIOWY (3)'!J1055 -> 0 | F123: =0+'ZADANIOWY (3)'!K1055 -> 0 | G123: =0+'ZADANIOWY (3)'!L1055 -> 0 | H123: =0+'ZADANIOWY (3)'!M1055 -> 0 | I123: =0+'ZADANIOWY (3)'!N1055 -> 0 | J123: =0+'ZADANIOWY (3)'!O1055 -> 0 | K123: 0 | L123: 0
C124: 2110 | D124: Dotacje celowe otrzymane z budżetu państwa na zadania bieżące z zakresu administracji rządowej oraz inne zadania zlecone ustawami realizowane przez powiat | E124: =0+'ZADANIOWY (3)'!J1093 -> 0 | F124: =0+'ZADANIOWY (3)'!K1093 -> 0 | G124: =0+'ZADANIOWY (3)'!L1093 -> 0 | H124: =0+'ZADANIOWY (3)'!M1093 -> 0 | I124: =0+'ZADANIOWY (3)'!N1093 -> 0 | J124: =0+'ZADANIOWY (3)'!O1093 -> 0 | K124: 0 | L124: 0
C125: 2370 | D125: Wpływy do budżetu nadwyżki środków obrotowych samorządowego zakładu budżetowego | E125: =0+'ZADANIOWY (3)'!J862 -> 0 | F125: =0+'ZADANIOWY (3)'!K862 -> 0 | G125: =0+'ZADANIOWY (3)'!L862 -> 0 | H125: =0+'ZADANIOWY (3)'!M862 -> 0 | I125: =0+'ZADANIOWY (3)'!N862 -> 0 | J125: =0+'ZADANIOWY (3)'!O862 -> 0 | K125: 0 | L125: 0
C126: 6207 | D126: Dotacje celowe w ramach programów finansowanych z udziałem środków europejskich oraz środków, o których mowa w art. 5 ust. 1 pkt 3 oraz ust. 3 pkt 5 i 6 ustawy, lub płatności w ramach budżetu środków europejskich, z wyłączeniem dochodów klasyfikowanych w paragrafie 625 | E126: =0+'ZADANIOWY (3)'!J1673+'ZADANIOWY (3)'!J1689 -> 0 | F126: =0+'ZADANIOWY (3)'!K1673+'ZADANIOWY (3)'!K1689 -> 0 | G126: =0+'ZADANIOWY (3)'!L1673+'ZADANIOWY (3)'!L1689 -> 0 | H126: =0+'ZADANIOWY (3)'!M1673+'ZADANIOWY (3)'!M1689 -> 0 | I126: =0+'ZADANIOWY (3)'!N1673+'ZADANIOWY (3)'!N1689 -> 0 | J126: =0+'ZADANIOWY (3)'!O1673+'ZADANIOWY (3)'!O1689 -> 0 | K126: 0 | L126: 0
C127: 6257 | D127: Dotacje celowe w ramach programów finansowanych z udziałem środków europejskich oraz środków, o których mowa w art. 5 ust. 3 pkt 5 lit. a i b ustawy, lub płatności w ramach budżetu środków europejskich, realizowanych przez jednostki samorządu terytorialnego | E127: =0+'ZADANIOWY (3)'!J1703 -> 0 | F127: =0+'ZADANIOWY (3)'!K1703 -> 0 | G127: =0+'ZADANIOWY (3)'!L1703 -> 0 | H127: =0+'ZADANIOWY (3)'!M1703 -> 0 | I127: =0+'ZADANIOWY (3)'!N1703 -> 0 | J127: =0+'ZADANIOWY (3)'!O1703 -> 0 | K127: 0 | L127: 0
C128: 6298 | D128: Środki na dofinansowanie własnych inwestycji gmin, powiatów (związków gmin, związków powiatowo-gminnych, związków powiatów), samorządów województw, pozyskane z innych źródeł | E128: =0 -> 0 | F128: =0 -> 0 | G128: =0 -> 0 | H128: =0 -> 0 | I128: =0 -> 0 | J128: =0 -> 0 | K128: 0 | L128: 0
C129: 6300 | D129: Dotacja celowa otrzymana z tytułu pomocy finansowej udzielanej między jednostkami samorządu terytorialnego na dofinansowanie własnych zadań inwestycyjnych i zakupów inwestycyjnych | E129: =0+'ZADANIOWY (3)'!J1587 -> 0 | F129: =0+'ZADANIOWY (3)'!K1587 -> 0 | G129: =0+'ZADANIOWY (3)'!L1587 -> 0 | H129: =0+'ZADANIOWY (3)'!M1587 -> 0 | I129: =0+'ZADANIOWY (3)'!N1587 -> 0 | J129: =0+'ZADANIOWY (3)'!O1587 -> 0 | K129: 0 | L129: 0
C130: 6680 | D130: Wpłata środków finansowych z niewykorzystanych w terminie wydatków, które nie wygasają z upływem roku budżetowego | E130: =0+'ZADANIOWY (3)'!J1600 -> 0 | F130: =0+'ZADANIOWY (3)'!K1600 -> 0 | G130: =0+'ZADANIOWY (3)'!L1600 -> 0 | H130: =0+'ZADANIOWY (3)'!M1600 -> 0 | I130: =0+'ZADANIOWY (3)'!N1600 -> 0 | J130: =0+'ZADANIOWY (3)'!O1600 -> 0 | K130: 0 | L130: 0
A131: 630 | D131: Turystyka | E131: =SUM(E132) -> 0 | F131: 0 | G131: 0 | H131: 0 | I131: 0 | J131: 0 | K131: 0 | L131: 0
B132: 63001 | D132: Ośrodki informacji turystycznej | E132: =SUM(E133:E136) -> 0 | F132: 0 | G132: 0 | H132: 0 | I132: 0 | J132: 0 | K132: 0 | L132: 0
C133: 0830 | D133: Wpływy z usług | E133: =0+'ZADANIOWY (3)'!J456+'ZADANIOWY (3)'!J493 -> 0 | F133: =0+'ZADANIOWY (3)'!K456+'ZADANIOWY (3)'!K493 -> 0 | G133: =0+'ZADANIOWY (3)'!L456+'ZADANIOWY (3)'!L493 -> 0 | H133: =0+'ZADANIOWY (3)'!M456+'ZADANIOWY (3)'!M493 -> 0 | I133: =0+'ZADANIOWY (3)'!N456+'ZADANIOWY (3)'!N493 -> 0 | J133: =0+'ZADANIOWY (3)'!O456+'ZADANIOWY (3)'!O493 -> 0 | K133: 0 | L133: 0
C134: 0920 | D134: Wpływy z pozostałych odsetek | E134: =0+'ZADANIOWY (3)'!J598 -> 0 | F134: =0+'ZADANIOWY (3)'!K598 -> 0 | G134: =0+'ZADANIOWY (3)'!L598 -> 0 | H134: =0+'ZADANIOWY (3)'!M598 -> 0 | I134: =0+'ZADANIOWY (3)'!N598 -> 0 | J134: =0+'ZADANIOWY (3)'!O598 -> 0 | K134: 0 | L134: 0
C135: 0940 | D135: Wpływy z rozliczeń/zwrotów z lat ubiegłych | E135: =0+'ZADANIOWY (3)'!J675 -> 0 | F135: =0+'ZADANIOWY (3)'!K675 -> 0 | G135: =0+'ZADANIOWY (3)'!L675 -> 0 | H135: =0+'ZADANIOWY (3)'!M675 -> 0 | I135: =0+'ZADANIOWY (3)'!N675 -> 0 | J135: =0+'ZADANIOWY (3)'!O675 -> 0 | K135: 0 | L135: 0 | O135: =IF(OR(E135<F135,K135<L135),"błędny urząd","") ->  | P135: =IF(OR(E135<0,F135<0,K135<0,L135<0),"ujemny plan","") -> 
C136: 0970 | D136: Wpływy z różnych dochodów | E136: =0+'ZADANIOWY (3)'!J722 -> 0 | F136: =0+'ZADANIOWY (3)'!K722 -> 0 | G136: =0+'ZADANIOWY (3)'!L722 -> 0 | H136: =0+'ZADANIOWY (3)'!M722 -> 0 | I136: =0+'ZADANIOWY (3)'!N722 -> 0 | J136: =0+'ZADANIOWY (3)'!O722 -> 0 | K136: 0 | L136: 0 | M136: =IF(SUM(E136:L136)>0,"Tak","") -> 
A137: 700 | D137: Gospodarka mieszkaniowa | E137: =SUM(E138,E145,E172,E181) -> 433888217 | F137: 106700217 | G137: 1827000 | H137: 25491961 | I137: 0 | J137: 19402961 | K137: 457553178 | L137: 126103178 | M137: Tak | N137: Tak
B138: 70004 | D138: Różne jednostki obsługi gospodarki mieszkaniowej | E138: =SUM(E139:E144) -> 0 | F138: 0 | G138: 0 | H138: 0 | I138: 0 | J138: 0 | K138: 0 | L138: 0
C139: 0580 | D139: Wpływy z tytułu grzywien i innych kar pieniężnych od osób prawnych i innych jednostek organizacyjnych | E139: =0 -> 0 | F139: =0 -> 0 | G139: =0 -> 0 | H139: =0 -> 0 | I139: =0 -> 0 | J139: =0 -> 0 | K139: 0 | L139: 0
C140: 0690 | D140: Wpływy z różnych opłat | E140: =0 -> 0 | F140: =0 -> 0 | G140: =0 -> 0 | H140: =0 -> 0 | I140: =0 -> 0 | J140: =0 -> 0 | K140: 0 | L140: 0
C141: 0750 | D141: Wpływy z najmu i dzierżawy składników majątkowych Skarbu Państwa, jednostek samorządu terytorialnego lub innych jednostek zaliczanych do sektora finansów publicznych oraz innych umów o podobnym charakterze | E141: =0+'ZADANIOWY (3)'!J63+'ZADANIOWY (3)'!J94+'ZADANIOWY (3)'!J124+'ZADANIOWY (3)'!J152+'ZADANIOWY (3)'!J183+'ZADANIOWY (3)'!J217+'ZADANIOWY (3)'!J250 -> 0 | F141: =0+'ZADANIOWY (3)'!K63+'ZADANIOWY (3)'!K94+'ZADANIOWY (3)'!K124+'ZADANIOWY (3)'!K152+'ZADANIOWY (3)'!K183+'ZADANIOWY (3)'!K217+'ZADANIOWY (3)'!K250 -> 0 | G141: =0+'ZADANIOWY (3)'!L63+'ZADANIOWY (3)'!L94+'ZADANIOWY (3)'!L124+'ZADANIOWY (3)'!L152+'ZADANIOWY (3)'!L183+'ZADANIOWY (3)'!L217+'ZADANIOWY (3)'!L250 -> 0 | H141: =0+'ZADANIOWY (3)'!M63+'ZADANIOWY (3)'!M94+'ZADANIOWY (3)'!M124+'ZADANIOWY (3)'!M152+'ZADANIOWY (3)'!M183+'ZADANIOWY (3)'!M217+'ZADANIOWY (3)'!M250 -> 0 | I141: =0+'ZADANIOWY (3)'!N63+'ZADANIOWY (3)'!N94+'ZADANIOWY (3)'!N124+'ZADANIOWY (3)'!N152+'ZADANIOWY (3)'!N183+'ZADANIOWY (3)'!N217+'ZADANIOWY (3)'!N250 -> 0 | J141: =0+'ZADANIOWY (3)'!O63+'ZADANIOWY (3)'!O94+'ZADANIOWY (3)'!O124+'ZADANIOWY (3)'!O152+'ZADANIOWY (3)'!O183+'ZADANIOWY (3)'!O217+'ZADANIOWY (3)'!O250 -> 0 | K141: 0 | L141: 0
C142: 0830 | D142: Wpływy z usług | E142: =0+'ZADANIOWY (3)'!J457+'ZADANIOWY (3)'!J494 -> 0 | F142: =0+'ZADANIOWY (3)'!K457+'ZADANIOWY (3)'!K494 -> 0 | G142: =0+'ZADANIOWY (3)'!L457+'ZADANIOWY (3)'!L494 -> 0 | H142: =0+'ZADANIOWY (3)'!M457+'ZADANIOWY (3)'!M494 -> 0 | I142: =0+'ZADANIOWY (3)'!N457+'ZADANIOWY (3)'!N494 -> 0 | J142: =0+'ZADANIOWY (3)'!O457+'ZADANIOWY (3)'!O494 -> 0 | K142: 0 | L142: 0
C143: 0920 | D143: Wpływy z pozostałych odsetek | E143: =0+'ZADANIOWY (3)'!J599 -> 0 | F143: =0+'ZADANIOWY (3)'!K599 -> 0 | G143: =0+'ZADANIOWY (3)'!L599 -> 0 | H143: =0+'ZADANIOWY (3)'!M599 -> 0 | I143: =0+'ZADANIOWY (3)'!N599 -> 0 | J143: =0+'ZADANIOWY (3)'!O599 -> 0 | K143: 0 | L143: 0
C144: 0970 | D144: Wpływy z różnych dochodów | E144: =0+'ZADANIOWY (3)'!J723 -> 0 | F144: =0+'ZADANIOWY (3)'!K723 -> 0 | G144: =0+'ZADANIOWY (3)'!L723 -> 0 | H144: =0+'ZADANIOWY (3)'!M723 -> 0 | I144: =0+'ZADANIOWY (3)'!N723 -> 0 | J144: =0+'ZADANIOWY (3)'!O723 -> 0 | K144: 0 | L144: 0
B145: 70005 | D145: Gospodarka gruntami i nieruchomościami | E145: =SUM(E146:E171) -> 292655721 | F145: 93274921 | G145: 1040800 | H145: 10167889 | I145: 0 | J145: 7617889 | K145: 301782810 | L145: 100892810 | M145: Tak | N145: Tak
C146: 0470 | D146: Wpływy z opłat za trwały zarząd, użytkowanie i służebności | E146: =0+'ZADANIOWY (3)'!J54 -> 1000000 | F146: =0+'ZADANIOWY (3)'!K54 -> 1000000 | G146: =0+'ZADANIOWY (3)'!L54 -> 0 | H146: =0+'ZADANIOWY (3)'!M54 -> 400000 | I146: =0+'ZADANIOWY (3)'!N54 -> 0 | J146: =0+'ZADANIOWY (3)'!O54 -> 400000 | K146: 1400000 | L146: 1400000 | M146: Tak | N146: Tak
C147: 0550 | D147: Wpływy z opłat z tytułu użytkowania wieczystego nieruchomości | E147: =0+'ZADANIOWY (3)'!J51+'ZADANIOWY (3)'!J52+'ZADANIOWY (3)'!J53 -> 66428572 | F147: =0+'ZADANIOWY (3)'!K51+'ZADANIOWY (3)'!K52+'ZADANIOWY (3)'!K53 -> 66428572 | G147: =0+'ZADANIOWY (3)'!L51+'ZADANIOWY (3)'!L52+'ZADANIOWY (3)'!L53 -> 0 | H147: =0+'ZADANIOWY (3)'!M51+'ZADANIOWY (3)'!M52+'ZADANIOWY (3)'!M53 -> 0 | I147: =0+'ZADANIOWY (3)'!N51+'ZADANIOWY (3)'!N52+'ZADANIOWY (3)'!N53 -> 0 | J147: =0+'ZADANIOWY (3)'!O51+'ZADANIOWY (3)'!O52+'ZADANIOWY (3)'!O53 -> 0 | K147: 66428572 | L147: 66428572 | M147: Tak
C148: 0570 | D148: Wpływy z tytułu grzywien, mandatów i innych kar pieniężnych od osób fizycznych | E148: =0+'ZADANIOWY (3)'!J293+'ZADANIOWY (3)'!J294 -> 0 | F148: =0+'ZADANIOWY (3)'!K293+'ZADANIOWY (3)'!K294 -> 0 | G148: =0+'ZADANIOWY (3)'!L293+'ZADANIOWY (3)'!L294 -> 0 | H148: =0+'ZADANIOWY (3)'!M293+'ZADANIOWY (3)'!M294 -> 0 | I148: =0+'ZADANIOWY (3)'!N293+'ZADANIOWY (3)'!N294 -> 0 | J148: =0+'ZADANIOWY (3)'!O293+'ZADANIOWY (3)'!O294 -> 0 | K148: 0 | L148: 0
C149: 0580 | D149: Wpływy z tytułu grzywien i innych kar pieniężnych od osób prawnych i innych jednostek organizacyjnych | E149: =0+'ZADANIOWY (3)'!J312 -> 0 | F149: =0+'ZADANIOWY (3)'!K312 -> 0 | G149: =0+'ZADANIOWY (3)'!L312 -> 0 | H149: =0+'ZADANIOWY (3)'!M312 -> 0 | I149: =0+'ZADANIOWY (3)'!N312 -> 0 | J149: =0+'ZADANIOWY (3)'!O312 -> 0 | K149: 0 | L149: 0
C150: 0640 | D150: Wpływy z tytułu kosztów egzekucyjnych, opłaty komorniczej i kosztów upomnień | E150: =0+'ZADANIOWY (3)'!J381+'ZADANIOWY (3)'!J382 -> 20000 | F150: =0+'ZADANIOWY (3)'!K381+'ZADANIOWY (3)'!K382 -> 0 | G150: =0+'ZADANIOWY (3)'!L381+'ZADANIOWY (3)'!L382 -> 10000 | H150: =0+'ZADANIOWY (3)'!M381+'ZADANIOWY (3)'!M382 -> 0 | I150: =0+'ZADANIOWY (3)'!N381+'ZADANIOWY (3)'!N382 -> 0 | J150: =0+'ZADANIOWY (3)'!O381+'ZADANIOWY (3)'!O382 -> 0 | K150: 10000 | L150: 0 | M150: Tak | N150: Tak
C151: 0690 | D151: Wpływy z różnych opłat | E151: =0+'ZADANIOWY (3)'!J409 -> 0 | F151: =0+'ZADANIOWY (3)'!K409 -> 0 | G151: =0+'ZADANIOWY (3)'!L409 -> 0 | H151: =0+'ZADANIOWY (3)'!M409 -> 0 | I151: =0+'ZADANIOWY (3)'!N409 -> 0 | J151: =0+'ZADANIOWY (3)'!O409 -> 0 | K151: 0 | L151: 0
C152: 0750 | D152: Wpływy z najmu i dzierżawy składników majątkowych Skarbu Państwa, jednostek samorządu terytorialnego lub innych jednostek zaliczanych do sektora finansów publicznych oraz innych umów o podobnym charakterze | E152: =0+'ZADANIOWY (3)'!J64+'ZADANIOWY (3)'!J125+'ZADANIOWY (3)'!J153+'ZADANIOWY (3)'!J184+'ZADANIOWY (3)'!J218+'ZADANIOWY (3)'!J251+'ZADANIOWY (3)'!J95 -> 163116800 | F152: =0+'ZADANIOWY (3)'!K64+'ZADANIOWY (3)'!K125+'ZADANIOWY (3)'!K153+'ZADANIOWY (3)'!K184+'ZADANIOWY (3)'!K218+'ZADANIOWY (3)'!K251+'ZADANIOWY (3)'!K95 -> 2000000 | G152: =0+'ZADANIOWY (3)'!L64+'ZADANIOWY (3)'!L125+'ZADANIOWY (3)'!L153+'ZADANIOWY (3)'!L184+'ZADANIOWY (3)'!L218+'ZADANIOWY (3)'!L251+'ZADANIOWY (3)'!L95 -> 180800 | H152: =0+'ZADANIOWY (3)'!M64+'ZADANIOWY (3)'!M125+'ZADANIOWY (3)'!M153+'ZADANIOWY (3)'!M184+'ZADANIOWY (3)'!M218+'ZADANIOWY (3)'!M251+'ZADANIOWY (3)'!M95 -> 462000 | I152: =0+'ZADANIOWY (3)'!N64+'ZADANIOWY (3)'!N125+'ZADANIOWY (3)'!N153+'ZADANIOWY (3)'!N184+'ZADANIOWY (3)'!N218+'ZADANIOWY (3)'!N251+'ZADANIOWY (3)'!N95 -> 0 | J152: =0+'ZADANIOWY (3)'!O64+'ZADANIOWY (3)'!O125+'ZADANIOWY (3)'!O153+'ZADANIOWY (3)'!O184+'ZADANIOWY (3)'!O218+'ZADANIOWY (3)'!O251+'ZADANIOWY (3)'!O95 -> 332000 | K152: 163398000 | L152: 2332000 | M152: Tak | N152: Tak
C153: 0760 | D153: Wpływy z tytułu przekształcenia prawa użytkowania wieczystego przysługującego osobom fizycznym w prawo własności | E153: =0+'ZADANIOWY (3)'!J1575+'ZADANIOWY (3)'!J1576+'ZADANIOWY (3)'!J1577 -> 9100000 | F153: =0+'ZADANIOWY (3)'!K1575+'ZADANIOWY (3)'!K1576+'ZADANIOWY (3)'!K1577 -> 9100000 | G153: =0+'ZADANIOWY (3)'!L1575+'ZADANIOWY (3)'!L1576+'ZADANIOWY (3)'!L1577 -> 0 | H153: =0+'ZADANIOWY (3)'!M1575+'ZADANIOWY (3)'!M1576+'ZADANIOWY (3)'!M1577 -> 4750000 | I153: =0+'ZADANIOWY (3)'!N1575+'ZADANIOWY (3)'!N1576+'ZADANIOWY (3)'!N1577 -> 0 | J153: =0+'ZADANIOWY (3)'!O1575+'ZADANIOWY (3)'!O1576+'ZADANIOWY (3)'!O1577 -> 4750000 | K153: 13850000 | L153: 13850000 | M153: Tak | N153: Tak
C154: 0770 | D154: Wpłaty z tytułu odpłatnego nabycia prawa własności oraz prawa użytkowania wieczystego nieruchomości | E154: =0+'ZADANIOWY (3)'!J1548+'ZADANIOWY (3)'!J1550+'ZADANIOWY (3)'!J1551 -> 8282000 | F154: =0+'ZADANIOWY (3)'!K1548+'ZADANIOWY (3)'!K1550+'ZADANIOWY (3)'!K1551 -> 8282000 | G154: =0+'ZADANIOWY (3)'!L1548+'ZADANIOWY (3)'!L1550+'ZADANIOWY (3)'!L1551 -> 0 | H154: =0+'ZADANIOWY (3)'!M1548+'ZADANIOWY (3)'!M1550+'ZADANIOWY (3)'!M1551 -> 1080889 | I154: =0+'ZADANIOWY (3)'!N1548+'ZADANIOWY (3)'!N1550+'ZADANIOWY (3)'!N1551 -> 0 | J154: =0+'ZADANIOWY (3)'!O1548+'ZADANIOWY (3)'!O1550+'ZADANIOWY (3)'!O1551 -> 1080889 | K154: 9362889 | L154: 9362889 | M154: Tak | N154: Tak
C155: 0780 | D155: Wpływy ze zbycia praw majątkowych | E155: =0 -> 0 | F155: =0 -> 0 | G155: =0 -> 0 | H155: =0 -> 0 | I155: =0 -> 0 | J155: =0 -> 0 | K155: 0 | L155: 0
C156: 0800 | D156: Wpływy z tytułu odszkodowania za przejęte nieruchomości pod inwestycje celu publicznego | E156: =0+'ZADANIOWY (3)'!J1552 -> 0 | F156: =0+'ZADANIOWY (3)'!K1552 -> 0 | G156: =0+'ZADANIOWY (3)'!L1552 -> 0 | H156: =0+'ZADANIOWY (3)'!M1552 -> 0 | I156: =0+'ZADANIOWY (3)'!N1552 -> 0 | J156: =0+'ZADANIOWY (3)'!O1552 -> 0 | K156: 0 | L156: 0
C157: 0830 | D157: Wpływy z usług | E157: =0+'ZADANIOWY (3)'!J458+'ZADANIOWY (3)'!J459+'ZADANIOWY (3)'!J495 -> 32600000 | F157: =0+'ZADANIOWY (3)'!K458+'ZADANIOWY (3)'!K459+'ZADANIOWY (3)'!K495 -> 0 | G157: =0+'ZADANIOWY (3)'!L458+'ZADANIOWY (3)'!L459+'ZADANIOWY (3)'!L495 -> 0 | H157: =0+'ZADANIOWY (3)'!M458+'ZADANIOWY (3)'!M459+'ZADANIOWY (3)'!M495 -> 2000000 | I157: =0+'ZADANIOWY (3)'!N458+'ZADANIOWY (3)'!N459+'ZADANIOWY (3)'!N495 -> 0 | J157: =0+'ZADANIOWY (3)'!O458+'ZADANIOWY (3)'!O459+'ZADANIOWY (3)'!O495 -> 0 | K157: 34600000 | L157: 0 | M157: Tak | N157: Tak
C158: 0870 | D158: Wpływy ze sprzedaży składników majątkowych | E158: =0+'ZADANIOWY (3)'!J1561 -> 0 | F158: =0+'ZADANIOWY (3)'!K1561 -> 0 | G158: =0+'ZADANIOWY (3)'!L1561 -> 0 | H158: =0+'ZADANIOWY (3)'!M1561 -> 0 | I158: =0+'ZADANIOWY (3)'!N1561 -> 0 | J158: =0+'ZADANIOWY (3)'!O1561 -> 0 | K158: 0 | L158: 0
C159: 0900 | D159: Wpływy z odsetek od dotacji oraz płatności: wykorzystanych niezgodnie z przeznaczeniem lub wykorzystanych z naruszeniem procedur, o których mowa w art. 184 ustawy, pobranych nienależnie lub w nadmiernej wysokości | E159: =0+'ZADANIOWY (3)'!J538 -> 0 | F159: =0+'ZADANIOWY (3)'!K538 -> 0 | G159: =0+'ZADANIOWY (3)'!L538 -> 0 | H159: =0+'ZADANIOWY (3)'!M538 -> 0 | I159: =0+'ZADANIOWY (3)'!N538 -> 0 | J159: =0+'ZADANIOWY (3)'!O538 -> 0 | K159: 0 | L159: 0
C160: 0950 | D160: Wpływy z tytułu kar i odszkodowań wynikających z umów | E160: =0+'ZADANIOWY (3)'!J325 -> 370000 | F160: =0+'ZADANIOWY (3)'!K325 -> 350000 | G160: =0+'ZADANIOWY (3)'!L325 -> 0 | H160: =0+'ZADANIOWY (3)'!M325 -> 69000 | I160: =0+'ZADANIOWY (3)'!N325 -> 0 | J160: =0+'ZADANIOWY (3)'!O325 -> 55000 | K160: 439000 | L160: 405000 | M160: Tak | N160: =IF(SUM(G160:J160)>0,"Tak","") -> Tak
C161: 0940 | D161: Wpływy z rozliczeń/zwrotów z lat ubiegłych | E161: =0+'ZADANIOWY (3)'!J676+'ZADANIOWY (3)'!J816 -> 3142000 | F161: =0+'ZADANIOWY (3)'!K676+'ZADANIOWY (3)'!K816 -> 0 | G161: =0+'ZADANIOWY (3)'!L676+'ZADANIOWY (3)'!L816 -> 0 | H161: =0+'ZADANIOWY (3)'!M676+'ZADANIOWY (3)'!M816 -> 148000 | I161: =0+'ZADANIOWY (3)'!N676+'ZADANIOWY (3)'!N816 -> 0 | J161: =0+'ZADANIOWY (3)'!O676+'ZADANIOWY (3)'!O816 -> 0 | K161: 3290000 | L161: 0 | M161: Tak | N161: Tak
C162: 0910 | D162: Wpływy z odsetek od nieterminowych wpłat z tytułu podatków i opłat | E162: =0 -> 0 | F162: =0 -> 0 | G162: =0 -> 0 | H162: =0 -> 0 | I162: =0 -> 0 | J162: =0 -> 0 | K162: =E162-G162+H162 -> 0 | L162: =F162-I162+J162 -> 0
C163: 0920 | D163: Wpływy z pozostałych odsetek | E163: =0+'ZADANIOWY (3)'!J600 -> 4814349 | F163: =0+'ZADANIOWY (3)'!K600 -> 3614349 | G163: =0+'ZADANIOWY (3)'!L600 -> 0 | H163: =0+'ZADANIOWY (3)'!M600 -> 1250000 | I163: =0+'ZADANIOWY (3)'!N600 -> 0 | J163: =0+'ZADANIOWY (3)'!O600 -> 1000000 | K163: 6064349 | L163: 4614349 | M163: Tak | N163: Tak
C164: 0970 | D164: Wpływy z różnych dochodów | E164: =0+'ZADANIOWY (3)'!J724+'ZADANIOWY (3)'!J725+'ZADANIOWY (3)'!J832 -> 3782000 | F164: =0+'ZADANIOWY (3)'!K724+'ZADANIOWY (3)'!K725+'ZADANIOWY (3)'!K832 -> 2500000 | G164: =0+'ZADANIOWY (3)'!L724+'ZADANIOWY (3)'!L725+'ZADANIOWY (3)'!L832 -> 850000 | H164: =0+'ZADANIOWY (3)'!M724+'ZADANIOWY (3)'!M725+'ZADANIOWY (3)'!M832 -> 8000 | I164: =0+'ZADANIOWY (3)'!N724+'ZADANIOWY (3)'!N725+'ZADANIOWY (3)'!N832 -> 0 | J164: =0+'ZADANIOWY (3)'!O724+'ZADANIOWY (3)'!O725+'ZADANIOWY (3)'!O832 -> 0 | K164: 2940000 | L164: 2500000 | M164: Tak | N164: Tak
C165: 2110 | D165: Dotacje celowe otrzymane z budżetu państwa na zadania bieżące z zakresu administracji rządowej oraz inne zadania zlecone ustawami realizowane przez powiat | E165: =0+'ZADANIOWY (3)'!J1094 -> 0 | F165: =0+'ZADANIOWY (3)'!K1094 -> 0 | G165: =0+'ZADANIOWY (3)'!L1094 -> 0 | H165: =0+'ZADANIOWY (3)'!M1094 -> 0 | I165: =0+'ZADANIOWY (3)'!N1094 -> 0 | J165: =0+'ZADANIOWY (3)'!O1094 -> 0 | K165: 0 | L165: 0
C166: 2360 | D166: Dochody jednostek samorządu terytorialnego związane z realizacją zadań z zakresu administracji rządowej oraz innych zadań zleconych ustawami | E166: =0+'ZADANIOWY (3)'!J844 -> 0 | F166: =0+'ZADANIOWY (3)'!K844 -> 0 | G166: =0+'ZADANIOWY (3)'!L844 -> 0 | H166: =0+'ZADANIOWY (3)'!M844 -> 0 | I166: =0+'ZADANIOWY (3)'!N844 -> 0 | J166: =0+'ZADANIOWY (3)'!O844 -> 0 | K166: 0 | L166: 0
C167: 2440 | D167: Dotacje otrzymane z państwowych funduszy celowych na realizację zadań bieżących jednostek sektora finansów publicznych | E167: =0+'ZADANIOWY (3)'!J1143 -> 0 | F167: =0+'ZADANIOWY (3)'!K1143 -> 0 | G167: =0+'ZADANIOWY (3)'!L1143 -> 0 | H167: =0+'ZADANIOWY (3)'!M1143 -> 0 | I167: =0+'ZADANIOWY (3)'!N1143 -> 0 | J167: =0+'ZADANIOWY (3)'!O1143 -> 0 | K167: 0 | L167: 0
C168: 2910 | D168: Wpływy ze zwrotów dotacji oraz płatności wykorzystanych niezgodnie z przeznaczeniem lub wykorzystanych z naruszeniem procedur, o których mowa w art. 184 ustawy, pobranych nienależnie lub w nadmiernej wysokości | E168: =0+'ZADANIOWY (3)'!J920+'ZADANIOWY (3)'!J921 -> 0 | F168: =0+'ZADANIOWY (3)'!K920+'ZADANIOWY (3)'!K921 -> 0 | G168: =0+'ZADANIOWY (3)'!L920+'ZADANIOWY (3)'!L921 -> 0 | H168: =0+'ZADANIOWY (3)'!M920+'ZADANIOWY (3)'!M921 -> 0 | I168: =0+'ZADANIOWY (3)'!N920+'ZADANIOWY (3)'!N921 -> 0 | J168: =0+'ZADANIOWY (3)'!O920+'ZADANIOWY (3)'!O921 -> 0 | K168: 0 | L168: 0
C169: 2980 | D169: Wpływy do wyjaśnienia | E169: =0+'ZADANIOWY (3)'!J979 -> 0 | F169: =0+'ZADANIOWY (3)'!K979 -> 0 | G169: =0+'ZADANIOWY (3)'!L979 -> 0 | H169: =0+'ZADANIOWY (3)'!M979 -> 0 | I169: =0+'ZADANIOWY (3)'!N979 -> 0 | J169: =0+'ZADANIOWY (3)'!O979 -> 0 | K169: 0 | L169: 0
C170: 6290 | D170: Środki na dofinansowanie własnych inwestycji gmin, powiatów (związków gmin, związków powiatowo-gminnych, związków powiatów), samorządów województw, pozyskane z innych źródeł | E170: =0+'ZADANIOWY (3)'!J1724 -> 0 | F170: =0+'ZADANIOWY (3)'!K1724 -> 0 | G170: =0+'ZADANIOWY (3)'!L1724 -> 0 | H170: =0+'ZADANIOWY (3)'!M1724 -> 0 | I170: =0+'ZADANIOWY (3)'!N1724 -> 0 | J170: =0+'ZADANIOWY (3)'!O1724 -> 0 | K170: 0 | L170: 0
C171: 6680 | D171: Wpłata środków finansowych z niewykorzystanych w terminie wydatków, które nie wygasają z upływem roku budżetowego | E171: =0+'ZADANIOWY (3)'!J1601 -> 0 | F171: =0+'ZADANIOWY (3)'!K1601 -> 0 | G171: =0+'ZADANIOWY (3)'!L1601 -> 0 | H171: =0+'ZADANIOWY (3)'!M1601 -> 0 | I171: =0+'ZADANIOWY (3)'!N1601 -> 0 | J171: =0+'ZADANIOWY (3)'!O1601 -> 0 | K171: 0 | L171: 0
B172: 70007 | D172: Gospodarowanie mieszkaniowym zasobem gminy | E172: =SUM(E173:E180) -> 141232496 | F172: =SUM(F173:F180) -> 13425296 | G172: 786200 | H172: 15324072 | I172: 0 | J172: 11785072 | K172: 155770368 | L172: 25210368 | M172: Tak | N172: Tak
C173: 0640 | D173: Wpływy z tytułu kosztów egzekucyjnych, opłaty komorniczej i kosztów upomnień | E173: =0+'ZADANIOWY (3)'!J383+'ZADANIOWY (3)'!J384 -> 49000 | F173: =0+'ZADANIOWY (3)'!K383+'ZADANIOWY (3)'!K384 -> 0 | G173: =0+'ZADANIOWY (3)'!L383+'ZADANIOWY (3)'!L384 -> 0 | H173: =0+'ZADANIOWY (3)'!M383+'ZADANIOWY (3)'!M384 -> 9000 | I173: =0+'ZADANIOWY (3)'!N383+'ZADANIOWY (3)'!N384 -> 0 | J173: =0+'ZADANIOWY (3)'!O383+'ZADANIOWY (3)'!O384 -> 0 | K173: =E173-G173+H173 -> 58000 | L173: =F173-I173+J173 -> 0 | M173: Tak | N173: Tak
C174: 0750 | D174: Wpływy z najmu i dzierżawy składników majątkowych Skarbu Państwa, jednostek samorządu terytorialnego lub innych jednostek zaliczanych do sektora finansów publicznych oraz innych umów o podobnym charakterze | E174: =0+'ZADANIOWY (3)'!J96+'ZADANIOWY (3)'!J219 -> 61731200 | F174: =0+'ZADANIOWY (3)'!K96+'ZADANIOWY (3)'!K219 -> 0 | G174: =0+'ZADANIOWY (3)'!L96+'ZADANIOWY (3)'!L219 -> 681200 | H174: =0+'ZADANIOWY (3)'!M96+'ZADANIOWY (3)'!M219 -> 0 | I174: =0+'ZADANIOWY (3)'!N96+'ZADANIOWY (3)'!N219 -> 0 | J174: =0+'ZADANIOWY (3)'!O96+'ZADANIOWY (3)'!O219 -> 0 | K174: =E174-G174+H174 -> 61050000 | L174: 0 | M174: Tak | N174: Tak
C175: 0770 | D175: Wpłaty z tytułu odpłatnego nabycia prawa własności oraz prawa użytkowania wieczystego nieruchomości | E175: =0+'ZADANIOWY (3)'!J1549 -> 13425296 | F175: =0+'ZADANIOWY (3)'!K1549 -> 13425296 | G175: =0+'ZADANIOWY (3)'!L1549 -> 0 | H175: =0+'ZADANIOWY (3)'!M1549 -> 11785072 | I175: =0+'ZADANIOWY (3)'!N1549 -> 0 | J175: =0+'ZADANIOWY (3)'!O1549 -> 11785072 | K175: 25210368 | L175: 25210368 | M175: Tak | N175: Tak
C176: 0920 | D176: Wpływy z pozostałych odsetek | E176: =0+'ZADANIOWY (3)'!J601 -> 1050000 | F176: =0+'ZADANIOWY (3)'!K601 -> 0 | G176: =0+'ZADANIOWY (3)'!L601 -> 0 | H176: =0+'ZADANIOWY (3)'!M601 -> 240000 | I176: =0+'ZADANIOWY (3)'!N601 -> 0 | J176: =0+'ZADANIOWY (3)'!O601 -> 0 | K176: 1290000 | L176: 0 | M176: Tak | N176: Tak
C177: 0970 | D177: Wpływy z różnych dochodów | E177: =0+'ZADANIOWY (3)'!J726+'ZADANIOWY (3)'!J727 -> 3010000 | F177: =0+'ZADANIOWY (3)'!K726+'ZADANIOWY (3)'!K727 -> 0 | G177: =0+'ZADANIOWY (3)'!L726+'ZADANIOWY (3)'!L727 -> 60000 | H177: =0+'ZADANIOWY (3)'!M726+'ZADANIOWY (3)'!M727 -> 10000 | I177: =0+'ZADANIOWY (3)'!N726+'ZADANIOWY (3)'!N727 -> 0 | J177: =0+'ZADANIOWY (3)'!O726+'ZADANIOWY (3)'!O727 -> 0 | K177: 2960000 | L177: 0 | M177: Tak | N177: Tak
C178: 0940 | D178: Wpływy z rozliczeń/zwrotów z lat ubiegłych | E178: =0+'ZADANIOWY (3)'!J677+'ZADANIOWY (3)'!J817 -> 65000 | F178: =0+'ZADANIOWY (3)'!K677+'ZADANIOWY (3)'!K817 -> 0 | G178: =0+'ZADANIOWY (3)'!L677+'ZADANIOWY (3)'!L817 -> 45000 | H178: =0+'ZADANIOWY (3)'!M677+'ZADANIOWY (3)'!M817 -> 0 | I178: =0+'ZADANIOWY (3)'!N677+'ZADANIOWY (3)'!N817 -> 0 | J178: =0+'ZADANIOWY (3)'!O677+'ZADANIOWY (3)'!O817 -> 0 | K178: 20000 | L178: 0 | M178: Tak | N178: Tak
C179: 0950 | D179: Wpływy z tytułu kar i odszkodowań wynikających z umów | E179: 102000 | F179: =0+'ZADANIOWY (3)'!K326 -> 0 | G179: =0+'ZADANIOWY (3)'!L326 -> 0 | H179: =0+'ZADANIOWY (3)'!M326 -> 80000 | I179: =0+'ZADANIOWY (3)'!N326 -> 0 | J179: =0+'ZADANIOWY (3)'!O326 -> 0 | K179: 182000 | L179: 0 | M179: =IF(SUM(E179:L179)>0,"Tak","") -> Tak
C180: 0830 | D180: Wpływy z usług | E180: =0+'ZADANIOWY (3)'!J460 -> 61800000 | F180: =0+'ZADANIOWY (3)'!K460 -> 0 | G180: =0+'ZADANIOWY (3)'!L460 -> 0 | H180: =0+'ZADANIOWY (3)'!M460 -> 3200000 | I180: =0+'ZADANIOWY (3)'!N460 -> 0 | J180: =0+'ZADANIOWY (3)'!O460 -> 0 | K180: 65000000 | L180: 0 | M180: Tak | N180: Tak
B181: 70095 | D181: Pozostała działalność | E181: =SUM(E182:E183) -> 0 | F181: 0 | G181: 0 | H181: 0 | I181: 0 | J181: 0 | K181: 0 | L181: 0
C182: 0960 | D182: Wpływy z otrzymanych spadków, zapisów i darowizn w postaci pieniężnej | E182: =0+'ZADANIOWY (3)'!J661 -> 0 | F182: =0+'ZADANIOWY (3)'!K661 -> 0 | G182: =0+'ZADANIOWY (3)'!L661 -> 0 | H182: =0+'ZADANIOWY (3)'!M661 -> 0 | I182: =0+'ZADANIOWY (3)'!N661 -> 0 | J182: =0+'ZADANIOWY (3)'!O661 -> 0 | K182: 0 | L182: 0
C183: 0970 | D183: Wpływy z różnych dochodów | E183: =0+'ZADANIOWY (3)'!J728 -> 0 | F183: =0+'ZADANIOWY (3)'!K728 -> 0 | G183: =0+'ZADANIOWY (3)'!L728 -> 0 | H183: =0+'ZADANIOWY (3)'!M728 -> 0 | I183: =0+'ZADANIOWY (3)'!N728 -> 0 | J183: =0+'ZADANIOWY (3)'!O728 -> 0 | K183: 0 | L183: 0
A184: 710 | D184: Działalność usługowa | E184: =SUM(E185,E192,E194,E196,E202,E208,E213,E217,E219,E224) -> 0 | F184: 0 | G184: 0 | H184: 0 | I184: 0 | J184: 0 | K184: 0 | L184: 0
B185: 71002 | D185: Jednostki organizacji i nadzoru inwestycyjnego | E185: =SUM(E186:E191) -> 0 | F185: 0 | G185: 0 | H185: 0 | I185: 0 | J185: 0 | K185: 0 | L185: 0
C186: 0570 | D186: Wpływy z tytułu grzywien, mandatów i innych kar pieniężnych od osób fizycznych | E186: =0+'ZADANIOWY (3)'!J295 -> 0 | F186: =0+'ZADANIOWY (3)'!K295 -> 0 | G186: =0+'ZADANIOWY (3)'!L295 -> 0 | H186: =0+'ZADANIOWY (3)'!M295 -> 0 | I186: =0+'ZADANIOWY (3)'!N295 -> 0 | J186: =0+'ZADANIOWY (3)'!O295 -> 0 | K186: 0 | L186: 0
C187: 0640 | D187: Wpływy z tytułu kosztów egzekucyjnych, opłaty komorniczej i kosztów upomnień | E187: =0+'ZADANIOWY (3)'!J385 -> 0 | F187: =0+'ZADANIOWY (3)'!K385 -> 0 | G187: =0+'ZADANIOWY (3)'!L385 -> 0 | H187: =0+'ZADANIOWY (3)'!M385 -> 0 | I187: =0+'ZADANIOWY (3)'!N385 -> 0 | J187: =0+'ZADANIOWY (3)'!O385 -> 0 | K187: 0 | L187: 0
C188: 0830 | D188: Wpływy z usług | E188: =0+'ZADANIOWY (3)'!J496 -> 0 | F188: =0+'ZADANIOWY (3)'!K496 -> 0 | G188: =0+'ZADANIOWY (3)'!L496 -> 0 | H188: =0+'ZADANIOWY (3)'!M496 -> 0 | I188: =0+'ZADANIOWY (3)'!N496 -> 0 | J188: =0+'ZADANIOWY (3)'!O496 -> 0 | K188: 0 | L188: 0
C189: 0920 | D189: Wpływy z pozostałych odsetek | E189: =0+'ZADANIOWY (3)'!J602 -> 0 | F189: =0+'ZADANIOWY (3)'!K602 -> 0 | G189: =0+'ZADANIOWY (3)'!L602 -> 0 | H189: =0+'ZADANIOWY (3)'!M602 -> 0 | I189: =0+'ZADANIOWY (3)'!N602 -> 0 | J189: =0+'ZADANIOWY (3)'!O602 -> 0 | K189: 0 | L189: 0
C190: 0950 | D190: Wpływy z tytułu kar i odszkodowań wynikających z umów | E190: =0+'ZADANIOWY (3)'!J327 -> 0 | F190: =0+'ZADANIOWY (3)'!K327 -> 0 | G190: =0+'ZADANIOWY (3)'!L327 -> 0 | H190: =0+'ZADANIOWY (3)'!M327 -> 0 | I190: =0+'ZADANIOWY (3)'!N327 -> 0 | J190: =0+'ZADANIOWY (3)'!O327 -> 0 | K190: 0 | L190: 0
C191: 0970 | D191: Wpływy z różnych dochodów | E191: =0+'ZADANIOWY (3)'!J729 -> 0 | F191: =0+'ZADANIOWY (3)'!K729 -> 0 | G191: =0+'ZADANIOWY (3)'!L729 -> 0 | H191: =0+'ZADANIOWY (3)'!M729 -> 0 | I191: =0+'ZADANIOWY (3)'!N729 -> 0 | J191: =0+'ZADANIOWY (3)'!O729 -> 0 | K191: 0 | L191: 0
B192: 71004 | D192: Plany zagospodarowania przestrzennego | E192: =SUM(E193) -> 0 | F192: 0 | G192: 0 | H192: 0 | I192: 0 | J192: 0 | K192: 0 | L192: 0
C193: 0580 | D193: Wpływy z tytułu grzywien i innych kar pieniężnych od osób prawnych i innych jednostek organizacyjnych | E193: =0 -> 0 | F193: =0 -> 0 | G193: =0 -> 0 | H193: =0 -> 0 | I193: =0 -> 0 | J193: =0 -> 0 | K193: 0 | L193: 0
B194: 71005 | D194: Gospodarka gruntami i nieruchomościami | E194: =SUM(E195) -> 0 | F194: 0 | G194: 0 | H194: 0 | I194: 0 | J194: 0 | K194: 0 | L194: 0
C195: 6410 | D195: Dotacje celowe otrzymane z budżetu państwa na inwestycje i zakupy inwestycyjne z zakresu administracji rządowej oraz inne zadania zlecone ustawami realizowane przez powiat | E195: =0+'ZADANIOWY (3)'!J1631 -> 0 | F195: =0+'ZADANIOWY (3)'!K1631 -> 0 | G195: =0+'ZADANIOWY (3)'!L1631 -> 0 | H195: =0+'ZADANIOWY (3)'!M1631 -> 0 | I195: =0+'ZADANIOWY (3)'!N1631 -> 0 | J195: =0+'ZADANIOWY (3)'!O1631 -> 0 | K195: 0 | L195: 0
B196: 71012 | D196: Ośrodki dokumentacji geodezyjnej i kartograficznej | E196: =SUM(E197:E201) -> 0 | F196: 0 | G196: 0 | H196: 0 | I196: 0 | J196: 0 | K196: 0 | L196: 0
C197: 0570 | D197: Wpływy z tytułu grzywien, mandatów i innych kar pieniężnych od osób fizycznych | E197: =0+'ZADANIOWY (3)'!J287 -> 0 | F197: =0+'ZADANIOWY (3)'!K287 -> 0 | G197: =0+'ZADANIOWY (3)'!L287 -> 0 | H197: =0+'ZADANIOWY (3)'!M287 -> 0 | I197: =0+'ZADANIOWY (3)'!N287 -> 0 | J197: =0+'ZADANIOWY (3)'!O287 -> 0 | K197: 0 | L197: 0
C198: 0580 | D198: Wpływy z tytułu grzywien i innych kar pieniężnych od osób prawnych i innych jednostek organizacyjnych | E198: =0+'ZADANIOWY (3)'!J289 -> 0 | F198: =0+'ZADANIOWY (3)'!K289 -> 0 | G198: =0+'ZADANIOWY (3)'!L289 -> 0 | H198: =0+'ZADANIOWY (3)'!M289 -> 0 | I198: =0+'ZADANIOWY (3)'!N289 -> 0 | J198: =0+'ZADANIOWY (3)'!O289 -> 0 | K198: 0 | L198: 0
C199: 0690 | D199: Wpływy z różnych opłat | E199: =0+'ZADANIOWY (3)'!J348 -> 0 | F199: =0+'ZADANIOWY (3)'!K348 -> 0 | G199: =0+'ZADANIOWY (3)'!L348 -> 0 | H199: =0+'ZADANIOWY (3)'!M348 -> 0 | I199: =0+'ZADANIOWY (3)'!N348 -> 0 | J199: =0+'ZADANIOWY (3)'!O348 -> 0 | K199: 0 | L199: 0
C200: 0830 | D200: Wpływy z usług | E200: =0+'ZADANIOWY (3)'!J450 -> 0 | F200: =0+'ZADANIOWY (3)'!K450 -> 0 | G200: =0+'ZADANIOWY (3)'!L450 -> 0 | H200: =0+'ZADANIOWY (3)'!M450 -> 0 | I200: =0+'ZADANIOWY (3)'!N450 -> 0 | J200: =0+'ZADANIOWY (3)'!O450 -> 0 | K200: 0 | L200: 0 | O200: =IF(OR(E200<F200,K200<L200),"błędny urząd","") ->  | P200: =IF(OR(E200<0,F200<0,K200<0,L200<0),"ujemny plan","") -> 
C201: 2110 | D201: Dotacje celowe otrzymane z budżetu państwa na zadania bieżące z zakresu administracji rządowej oraz inne zadania zlecone ustawami realizowane przez powiat | E201: =0+'ZADANIOWY (3)'!J1095 -> 0 | F201: =0+'ZADANIOWY (3)'!K1095 -> 0 | G201: =0+'ZADANIOWY (3)'!L1095 -> 0 | H201: =0+'ZADANIOWY (3)'!M1095 -> 0 | I201: =0+'ZADANIOWY (3)'!N1095 -> 0 | J201: =0+'ZADANIOWY (3)'!O1095 -> 0 | K201: 0 | L201: 0 | M201: =IF(SUM(E201:L201)>0,"Tak","") -> 
... 1143 more rows

Sheet ZADANIOWY
A1: PLAN WYDATKÓW w UKŁADZIE ZADANIOWYM | P1: Załącznik nr 6 do Uchwały Nr Rady Dzielnicy Śródmieście m.st. Warszawy z dnia | V1: =IF(COUNTA(V2:V15548)=0,"",COUNTA(V2:V15548)) -> 
A2: D.09.000 | F2: =IF(OR(T3<>"",U3<>""),"Istnieją błędy","") ->  | J2: =J11187 -> 1111522035 | K2: 267131055 | L2: 1949873 | M2: 17085277 | N2: 1429531 | O2: 1522538 | P2: 1126657439 | Q2: 267224062
A3: PROGRAM | B3: OPIS | C3: S/P/Z/PZ | D3: Header | E3: DZIAŁ | F3: ROZDZIAŁ | G3: § | H3: NAZWA PARAGRAFU | I3: OBSZAR FUNKCJONALNY | J3: PLAN | K3: w tym Urząd m.st. Warszawy | L3: PLAN Zmiana[-] | M3: PLAN Zmiana[+] | N3: w tym Urząd Zmiana[-] | O3: w tym Urząd Zmiana[+] | P3: PLAN PO ZMIANIE | Q3: w tym Urząd PO ZMIANIE | R3: WYPEŁNIONE POZYCJE | S3: WYPEŁNIONE ZMIANY | T3: =IF(COUNTIF(T4:T11186,"błędny urząd")<>0,"ŹLE","") ->  | U3: =IF(COUNTIF(U4:U11186,"ujemny plan")<>0,"ŹLE","") -> 
A4: I | B4: TRANSPORT I KOMUNIKACJA | C4: I sfera | D4: T | J4: =SUM(J197,J5) -> 17005500 | K4: 0 | L4: 134000 | M4: 373000 | N4: 0 | O4: 0 | P4: 17244500 | Q4: 0 | R4: =IF(SUM(J4:Q4)>0,"Tak","") -> Tak | S4: =IF(SUM(L4:O4)>0,"Tak","") -> Tak | T4: =IF(OR(J4<K4,P4<Q4,L4<N4,M4<O4),"błędny urząd","") ->  | U4: =IF(OR(J4<0,K4<0,P4<0,Q4<0),"ujemny plan","") -> 
A5: I/1 | B5: Komunikacja zbiorowa | C5: 1 program | D5: T | J5: =SUM(J177,J164,J38,J6) -> 0 | K5: 0 | L5: 0 | M5: 0 | N5: 0 | O5: 0 | P5: 0 | Q5: 0
A6: B/I/1/1 | B6: Zakup usług komunikacji miejskiej | C6: 1 zadanie | D6: T | J6: =SUM(J34,J30,J26,J19,J11,J7) -> 0 | K6: 0 | L6: 0 | M6: 0 | N6: 0 | O6: 0 | P6: 0 | Q6: 0
A7: B/I/1/1/1 | B7: Metro Warszawskie | C7: 1 podzadanie | D7: T | E7: 600 | F7: 60004 | J7: =SUM(J8) -> 0 | K7: 0 | L7: 0 | M7: 0 | N7: 0 | O7: 0 | P7: 0 | Q7: 0
A8: B/I/1/1/1 | B8: Metro Warszawskie | C8: 1 podzadanie | D8: NIE | E8: 600 | F8: 60004 | J8: =SUM(J9:J10) -> 0 | K8: 0 | L8: 0 | M8: 0 | N8: 0 | O8: 0 | P8: 0 | Q8: 0
A9: B/I/1/1/1 | B9: Metro Warszawskie | C9: 1 podzadanie | D9: NIE | E9: 600 | F9: 60004 | G9: 4300 | H9: Zakup usług pozostałych | I9: GMMW | P9: =J9+M9-L9 -> 0 | Q9: =K9+O9-N9 -> 0 | R9: =IF(SUM(J9:Q9)>0,"Tak","") ->  | S9: =IF(SUM(L9:O9)>0,"Tak","") ->  | T9: =IF(OR(J9<K9,P9<Q9,L9<N9,M9<O9),"błędny urząd","") ->  | U9: =IF(OR(J9<0,K9<0,P9<0,Q9<0),"ujemny plan","") -> 
A10: B/I/1/1/1 | B10: Metro Warszawskie | C10: 1 podzadanie | D10: NIE | E10: 600 | F10: 60004 | G10: 4530 | H10: Podatek od towarów i usług (VAT) | I10: GMMW | P10: =J10+M10-L10 -> 0 | Q10: =K10+O10-N10 -> 0 | R10: =IF(SUM(J10:Q10)>0,"Tak","") ->  | S10: =IF(SUM(L10:O10)>0,"Tak","") ->  | T10: =IF(OR(J10<K10,P10<Q10,L10<N10,M10<O10),"błędny urząd","") ->  | U10: =IF(OR(J10<0,K10<0,P10<0,Q10<0),"ujemny plan","") -> 
A11: B/I/1/1/2 | B11: Miejskie Zakłady Autobusowe | C11: 2 podzadanie | D11: T | E11: 600 | F11: 60004 | J11: =SUM(J12) -> 0 | K11: 0 | L11: 0 | M11: 0 | N11: 0 | O11: 0 | P11: 0 | Q11: 0
A12: B/I/1/1/2 | B12: Miejskie Zakłady Autobusowe | C12: 2 podzadanie | D12: NIE | E12: 600 | F12: 60004 | J12: =SUM(J13:J18) -> 0 | K12: 0 | L12: 0 | M12: 0 | N12: 0 | O12: 0 | P12: 0 | Q12: 0
A13: B/I/1/1/2 | B13: Miejskie Zakłady Autobusowe | C13: 2 podzadanie | D13: NIE | E13: 600 | F13: 60004 | G13: 4300 | H13: Zakup usług pozostałych | I13: GUUW | P13: 0 | Q13: 0
A14: B/I/1/1/2 | B14: Miejskie Zakłady Autobusowe | C14: 2 podzadanie | D14: NIE | E14: 600 | F14: 60004 | G14: 4300 | H14: Zakup usług pozostałych | I14: GMMW | P14: 0 | Q14: 0
A15: B/I/1/1/2 | B15: Miejskie Zakłady Autobusowe | C15: 2 podzadanie | D15: NIE | E15: 600 | F15: 60004 | G15: 4300 | H15: Zakup usług pozostałych | I15: GPGM | P15: 0 | Q15: 0
A16: B/I/1/1/2 | B16: Miejskie Zakłady Autobusowe | C16: 2 podzadanie | D16: NIE | E16: 600 | F16: 60004 | G16: 4370 | H16: Zakup usług związanych z pomocą obywatelom Ukrainy | I16: GUUW | P16: 0 | Q16: 0
A17: B/I/1/1/2 | B17: Miejskie Zakłady Autobusowe | C17: 2 podzadanie | D17: NIE | E17: 600 | F17: 60004 | G17: 4530 | H17: Podatek od towarów i usług (VAT) | I17: GUUW | P17: 0 | Q17: 0
A18: B/I/1/1/2 | B18: Miejskie Zakłady Autobusowe | C18: 2 podzadanie | D18: NIE | E18: 600 | F18: 60004 | G18: 4530 | H18: Podatek od towarów i usług (VAT) | I18: GMMW | P18: 0 | Q18: 0
A19: B/I/1/1/3 | B19: Pozostali przewoźnicy autobusowi | C19: 3 podzadanie | D19: T | E19: 600 | F19: 60004 | J19: =SUM(J20) -> 0 | K19: 0 | L19: 0 | M19: 0 | N19: 0 | O19: 0 | P19: 0 | Q19: 0
A20: B/I/1/1/3 | B20: Pozostali przewoźnicy autobusowi | C20: 3 podzadanie | D20: NIE | E20: 600 | F20: 60004 | J20: =SUM(J21:J25) -> 0 | K20: 0 | L20: 0 | M20: 0 | N20: 0 | O20: 0 | P20: 0 | Q20: 0
A21: B/I/1/1/3 | B21: Pozostali przewoźnicy autobusowi | C21: 3 podzadanie | D21: NIE | E21: 600 | F21: 60004 | G21: 4300 | H21: Zakup usług pozostałych | I21: GUUW | P21: 0 | Q21: 0
A22: B/I/1/1/3 | B22: Pozostali przewoźnicy autobusowi | C22: 3 podzadanie | D22: NIE | E22: 600 | F22: 60004 | G22: 4300 | H22: Zakup usług pozostałych | I22: GMMW | P22: 0 | Q22: 0
A23: B/I/1/1/3 | B23: Pozostali przewoźnicy autobusowi | C23: 3 podzadanie | D23: NIE | E23: 600 | F23: 60004 | G23: 4370 | H23: Zakup usług związanych z pomocą obywatelom Ukrainy | I23: GUUW | P23: 0 | Q23: 0
A24: B/I/1/1/3 | B24: Pozostali przewoźnicy autobusowi | C24: 3 podzadanie | D24: NIE | E24: 600 | F24: 60004 | G24: 4530 | H24: Podatek od towarów i usług (VAT) | I24: GUUW | P24: 0 | Q24: 0
A25: B/I/1/1/3 | B25: Pozostali przewoźnicy autobusowi | C25: 3 podzadanie | D25: NIE | E25: 600 | F25: 60004 | G25: 4530 | H25: Podatek od towarów i usług (VAT) | I25: GMMW | P25: 0 | Q25: 0
A26: B/I/1/1/4 | B26: Szybka Kolej Miejska | C26: 4 podzadanie | D26: T | E26: 600 | F26: 60004 | J26: =SUM(J27) -> 0 | K26: 0 | L26: 0 | M26: 0 | N26: 0 | O26: 0 | P26: 0 | Q26: 0
A27: B/I/1/1/4 | B27: Szybka Kolej Miejska | C27: 4 podzadanie | D27: NIE | E27: 600 | F27: 60004 | J27: =SUM(J28:J29) -> 0 | K27: 0 | L27: 0 | M27: 0 | N27: 0 | O27: 0 | P27: 0 | Q27: 0
A28: B/I/1/1/4 | B28: Szybka Kolej Miejska | C28: 4 podzadanie | D28: NIE | E28: 600 | F28: 60004 | G28: 4300 | H28: Zakup usług pozostałych | I28: GMMW | P28: 0 | Q28: 0
A29: B/I/1/1/4 | B29: Szybka Kolej Miejska | C29: 4 podzadanie | D29: NIE | E29: 600 | F29: 60004 | G29: 4530 | H29: Podatek od towarów i usług (VAT) | I29: GMMW | P29: 0 | Q29: 0
A30: B/I/1/1/5 | B30: Tramwaje Warszawskie | C30: 5 podzadanie | D30: T | E30: 600 | F30: 60004 | J30: =SUM(J31) -> 0 | K30: 0 | L30: 0 | M30: 0 | N30: 0 | O30: 0 | P30: 0 | Q30: 0
A31: B/I/1/1/5 | B31: Tramwaje Warszawskie | C31: 5 podzadanie | D31: NIE | E31: 600 | F31: 60004 | J31: =SUM(J32:J33) -> 0 | K31: 0 | L31: 0 | M31: 0 | N31: 0 | O31: 0 | P31: 0 | Q31: 0
A32: B/I/1/1/5 | B32: Tramwaje Warszawskie | C32: 5 podzadanie | D32: NIE | E32: 600 | F32: 60004 | G32: 4300 | H32: Zakup usług pozostałych | I32: GMMW | P32: 0 | Q32: 0
A33: B/I/1/1/5 | B33: Tramwaje Warszawskie | C33: 5 podzadanie | D33: NIE | E33: 600 | F33: 60004 | G33: 4530 | H33: Podatek od towarów i usług (VAT) | I33: GMMW | P33: 0 | Q33: 0
A34: B/I/1/1/6 | B34: Pozostali przewoźnicy kolejowi | C34: 6 podzadanie | D34: T | E34: 600 | F34: 60004 | J34: =SUM(J35) -> 0 | K34: 0 | L34: 0 | M34: 0 | N34: 0 | O34: 0 | P34: 0 | Q34: 0
A35: B/I/1/1/6 | B35: Pozostali przewoźnicy kolejowi | C35: 6 podzadanie | D35: NIE | E35: 600 | F35: 60004 | J35: =SUM(J36:J37) -> 0 | K35: 0 | L35: 0 | M35: 0 | N35: 0 | O35: 0 | P35: 0 | Q35: 0
A36: B/I/1/1/6 | B36: Pozostali przewoźnicy kolejowi | C36: 6 podzadanie | D36: NIE | E36: 600 | F36: 60004 | G36: 4300 | H36: Zakup usług pozostałych | I36: GMMW | P36: 0 | Q36: 0
A37: B/I/1/1/6 | B37: Pozostali przewoźnicy kolejowi | C37: 6 podzadanie | D37: NIE | E37: 600 | F37: 60004 | G37: 4530 | H37: Podatek od towarów i usług (VAT) | I37: GMMW | P37: 0 | Q37: 0
A38: B/I/1/2 | B38: Zarządzanie komunikacją miejską | C38: 2 zadanie | D38: T | J38: =SUM(J123,J113,J39) -> 0 | K38: 0 | L38: 0 | M38: 0 | N38: 0 | O38: 0 | P38: 0 | Q38: 0
A39: B/I/1/2/1 | B39: Utrzymanie Zarządu Transportu Miejskiego, w tym obsługa inwestycji | C39: 1 podzadanie | D39: T | E39: 600 | F39: 60004 | J39: =SUM(J40) -> 0 | K39: 0 | L39: 0 | M39: 0 | N39: 0 | O39: 0 | P39: 0 | Q39: 0
A40: B/I/1/2/1 | B40: Utrzymanie Zarządu Transportu Miejskiego, w tym obsługa inwestycji | C40: 1 podzadanie | D40: NIE | E40: 600 | F40: 60004 | J40: =SUM(J41:J112) -> 0 | K40: 0 | L40: 0 | M40: 0 | N40: 0 | O40: 0 | P40: 0 | Q40: 0
A41: B/I/1/2/1 | B41: Utrzymanie Zarządu Transportu Miejskiego, w tym obsługa inwestycji | C41: 1 podzadanie | D41: NIE | E41: 600 | F41: 60004 | G41: 3020 | H41: Wydatki osobowe niezaliczone do wynagrodzeń | I41: GMMW | P41: 0 | Q41: 0
A42: B/I/1/2/1 | B42: Utrzymanie Zarządu Transportu Miejskiego, w tym obsługa inwestycji | C42: 1 podzadanie | D42: NIE | E42: 600 | F42: 60004 | G42: 4010 | H42: Wynagrodzenia osobowe pracowników | I42: GMMW | P42: 0 | Q42: 0
A43: B/I/1/2/1 | B43: Utrzymanie Zarządu Transportu Miejskiego, w tym obsługa inwestycji | C43: 1 podzadanie | D43: NIE | E43: 600 | F43: 60004 | G43: 4017 | H43: Wynagrodzenia osobowe pracowników | I43: SFUE/23/6 | P43: 0 | Q43: 0
A44: B/I/1/2/1 | B44: Utrzymanie Zarządu Transportu Miejskiego, w tym obsługa inwestycji | C44: 1 podzadanie | D44: NIE | E44: 600 | F44: 60004 | G44: 4018 | H44: Wynagrodzenia osobowe pracowników | I44: SFUE/8/50 | P44: 0 | Q44: 0
A45: B/I/1/2/1 | B45: Utrzymanie Zarządu Transportu Miejskiego, w tym obsługa inwestycji | C45: 1 podzadanie | D45: NIE | E45: 600 | F45: 60004 | G45: 4018 | H45: Wynagrodzenia osobowe pracowników | I45: SFUE/8/59 | P45: 0 | Q45: 0
A46: B/I/1/2/1 | B46: Utrzymanie Zarządu Transportu Miejskiego, w tym obsługa inwestycji | C46: 1 podzadanie | D46: NIE | E46: 600 | F46: 60004 | G46: 4018 | H46: Wynagrodzenia osobowe pracowników | I46: SFUE/8/60 | P46: 0 | Q46: 0
A47: B/I/1/2/1 | B47: Utrzymanie Zarządu Transportu Miejskiego, w tym obsługa inwestycji | C47: 1 podzadanie | D47: NIE | E47: 600 | F47: 60004 | G47: 4018 | H47: Wynagrodzenia osobowe pracowników | I47: SFUE/8/61 | P47: 0 | Q47: 0
A48: B/I/1/2/1 | B48: Utrzymanie Zarządu Transportu Miejskiego, w tym obsługa inwestycji | C48: 1 podzadanie | D48: NIE | E48: 600 | F48: 60004 | G48: 4019 | H48: Wynagrodzenia osobowe pracowników | I48: SFUE/23/6 | P48: 0 | Q48: 0
A49: B/I/1/2/1 | B49: Utrzymanie Zarządu Transportu Miejskiego, w tym obsługa inwestycji | C49: 1 podzadanie | D49: NIE | E49: 600 | F49: 60004 | G49: 4019 | H49: Wynagrodzenia osobowe pracowników | I49: SFUE/8/60 | P49: 0 | Q49: 0
A50: B/I/1/2/1 | B50: Utrzymanie Zarządu Transportu Miejskiego, w tym obsługa inwestycji | C50: 1 podzadanie | D50: NIE | E50: 600 | F50: 60004 | G50: 4019 | H50: Wynagrodzenia osobowe pracowników | I50: SFUE/8/61 | P50: 0 | Q50: 0
A51: B/I/1/2/1 | B51: Utrzymanie Zarządu Transportu Miejskiego, w tym obsługa inwestycji | C51: 1 podzadanie | D51: NIE | E51: 600 | F51: 60004 | G51: 4040 | H51: Dodatkowe wynagrodzenie roczne | I51: GMMW | P51: 0 | Q51: 0
A52: B/I/1/2/1 | B52: Utrzymanie Zarządu Transportu Miejskiego, w tym obsługa inwestycji | C52: 1 podzadanie | D52: NIE | E52: 600 | F52: 60004 | G52: 4047 | H52: Dodatkowe wynagrodzenie roczne | I52: SFUE/23/6 | P52: 0 | Q52: 0
A53: B/I/1/2/1 | B53: Utrzymanie Zarządu Transportu Miejskiego, w tym obsługa inwestycji | C53: 1 podzadanie | D53: NIE | E53: 600 | F53: 60004 | G53: 4048 | H53: Dodatkowe wynagrodzenie roczne | I53: SFUE/8/59 | P53: 0 | Q53: 0
A54: B/I/1/2/1 | B54: Utrzymanie Zarządu Transportu Miejskiego, w tym obsługa inwestycji | C54: 1 podzadanie | D54: NIE | E54: 600 | F54: 60004 | G54: 4049 | H54: Dodatkowe wynagrodzenie roczne | I54: SFUE/23/6 | P54: 0 | Q54: 0
A55: B/I/1/2/1 | B55: Utrzymanie Zarządu Transportu Miejskiego, w tym obsługa inwestycji | C55: 1 podzadanie | D55: NIE | E55: 600 | F55: 60004 | G55: 4110 | H55: Składki na ubezpieczenia społeczne | I55: GMMW | P55: 0 | Q55: 0
A56: B/I/1/2/1 | B56: Utrzymanie Zarządu Transportu Miejskiego, w tym obsługa inwestycji | C56: 1 podzadanie | D56: NIE | E56: 600 | F56: 60004 | G56: 4117 | H56: Składki na ubezpieczenia społeczne | I56: SFUE/23/6 | P56: 0 | Q56: 0
A57: B/I/1/2/1 | B57: Utrzymanie Zarządu Transportu Miejskiego, w tym obsługa inwestycji | C57: 1 podzadanie | D57: NIE | E57: 600 | F57: 60004 | G57: 4118 | H57: Składki na ubezpieczenia społeczne | I57: SFUE/8/50 | P57: 0 | Q57: 0
A58: B/I/1/2/1 | B58: Utrzymanie Zarządu Transportu Miejskiego, w tym obsługa inwestycji | C58: 1 podzadanie | D58: NIE | E58: 600 | F58: 60004 | G58: 4118 | H58: Składki na ubezpieczenia społeczne | I58: SFUE/8/59 | P58: 0 | Q58: 0
A59: B/I/1/2/1 | B59: Utrzymanie Zarządu Transportu Miejskiego, w tym obsługa inwestycji | C59: 1 podzadanie | D59: NIE | E59: 600 | F59: 60004 | G59: 4118 | H59: Składki na ubezpieczenia społeczne | I59: SFUE/8/60 | P59: 0 | Q59: 0
A60: B/I/1/2/1 | B60: Utrzymanie Zarządu Transportu Miejskiego, w tym obsługa inwestycji | C60: 1 podzadanie | D60: NIE | E60: 600 | F60: 60004 | G60: 4118 | H60: Składki na ubezpieczenia społeczne | I60: SFUE/8/61 | P60: 0 | Q60: 0
A61: B/I/1/2/1 | B61: Utrzymanie Zarządu Transportu Miejskiego, w tym obsługa inwestycji | C61: 1 podzadanie | D61: NIE | E61: 600 | F61: 60004 | G61: 4119 | H61: Składki na ubezpieczenia społeczne | I61: SFUE/23/6 | P61: 0 | Q61: 0
A62: B/I/1/2/1 | B62: Utrzymanie Zarządu Transportu Miejskiego, w tym obsługa inwestycji | C62: 1 podzadanie | D62: NIE | E62: 600 | F62: 60004 | G62: 4119 | H62: Składki na ubezpieczenia społeczne | I62: SFUE/8/60 | P62: 0 | Q62: 0
A63: B/I/1/2/1 | B63: Utrzymanie Zarządu Transportu Miejskiego, w tym obsługa inwestycji | C63: 1 podzadanie | D63: NIE | E63: 600 | F63: 60004 | G63: 4119 | H63: Składki na ubezpieczenia społeczne | I63: SFUE/8/61 | P63: 0 | Q63: 0
A64: B/I/1/2/1 | B64: Utrzymanie Zarządu Transportu Miejskiego, w tym obsługa inwestycji | C64: 1 podzadanie | D64: NIE | E64: 600 | F64: 60004 | G64: 4120 | H64: Składki na Fundusz Pracy oraz Fundusz Solidarnościowy | I64: GMMW | P64: 0 | Q64: 0
A65: B/I/1/2/1 | B65: Utrzymanie Zarządu Transportu Miejskiego, w tym obsługa inwestycji | C65: 1 podzadanie | D65: NIE | E65: 600 | F65: 60004 | G65: 4127 | H65: Składki na Fundusz Pracy oraz Fundusz Solidarnościowy | I65: SFUE/23/6 | P65: 0 | Q65: 0
A66: B/I/1/2/1 | B66: Utrzymanie Zarządu Transportu Miejskiego, w tym obsługa inwestycji | C66: 1 podzadanie | D66: NIE | E66: 600 | F66: 60004 | G66: 4128 | H66: Składki na Fundusz Pracy oraz Fundusz Solidarnościowy | I66: SFUE/8/50 | P66: 0 | Q66: 0
A67: B/I/1/2/1 | B67: Utrzymanie Zarządu Transportu Miejskiego, w tym obsługa inwestycji | C67: 1 podzadanie | D67: NIE | E67: 600 | F67: 60004 | G67: 4128 | H67: Składki na Fundusz Pracy oraz Fundusz Solidarnościowy | I67: SFUE/8/59 | P67: 0 | Q67: 0
A68: B/I/1/2/1 | B68: Utrzymanie Zarządu Transportu Miejskiego, w tym obsługa inwestycji | C68: 1 podzadanie | D68: NIE | E68: 600 | F68: 60004 | G68: 4128 | H68: Składki na Fundusz Pracy oraz Fundusz Solidarnościowy | I68: SFUE/8/60 | P68: 0 | Q68: 0
A69: B/I/1/2/1 | B69: Utrzymanie Zarządu Transportu Miejskiego, w tym obsługa inwestycji | C69: 1 podzadanie | D69: NIE | E69: 600 | F69: 60004 | G69: 4128 | H69: Składki na Fundusz Pracy oraz Fundusz Solidarnościowy | I69: SFUE/8/61 | P69: 0 | Q69: 0
A70: B/I/1/2/1 | B70: Utrzymanie Zarządu Transportu Miejskiego, w tym obsługa inwestycji | C70: 1 podzadanie | D70: NIE | E70: 600 | F70: 60004 | G70: 4129 | H70: Składki na Fundusz Pracy oraz Fundusz Solidarnościowy | I70: SFUE/23/6 | P70: 0 | Q70: 0
A71: B/I/1/2/1 | B71: Utrzymanie Zarządu Transportu Miejskiego, w tym obsługa inwestycji | C71: 1 podzadanie | D71: NIE | E71: 600 | F71: 60004 | G71: 4129 | H71: Składki na Fundusz Pracy oraz Fundusz Solidarnościowy | I71: SFUE/8/60 | P71: 0 | Q71: 0
A72: B/I/1/2/1 | B72: Utrzymanie Zarządu Transportu Miejskiego, w tym obsługa inwestycji | C72: 1 podzadanie | D72: NIE | E72: 600 | F72: 60004 | G72: 4129 | H72: Składki na Fundusz Pracy oraz Fundusz Solidarnościowy | I72: SFUE/8/61 | P72: 0 | Q72: 0
A73: B/I/1/2/1 | B73: Utrzymanie Zarządu Transportu Miejskiego, w tym obsługa inwestycji | C73: 1 podzadanie | D73: NIE | E73: 600 | F73: 60004 | G73: 4140 | H73: Wpłaty na Państwowy Fundusz Rehabilitacji Osób Niepełnosprawnych | I73: GMMW | P73: 0 | Q73: 0
A74: B/I/1/2/1 | B74: Utrzymanie Zarządu Transportu Miejskiego, w tym obsługa inwestycji | C74: 1 podzadanie | D74: NIE | E74: 600 | F74: 60004 | G74: 4170 | H74: Wynagrodzenia bezosobowe | I74: GMMW | P74: =J74+M74-L74 -> 0 | Q74: =K74+O74-N74 -> 0 | R74: =IF(SUM(J74:Q74)>0,"Tak","") ->  | S74: =IF(SUM(L74:O74)>0,"Tak","") ->  | T74: =IF(OR(J74<K74,P74<Q74,L74<N74,M74<O74),"błędny urząd","") ->  | U74: =IF(OR(J74<0,K74<0,P74<0,Q74<0),"ujemny plan","") -> 
A75: B/I/1/2/1 | B75: Utrzymanie Zarządu Transportu Miejskiego, w tym obsługa inwestycji | C75: 1 podzadanie | D75: NIE | E75: 600 | F75: 60004 | G75: 4190 | H75: Nagrody konkursowe | I75: GMMW | P75: 0 | Q75: 0
A76: B/I/1/2/1 | B76: Utrzymanie Zarządu Transportu Miejskiego, w tym obsługa inwestycji | C76: 1 podzadanie | D76: NIE | E76: 600 | F76: 60004 | G76: 4210 | H76: Zakup materiałów i wyposażenia | I76: GMMW/C | P76: 0 | Q76: 0
A77: B/I/1/2/1 | B77: Utrzymanie Zarządu Transportu Miejskiego, w tym obsługa inwestycji | C77: 1 podzadanie | D77: NIE | E77: 600 | F77: 60004 | G77: 4210 | H77: Zakup materiałów i wyposażenia | I77: GMMW | P77: 0 | Q77: 0
A78: B/I/1/2/1 | B78: Utrzymanie Zarządu Transportu Miejskiego, w tym obsługa inwestycji | C78: 1 podzadanie | D78: NIE | E78: 600 | F78: 60004 | G78: 4260 | H78: Zakup energii | I78: GMMW | P78: 0 | Q78: 0
A79: B/I/1/2/1 | B79: Utrzymanie Zarządu Transportu Miejskiego, w tym obsługa inwestycji | C79: 1 podzadanie | D79: NIE | E79: 600 | F79: 60004 | G79: 4270 | H79: Zakup usług remontowych | I79: GMMW | P79: 0 | Q79: 0
A80: B/I/1/2/1 | B80: Utrzymanie Zarządu Transportu Miejskiego, w tym obsługa inwestycji | C80: 1 podzadanie | D80: NIE | E80: 600 | F80: 60004 | G80: 4280 | H80: Zakup usług zdrowotnych | I80: GMMW/C | P80: 0 | Q80: 0
A81: B/I/1/2/1 | B81: Utrzymanie Zarządu Transportu Miejskiego, w tym obsługa inwestycji | C81: 1 podzadanie | D81: NIE | E81: 600 | F81: 60004 | G81: 4280 | H81: Zakup usług zdrowotnych | I81: GMMW | P81: 0 | Q81: 0
A82: B/I/1/2/1 | B82: Utrzymanie Zarządu Transportu Miejskiego, w tym obsługa inwestycji | C82: 1 podzadanie | D82: NIE | E82: 600 | F82: 60004 | G82: 4300 | H82: Zakup usług pozostałych | I82: GMMW | P82: 0 | Q82: 0
A83: B/I/1/2/1 | B83: Utrzymanie Zarządu Transportu Miejskiego, w tym obsługa inwestycji | C83: 1 podzadanie | D83: NIE | E83: 600 | F83: 60004 | G83: 4360 | H83: Opłaty z tytułu zakupu usług telekomunikacyjnych | I83: GMMW | P83: 0 | Q83: 0
A84: B/I/1/2/1 | B84: Utrzymanie Zarządu Transportu Miejskiego, w tym obsługa inwestycji | C84: 1 podzadanie | D84: NIE | E84: 600 | F84: 60004 | G84: 4380 | H84: Zakup usług obejmujących tłumaczenia | I84: GMMW | P84: 0 | Q84: 0
A85: B/I/1/2/1 | B85: Utrzymanie Zarządu Transportu Miejskiego, w tym obsługa inwestycji | C85: 1 podzadanie | D85: NIE | E85: 600 | F85: 60004 | G85: 4390 | H85: Zakup usług obejmujących wykonanie ekspertyz, analiz i opinii | I85: GMMW | P85: 0 | Q85: 0
A86: B/I/1/2/1 | B86: Utrzymanie Zarządu Transportu Miejskiego, w tym obsługa inwestycji | C86: 1 podzadanie | D86: NIE | E86: 600 | F86: 60004 | G86: 4400 | H86: Opłaty za administrowanie i czynsze za budynki, lokale i pomieszczenia garażowe | I86: GMMW | P86: 0 | Q86: 0
A87: B/I/1/2/1 | B87: Utrzymanie Zarządu Transportu Miejskiego, w tym obsługa inwestycji | C87: 1 podzadanie | D87: NIE | E87: 600 | F87: 60004 | G87: 4410 | H87: Podróże służbowe krajowe | I87: GMMW | P87: 0 | Q87: 0
A88: B/I/1/2/1 | B88: Utrzymanie Zarządu Transportu Miejskiego, w tym obsługa inwestycji | C88: 1 podzadanie | D88: NIE | E88: 600 | F88: 60004 | G88: 4420 | H88: Podróże służbowe zagraniczne | I88: GMMW | P88: 0 | Q88: 0
A89: B/I/1/2/1 | B89: Utrzymanie Zarządu Transportu Miejskiego, w tym obsługa inwestycji | C89: 1 podzadanie | D89: NIE | E89: 600 | F89: 60004 | G89: 4428 | H89: Podróże służbowe zagraniczne | I89: SFUE/8/50 | P89: 0 | Q89: 0
A90: B/I/1/2/1 | B90: Utrzymanie Zarządu Transportu Miejskiego, w tym obsługa inwestycji | C90: 1 podzadanie | D90: NIE | E90: 600 | F90: 60004 | G90: 4428 | H90: Podróże służbowe zagraniczne | I90: SFUE/8/59 | P90: 0 | Q90: 0
A91: B/I/1/2/1 | B91: Utrzymanie Zarządu Transportu Miejskiego, w tym obsługa inwestycji | C91: 1 podzadanie | D91: NIE | E91: 600 | F91: 60004 | G91: 4428 | H91: Podróże służbowe zagraniczne | I91: SFUE/8/60 | P91: 0 | Q91: 0
A92: B/I/1/2/1 | B92: Utrzymanie Zarządu Transportu Miejskiego, w tym obsługa inwestycji | C92: 1 podzadanie | D92: NIE | E92: 600 | F92: 60004 | G92: 4428 | H92: Podróże służbowe zagraniczne | I92: SFUE/8/61 | P92: 0 | Q92: 0
A93: B/I/1/2/1 | B93: Utrzymanie Zarządu Transportu Miejskiego, w tym obsługa inwestycji | C93: 1 podzadanie | D93: NIE | E93: 600 | F93: 60004 | G93: 4429 | H93: Podróże służbowe zagraniczne | I93: SFUE/8/60 | P93: 0 | Q93: 0
A94: B/I/1/2/1 | B94: Utrzymanie Zarządu Transportu Miejskiego, w tym obsługa inwestycji | C94: 1 podzadanie | D94: NIE | E94: 600 | F94: 60004 | G94: 4429 | H94: Podróże służbowe zagraniczne | I94: SFUE/8/61 | P94: 0 | Q94: 0
A95: B/I/1/2/1 | B95: Utrzymanie Zarządu Transportu Miejskiego, w tym obsługa inwestycji | C95: 1 podzadanie | D95: NIE | E95: 600 | F95: 60004 | G95: 4430 | H95: Różne opłaty i składki | I95: GMMW | P95: 0 | Q95: 0
A96: B/I/1/2/1 | B96: Utrzymanie Zarządu Transportu Miejskiego, w tym obsługa inwestycji | C96: 1 podzadanie | D96: NIE | E96: 600 | F96: 60004 | G96: 4440 | H96: Odpisy na zakładowy fundusz świadczeń socjalnych | I96: GMMW | P96: 0 | Q96: 0
A97: B/I/1/2/1 | B97: Utrzymanie Zarządu Transportu Miejskiego, w tym obsługa inwestycji | C97: 1 podzadanie | D97: NIE | E97: 600 | F97: 60004 | G97: 4480 | H97: Podatek od nieruchomości | I97: GMMW | P97: 0 | Q97: 0
A98: B/I/1/2/1 | B98: Utrzymanie Zarządu Transportu Miejskiego, w tym obsługa inwestycji | C98: 1 podzadanie | D98: NIE | E98: 600 | F98: 60004 | G98: 4510 | H98: Opłaty na rzecz budżetu państwa | I98: GMMW | P98: 0 | Q98: 0
A99: B/I/1/2/1 | B99: Utrzymanie Zarządu Transportu Miejskiego, w tym obsługa inwestycji | C99: 1 podzadanie | D99: NIE | E99: 600 | F99: 60004 | G99: 4530 | H99: Podatek od towarów i usług (VAT) | I99: GMMW/C | P99: 0 | Q99: 0
A100: B/I/1/2/1 | B100: Utrzymanie Zarządu Transportu Miejskiego, w tym obsługa inwestycji | C100: 1 podzadanie | D100: NIE | E100: 600 | F100: 60004 | G100: 4530 | H100: Podatek od towarów i usług (VAT) | I100: GMMW | P100: 0 | Q100: 0
A101: B/I/1/2/1 | B101: Utrzymanie Zarządu Transportu Miejskiego, w tym obsługa inwestycji | C101: 1 podzadanie | D101: NIE | E101: 600 | F101: 60004 | G101: 4540 | H101: Składki do organizacji międzynarodowych | I101: GMMW | P101: 0 | Q101: 0
A102: B/I/1/2/1 | B102: Utrzymanie Zarządu Transportu Miejskiego, w tym obsługa inwestycji | C102: 1 podzadanie | D102: NIE | E102: 600 | F102: 60004 | G102: 4590 | H102: Kary i odszkodowania wypłacane na rzecz osób fizycznych | I102: GMMW | P102: 0 | Q102: 0
A103: B/I/1/2/1 | B103: Utrzymanie Zarządu Transportu Miejskiego, w tym obsługa inwestycji | C103: 1 podzadanie | D103: NIE | E103: 600 | F103: 60004 | G103: 4600 | H103: Kary, odszkodowania i grzywny wypłacane na rzecz osób prawnych i innych jednostek organizacyjnych | I103: GMMW | P103: 0 | Q103: 0
A104: B/I/1/2/1 | B104: Utrzymanie Zarządu Transportu Miejskiego, w tym obsługa inwestycji | C104: 1 podzadanie | D104: NIE | E104: 600 | F104: 60004 | G104: 4610 | H104: Koszty postępowania sądowego i prokuratorskiego | I104: GMMW | P104: 0 | Q104: 0
A105: B/I/1/2/1 | B105: Utrzymanie Zarządu Transportu Miejskiego, w tym obsługa inwestycji | C105: 1 podzadanie | D105: NIE | E105: 600 | F105: 60004 | G105: 4700 | H105: Szkolenia pracowników niebędących członkami korpusu służby cywilnej | I105: GMMW/C | P105: 0 | Q105: 0
A106: B/I/1/2/1 | B106: Utrzymanie Zarządu Transportu Miejskiego, w tym obsługa inwestycji | C106: 1 podzadanie | D106: NIE | E106: 600 | F106: 60004 | G106: 4700 | H106: Szkolenia pracowników niebędących członkami korpusu służby cywilnej | I106: GMMW | P106: 0 | Q106: 0
A107: B/I/1/2/1 | B107: Utrzymanie Zarządu Transportu Miejskiego, w tym obsługa inwestycji | C107: 1 podzadanie | D107: NIE | E107: 600 | F107: 60004 | G107: 4710 | H107: Wpłaty na PPK finansowane przez podmiot zatrudniający | I107: GMMW | P107: 0 | Q107: 0
A108: B/I/1/2/1 | B108: Utrzymanie Zarządu Transportu Miejskiego, w tym obsługa inwestycji | C108: 1 podzadanie | D108: NIE | E108: 600 | F108: 60004 | G108: 4718 | H108: Wpłaty na PPK finansowane przez podmiot zatrudniający | I108: SFUE/8/50 | P108: 0 | Q108: 0
A109: B/I/1/2/1 | B109: Utrzymanie Zarządu Transportu Miejskiego, w tym obsługa inwestycji | C109: 1 podzadanie | D109: NIE | E109: 600 | F109: 60004 | G109: 4718 | H109: Wpłaty na PPK finansowane przez podmiot zatrudniający | I109: SFUE/8/59 | P109: 0 | Q109: 0
A110: B/I/1/2/1 | B110: Utrzymanie Zarządu Transportu Miejskiego, w tym obsługa inwestycji | C110: 1 podzadanie | D110: NIE | E110: 600 | F110: 60004 | G110: 4718 | H110: Wpłaty na PPK finansowane przez podmiot zatrudniający | I110: SFUE/8/61 | P110: 0 | Q110: 0
A111: B/I/1/2/1 | B111: Utrzymanie Zarządu Transportu Miejskiego, w tym obsługa inwestycji | C111: 1 podzadanie | D111: NIE | E111: 600 | F111: 60004 | G111: 4719 | H111: Wpłaty na PPK finansowane przez podmiot zatrudniający | I111: SFUE/8/61 | P111: 0 | Q111: 0
A112: B/I/1/2/1 | B112: Utrzymanie Zarządu Transportu Miejskiego, w tym obsługa inwestycji | C112: 1 podzadanie | D112: NIE | E112: 600 | F112: 60004 | G112: 4950 | H112: Różnice kursowe | I112: GMMW | P112: 0 | Q112: 0
A113: B/I/1/2/2 | B113: Utrzymanie i obsługa systemu biletowego | C113: 2 podzadanie | D113: T | E113: 600 | F113: 60004 | J113: =SUM(J114) -> 0 | K113: 0 | L113: 0 | M113: 0 | N113: 0 | O113: 0 | P113: 0 | Q113: 0
A114: B/I/1/2/2 | B114: Utrzymanie i obsługa systemu biletowego | C114: 2 podzadanie | D114: NIE | E114: 600 | F114: 60004 | J114: =SUM(J115:J122) -> 0 | K114: 0 | L114: 0 | M114: 0 | N114: 0 | O114: 0 | P114: 0 | Q114: 0
A115: B/I/1/2/2 | B115: Utrzymanie i obsługa systemu biletowego | C115: 2 podzadanie | D115: NIE | E115: 600 | F115: 60004 | G115: 4190 | H115: Nagrody konkursowe | I115: GMMW | P115: 0 | Q115: 0
A116: B/I/1/2/2 | B116: Utrzymanie i obsługa systemu biletowego | C116: 2 podzadanie | D116: NIE | E116: 600 | F116: 60004 | G116: 4210 | H116: Zakup materiałów i wyposażenia | I116: GMMW | P116: 0 | Q116: 0
A117: B/I/1/2/2 | B117: Utrzymanie i obsługa systemu biletowego | C117: 2 podzadanie | D117: NIE | E117: 600 | F117: 60004 | G117: 4260 | H117: Zakup energii | I117: GMMW | P117: 0 | Q117: 0
A118: B/I/1/2/2 | B118: Utrzymanie i obsługa systemu biletowego | C118: 2 podzadanie | D118: NIE | E118: 600 | F118: 60004 | G118: 4270 | H118: Zakup usług remontowych | I118: GMMW | P118: 0 | Q118: 0
A119: B/I/1/2/2 | B119: Utrzymanie i obsługa systemu biletowego | C119: 2 podzadanie | D119: NIE | E119: 600 | F119: 60004 | G119: 4300 | H119: Zakup usług pozostałych | I119: GMMW | P119: 0 | Q119: 0
A120: B/I/1/2/2 | B120: Utrzymanie i obsługa systemu biletowego | C120: 2 podzadanie | D120: NIE | E120: 600 | F120: 60004 | G120: 4400 | H120: Opłaty za administrowanie i czynsze za budynki, lokale i pomieszczenia garażowe | I120: GMMW | P120: 0 | Q120: 0
A121: B/I/1/2/2 | B121: Utrzymanie i obsługa systemu biletowego | C121: 2 podzadanie | D121: NIE | E121: 600 | F121: 60004 | G121: 4530 | H121: Podatek od towarów i usług (VAT) | I121: GMMW | P121: 0 | Q121: 0
A122: B/I/1/2/2 | B122: Utrzymanie i obsługa systemu biletowego | C122: 2 podzadanie | D122: NIE | E122: 600 | F122: 60004 | G122: 4610 | H122: Koszty postępowania sądowego i prokuratorskiego | I122: GMMW | P122: 0 | Q122: 0
A123: B/I/1/2/3 | B123: Organizacja komunikacji, marketing, nadzór i kontrola ruchu | C123: 3 podzadanie | D123: T | J123: =SUM(J161,J154,J124) -> 0 | K123: 0 | L123: 0 | M123: 0 | N123: 0 | O123: 0 | P123: 0 | Q123: 0
A124: B/I/1/2/3 | B124: Organizacja komunikacji, marketing, nadzór i kontrola ruchu | C124: 3 podzadanie | D124: NIE | E124: 600 | F124: 60004 | J124: =SUM(J125:J153) -> 0 | K124: 0 | L124: 0 | M124: 0 | N124: 0 | O124: 0 | P124: 0 | Q124: 0
A125: B/I/1/2/3 | B125: Organizacja komunikacji, marketing, nadzór i kontrola ruchu | C125: 3 podzadanie | D125: NIE | E125: 600 | F125: 60004 | G125: 3020 | H125: Wydatki osobowe niezaliczone do wynagrodzeń | I125: GMMW | P125: 0 | Q125: 0
A126: B/I/1/2/3 | B126: Organizacja komunikacji, marketing, nadzór i kontrola ruchu | C126: 3 podzadanie | D126: NIE | E126: 600 | F126: 60004 | G126: 4210 | H126: Zakup materiałów i wyposażenia | I126: GMMW | P126: 0 | Q126: 0
A127: B/I/1/2/3 | B127: Organizacja komunikacji, marketing, nadzór i kontrola ruchu | C127: 3 podzadanie | D127: NIE | E127: 600 | F127: 60004 | G127: 4218 | H127: Zakup materiałów i wyposażenia | I127: SFUE/8/50 | P127: 0 | Q127: 0
A128: B/I/1/2/3 | B128: Organizacja komunikacji, marketing, nadzór i kontrola ruchu | C128: 3 podzadanie | D128: NIE | E128: 600 | F128: 60004 | G128: 4218 | H128: Zakup materiałów i wyposażenia | I128: SFUE/8/59 | P128: 0 | Q128: 0
A129: B/I/1/2/3 | B129: Organizacja komunikacji, marketing, nadzór i kontrola ruchu | C129: 3 podzadanie | D129: NIE | E129: 600 | F129: 60004 | G129: 4218 | H129: Zakup materiałów i wyposażenia | I129: SFUE/8/60 | P129: 0 | Q129: 0
A130: B/I/1/2/3 | B130: Organizacja komunikacji, marketing, nadzór i kontrola ruchu | C130: 3 podzadanie | D130: NIE | E130: 600 | F130: 60004 | G130: 4218 | H130: Zakup materiałów i wyposażenia | I130: SFUE/8/61 | P130: 0 | Q130: 0
A131: B/I/1/2/3 | B131: Organizacja komunikacji, marketing, nadzór i kontrola ruchu | C131: 3 podzadanie | D131: NIE | E131: 600 | F131: 60004 | G131: 4219 | H131: Zakup materiałów i wyposażenia | I131: SFUE/8/61 | P131: 0 | Q131: 0
A132: B/I/1/2/3 | B132: Organizacja komunikacji, marketing, nadzór i kontrola ruchu | C132: 3 podzadanie | D132: NIE | E132: 600 | F132: 60004 | G132: 4270 | H132: Zakup usług remontowych | I132: GMMW | P132: 0 | Q132: 0
A133: B/I/1/2/3 | B133: Organizacja komunikacji, marketing, nadzór i kontrola ruchu | C133: 3 podzadanie | D133: NIE | E133: 600 | F133: 60004 | G133: 4300 | H133: Zakup usług pozostałych | I133: GMMW | P133: 0 | Q133: 0
A134: B/I/1/2/3 | B134: Organizacja komunikacji, marketing, nadzór i kontrola ruchu | C134: 3 podzadanie | D134: NIE | E134: 600 | F134: 60004 | G134: 4307 | H134: Zakup usług pozostałych | I134: SFUE/23/6 | P134: 0 | Q134: 0
A135: B/I/1/2/3 | B135: Organizacja komunikacji, marketing, nadzór i kontrola ruchu | C135: 3 podzadanie | D135: NIE | E135: 600 | F135: 60004 | G135: 4308 | H135: Zakup usług pozostałych | I135: SFUE/8/50 | P135: 0 | Q135: 0
A136: B/I/1/2/3 | B136: Organizacja komunikacji, marketing, nadzór i kontrola ruchu | C136: 3 podzadanie | D136: NIE | E136: 600 | F136: 60004 | G136: 4308 | H136: Zakup usług pozostałych | I136: SFUE/8/59 | P136: 0 | Q136: 0
A137: B/I/1/2/3 | B137: Organizacja komunikacji, marketing, nadzór i kontrola ruchu | C137: 3 podzadanie | D137: NIE | E137: 600 | F137: 60004 | G137: 4308 | H137: Zakup usług pozostałych | I137: SFUE/8/60 | P137: 0 | Q137: 0
A138: B/I/1/2/3 | B138: Organizacja komunikacji, marketing, nadzór i kontrola ruchu | C138: 3 podzadanie | D138: NIE | E138: 600 | F138: 60004 | G138: 4308 | H138: Zakup usług pozostałych | I138: SFUE/8/61 | P138: =J138+M138-L138 -> 0 | Q138: =K138+O138-N138 -> 0 | R138: =IF(SUM(J138:Q138)>0,"Tak","") ->  | S138: =IF(SUM(L138:O138)>0,"Tak","") ->  | T138: =IF(OR(J138<K138,P138<Q138,L138<N138,M138<O138),"błędny urząd","") ->  | U138: =IF(OR(J138<0,K138<0,P138<0,Q138<0),"ujemny plan","") -> 
A139: B/I/1/2/3 | B139: Organizacja komunikacji, marketing, nadzór i kontrola ruchu | C139: 3 podzadanie | D139: NIE | E139: 600 | F139: 60004 | G139: 4309 | H139: Zakup usług pozostałych | I139: SFUE/23/6 | P139: 0 | Q139: 0
A140: B/I/1/2/3 | B140: Organizacja komunikacji, marketing, nadzór i kontrola ruchu | C140: 3 podzadanie | D140: NIE | E140: 600 | F140: 60004 | G140: 4309 | H140: Zakup usług pozostałych | I140: SFUE/8/61 | P140: 0 | Q140: 0
A141: B/I/1/2/3 | B141: Organizacja komunikacji, marketing, nadzór i kontrola ruchu | C141: 3 podzadanie | D141: NIE | E141: 600 | F141: 60004 | G141: 4388 | H141: Zakup usług obejmujących tłumaczenia | I141: SFUE/8/50 | P141: 0 | Q141: 0
A142: B/I/1/2/3 | B142: Organizacja komunikacji, marketing, nadzór i kontrola ruchu | C142: 3 podzadanie | D142: NIE | E142: 600 | F142: 60004 | G142: 4388 | H142: Zakup usług obejmujących tłumaczenia | I142: SFUE/8/59 | P142: 0 | Q142: 0
A143: B/I/1/2/3 | B143: Organizacja komunikacji, marketing, nadzór i kontrola ruchu | C143: 3 podzadanie | D143: NIE | E143: 600 | F143: 60004 | G143: 4388 | H143: Zakup usług obejmujących tłumaczenia | I143: SFUE/8/60 | P143: 0 | Q143: 0
A144: B/I/1/2/3 | B144: Organizacja komunikacji, marketing, nadzór i kontrola ruchu | C144: 3 podzadanie | D144: NIE | E144: 600 | F144: 60004 | G144: 4388 | H144: Zakup usług obejmujących tłumaczenia | I144: SFUE/8/61 | P144: 0 | Q144: 0
A145: B/I/1/2/3 | B145: Organizacja komunikacji, marketing, nadzór i kontrola ruchu | C145: 3 podzadanie | D145: NIE | E145: 600 | F145: 60004 | G145: 4389 | H145: Zakup usług obejmujących tłumaczenia | I145: SFUE/8/61 | P145: 0 | Q145: 0
A146: B/I/1/2/3 | B146: Organizacja komunikacji, marketing, nadzór i kontrola ruchu | C146: 3 podzadanie | D146: NIE | E146: 600 | F146: 60004 | G146: 4390 | H146: Zakup usług obejmujących wykonanie ekspertyz, analiz i opinii | I146: GMMW | P146: 0 | Q146: 0
A147: B/I/1/2/3 | B147: Organizacja komunikacji, marketing, nadzór i kontrola ruchu | C147: 3 podzadanie | D147: NIE | E147: 600 | F147: 60004 | G147: 4398 | H147: Zakup usług obejmujących wykonanie ekspertyz, analiz i opinii | I147: SFUE/8/50 | P147: 0 | Q147: 0
A148: B/I/1/2/3 | B148: Organizacja komunikacji, marketing, nadzór i kontrola ruchu | C148: 3 podzadanie | D148: NIE | E148: 600 | F148: 60004 | G148: 4398 | H148: Zakup usług obejmujących wykonanie ekspertyz, analiz i opinii | I148: SFUE/8/59 | P148: 0 | Q148: 0
A149: B/I/1/2/3 | B149: Organizacja komunikacji, marketing, nadzór i kontrola ruchu | C149: 3 podzadanie | D149: NIE | E149: 600 | F149: 60004 | G149: 4398 | H149: Zakup usług obejmujących wykonanie ekspertyz, analiz i opinii | I149: SFUE/8/60 | P149: 0 | Q149: 0
A150: B/I/1/2/3 | B150: Organizacja komunikacji, marketing, nadzór i kontrola ruchu | C150: 3 podzadanie | D150: NIE | E150: 600 | F150: 60004 | G150: 4398 | H150: Zakup usług obejmujących wykonanie ekspertyz, analiz i opinii | I150: SFUE/8/61 | P150: 0 | Q150: 0
A151: B/I/1/2/3 | B151: Organizacja komunikacji, marketing, nadzór i kontrola ruchu | C151: 3 podzadanie | D151: NIE | E151: 600 | F151: 60004 | G151: 4399 | H151: Zakup usług obejmujących wykonanie ekspertyz, analiz i opinii | I151: SFUE/8/61 | P151: 0 | Q151: 0
A152: B/I/1/2/3 | B152: Organizacja komunikacji, marketing, nadzór i kontrola ruchu | C152: 3 podzadanie | D152: NIE | E152: 600 | F152: 60004 | G152: 4530 | H152: Podatek od towarów i usług (VAT) | I152: GMMW | P152: 0 | Q152: 0
A153: B/I/1/2/3 | B153: Organizacja komunikacji, marketing, nadzór i kontrola ruchu | C153: 3 podzadanie | D153: NIE | E153: 600 | F153: 60004 | G153: 4530 | H153: Podatek od towarów i usług (VAT) | I153: SFUE/23/6 | P153: 0 | Q153: 0
A154: B/I/1/2/3 | B154: Organizacja komunikacji, marketing, nadzór i kontrola ruchu | C154: 3 podzadanie | D154: NIE | E154: 600 | F154: 60022 | J154: =SUM(J155:J160) -> 0 | K154: 0 | L154: 0 | M154: 0 | N154: 0 | O154: 0 | P154: 0 | Q154: 0
A155: B/I/1/2/3 | B155: Organizacja komunikacji, marketing, nadzór i kontrola ruchu | C155: 3 podzadanie | D155: NIE | E155: 600 | F155: 60022 | G155: 4210 | H155: Zakup materiałów i wyposażenia | I155: BO/24/00/0011 | P155: 0 | Q155: 0
A156: B/I/1/2/3 | B156: Organizacja komunikacji, marketing, nadzór i kontrola ruchu | C156: 3 podzadanie | D156: NIE | E156: 600 | F156: 60022 | G156: 4210 | H156: Zakup materiałów i wyposażenia | I156: GMMW | P156: 0 | Q156: 0
A157: B/I/1/2/3 | B157: Organizacja komunikacji, marketing, nadzór i kontrola ruchu | C157: 3 podzadanie | D157: NIE | E157: 600 | F157: 60022 | G157: 4270 | H157: Zakup usług remontowych | I157: GMMW | P157: 0 | Q157: 0
A158: B/I/1/2/3 | B158: Organizacja komunikacji, marketing, nadzór i kontrola ruchu | C158: 3 podzadanie | D158: NIE | E158: 600 | F158: 60022 | G158: 4300 | H158: Zakup usług pozostałych | I158: BO/22/00/0001 | P158: 0 | Q158: 0
A159: B/I/1/2/3 | B159: Organizacja komunikacji, marketing, nadzór i kontrola ruchu | C159: 3 podzadanie | D159: NIE | E159: 600 | F159: 60022 | G159: 4300 | H159: Zakup usług pozostałych | I159: GMMW | P159: 0 | Q159: 0
A160: B/I/1/2/3 | B160: Organizacja komunikacji, marketing, nadzór i kontrola ruchu | C160: 3 podzadanie | D160: NIE | E160: 600 | F160: 60022 | G160: 4430 | H160: Różne opłaty i składki | I160: GMMW | P160: 0 | Q160: 0
A161: B/I/1/2/3 | B161: Organizacja komunikacji, marketing, nadzór i kontrola ruchu | C161: 3 podzadanie | D161: NIE | E161: 600 | F161: 60095 | J161: =SUM(J162:J163) -> 0 | K161: 0 | L161: 0 | M161: 0 | N161: 0 | O161: 0 | P161: 0 | Q161: 0
A162: B/I/1/2/3 | B162: Organizacja komunikacji, marketing, nadzór i kontrola ruchu | C162: 3 podzadanie | D162: NIE | E162: 600 | F162: 60095 | G162: 4210 | H162: Zakup materiałów i wyposażenia | I162: GMMW | P162: 0 | Q162: 0
A163: B/I/1/2/3 | B163: Organizacja komunikacji, marketing, nadzór i kontrola ruchu | C163: 3 podzadanie | D163: NIE | E163: 600 | F163: 60095 | G163: 4300 | H163: Zakup usług pozostałych | I163: GMMW | P163: 0 | Q163: 0
A164: B/I/1/3 | B164: Utrzymanie infrastruktury przystankowej | C164: 3 zadanie | D164: T | J164: =SUM(J165) -> 0 | K164: 0 | L164: 0 | M164: 0 | N164: 0 | O164: 0 | P164: 0 | Q164: 0
A165: B/I/1/3 | B165: Utrzymanie infrastruktury przystankowej | C165: 3 zadanie | D165: NIE | E165: 600 | F165: 60020 | J165: =SUM(J166:J176) -> 0 | K165: 0 | L165: 0 | M165: 0 | N165: 0 | O165: 0 | P165: 0 | Q165: 0
A166: B/I/1/3 | B166: Utrzymanie infrastruktury przystankowej | C166: 3 zadanie | D166: NIE | E166: 600 | F166: 60020 | G166: 4210 | H166: Zakup materiałów i wyposażenia | I166: GMMW | P166: 0 | Q166: 0
A167: B/I/1/3 | B167: Utrzymanie infrastruktury przystankowej | C167: 3 zadanie | D167: NIE | E167: 600 | F167: 60020 | G167: 4270 | H167: Zakup usług remontowych | I167: GMMW/C | P167: 0 | Q167: 0
A168: B/I/1/3 | B168: Utrzymanie infrastruktury przystankowej | C168: 3 zadanie | D168: NIE | E168: 600 | F168: 60020 | G168: 4270 | H168: Zakup usług remontowych | I168: GMMW | P168: 0 | Q168: 0
A169: B/I/1/3 | B169: Utrzymanie infrastruktury przystankowej | C169: 3 zadanie | D169: NIE | E169: 600 | F169: 60020 | G169: 4270 | H169: Zakup usług remontowych | I169: GUPP | P169: 0 | Q169: 0
A170: B/I/1/3 | B170: Utrzymanie infrastruktury przystankowej | C170: 3 zadanie | D170: NIE | E170: 600 | F170: 60020 | G170: 4300 | H170: Zakup usług pozostałych | I170: BO/24/04/0085 | P170: 0 | Q170: 0
A171: B/I/1/3 | B171: Utrzymanie infrastruktury przystankowej | C171: 3 zadanie | D171: NIE | E171: 600 | F171: 60020 | G171: 4300 | H171: Zakup usług pozostałych | I171: GMMW/C | P171: 0 | Q171: 0
A172: B/I/1/3 | B172: Utrzymanie infrastruktury przystankowej | C172: 3 zadanie | D172: NIE | E172: 600 | F172: 60020 | G172: 4300 | H172: Zakup usług pozostałych | I172: GMMW | P172: 0 | Q172: 0
A173: B/I/1/3 | B173: Utrzymanie infrastruktury przystankowej | C173: 3 zadanie | D173: NIE | E173: 600 | F173: 60020 | G173: 4520 | H173: Opłaty na rzecz budżetów jednostek samorządu terytorialnego | I173: GMMW | P173: 0 | Q173: 0
A174: B/I/1/3 | B174: Utrzymanie infrastruktury przystankowej | C174: 3 zadanie | D174: NIE | E174: 600 | F174: 60020 | G174: 4530 | H174: Podatek od towarów i usług (VAT) | I174: BO/24/04/0085 | P174: 0 | Q174: 0
A175: B/I/1/3 | B175: Utrzymanie infrastruktury przystankowej | C175: 3 zadanie | D175: NIE | E175: 600 | F175: 60020 | G175: 4530 | H175: Podatek od towarów i usług (VAT) | I175: GMMW/C | P175: 0 | Q175: 0
A176: B/I/1/3 | B176: Utrzymanie infrastruktury przystankowej | C176: 3 zadanie | D176: NIE | E176: 600 | F176: 60020 | G176: 4530 | H176: Podatek od towarów i usług (VAT) | I176: GMMW | P176: 0 | Q176: 0
A177: B/I/1/4 | B177: Opracowania i analizy związane z komunikacją miejską | C177: 4 zadanie | D177: T | J177: =SUM(J184,J178) -> 0 | K177: 0 | L177: 0 | M177: 0 | N177: 0 | O177: 0 | P177: 0 | Q177: 0
A178: B/I/1/4 | B178: Opracowania i analizy związane z komunikacją miejską | C178: 4 zadanie | D178: NIE | E178: 600 | F178: 60004 | J178: =SUM(J179:J183) -> 0 | K178: 0 | L178: 0 | M178: 0 | N178: 0 | O178: 0 | P178: 0 | Q178: 0
A179: B/I/1/4 | B179: Opracowania i analizy związane z komunikacją miejską | C179: 4 zadanie | D179: NIE | E179: 600 | F179: 60004 | G179: 2310 | H179: Dotacja celowa przekazana gminie na zadania bieżące realizowane na podstawie porozumień (umów) między jednostkami samorządu terytorialnego | I179: GMMW | P179: 0 | Q179: 0
A180: B/I/1/4 | B180: Opracowania i analizy związane z komunikacją miejską | C180: 4 zadanie | D180: NIE | E180: 600 | F180: 60004 | G180: 4390 | H180: Zakup usług obejmujących wykonanie ekspertyz, analiz i opinii | I180: SFUE/8/57 | P180: 0 | Q180: 0
A181: B/I/1/4 | B181: Opracowania i analizy związane z komunikacją miejską | C181: 4 zadanie | D181: NIE | E181: 600 | F181: 60004 | G181: 4397 | H181: Zakup usług obejmujących wykonanie ekspertyz, analiz i opinii | I181: SFUE/8/57 | P181: 0 | Q181: 0
A182: B/I/1/4 | B182: Opracowania i analizy związane z komunikacją miejską | C182: 4 zadanie | D182: NIE | E182: 600 | F182: 60004 | G182: 4399 | H182: Zakup usług obejmujących wykonanie ekspertyz, analiz i opinii | I182: SFUE/8/57 | P182: 0 | Q182: 0
A183: B/I/1/4 | B183: Opracowania i analizy związane z komunikacją miejską | C183: 4 zadanie | D183: NIE | E183: 600 | F183: 60004 | G183: 4530 | H183: Podatek od towarów i usług (VAT) | I183: SFUE/8/57 | P183: 0 | Q183: 0
A184: B/I/1/4 | B184: Opracowania i analizy związane z komunikacją miejską | C184: 4 zadanie | D184: NIE | E184: 600 | F184: 60095 | J184: =SUM(J185:J186,J190:J192,J196) -> 0 | K184: 0 | L184: 0 | M184: 0 | N184: 0 | O184: 0 | P184: 0 | Q184: 0
A185: B/I/1/4 | B185: Opracowania i analizy związane z komunikacją miejską | C185: 4 zadanie | D185: NIE | E185: 600 | F185: 60095 | G185: 4300 | H185: Zakup usług pozostałych | I185: GMMW | P185: 0 | Q185: 0
A186: B/I/1/4 | B186: Opracowania i analizy związane z komunikacją miejską | C186: 4 zadanie | D186: NIE | E186: 600 | F186: 60095 | G186: 4309 | H186: Zakup usług pozostałych | J186: =SUM(J187:J189) -> 0 | K186: 0 | L186: 0 | M186: 0 | N186: 0 | O186: 0 | P186: 0 | Q186: 0
A187: B/I/1/4 | B187: Opracowania i analizy związane z komunikacją miejską | C187: 4 zadanie | D187: NIE | E187: 600 | F187: 60095 | G187: 4309 | H187: +000 | I187: SFUE/22/5 | P187: 0 | Q187: 0
A188: B/I/1/4 | B188: Opracowania i analizy związane z komunikacją miejską | C188: 4 zadanie | D188: NIE | E188: 600 | F188: 60095 | G188: 4309 | H188: +001 | I188: SFUE/22/5 | P188: 0 | Q188: 0
A189: B/I/1/4 | B189: Opracowania i analizy związane z komunikacją miejską | C189: 4 zadanie | D189: NIE | E189: 600 | F189: 60095 | G189: 4309 | H189: +002 | I189: SFUE/22/5 | P189: 0 | Q189: 0
A190: B/I/1/4 | B190: Opracowania i analizy związane z komunikacją miejską | C190: 4 zadanie | D190: NIE | E190: 600 | F190: 60095 | G190: 4390 | H190: Zakup usług obejmujących wykonanie ekspertyz, analiz i opinii | I190: GMMW | P190: 0 | Q190: 0
A191: B/I/1/4 | B191: Opracowania i analizy związane z komunikacją miejską | C191: 4 zadanie | D191: NIE | E191: 600 | F191: 60095 | G191: 4398 | H191: Zakup usług obejmujących wykonanie ekspertyz, analiz i opinii | I191: SFUE/22/5 | P191: 0 | Q191: 0
A192: B/I/1/4 | B192: Opracowania i analizy związane z komunikacją miejską | C192: 4 zadanie | D192: NIE | E192: 600 | F192: 60095 | G192: 4399 | H192: Zakup usług obejmujących wykonanie ekspertyz, analiz i opinii | J192: =SUM(J193:J195) -> 0 | K192: 0 | L192: 0 | M192: 0 | N192: 0 | O192: 0 | P192: 0 | Q192: 0
A193: B/I/1/4 | B193: Opracowania i analizy związane z komunikacją miejską | C193: 4 zadanie | D193: NIE | E193: 600 | F193: 60095 | G193: 4399 | H193: +000 | I193: SFUE/22/5 | P193: 0 | Q193: 0
A194: B/I/1/4 | B194: Opracowania i analizy związane z komunikacją miejską | C194: 4 zadanie | D194: NIE | E194: 600 | F194: 60095 | G194: 4399 | H194: +001 | I194: SFUE/22/5 | P194: 0 | Q194: 0
A195: B/I/1/4 | B195: Opracowania i analizy związane z komunikacją miejską | C195: 4 zadanie | D195: NIE | E195: 600 | F195: 60095 | G195: 4399 | H195: +002 | I195: SFUE/22/5 | P195: 0 | Q195: 0
A196: B/I/1/4 | B196: Opracowania i analizy związane z komunikacją miejską | C196: 4 zadanie | D196: NIE | E196: 600 | F196: 60095 | G196: 4530 | H196: Podatek od towarów i usług (VAT) | I196: GMMW | P196: 0 | Q196: 0
A197: I/2 | B197: Drogi i mosty | C197: 2 program | D197: T | J197: =SUM(J414,J329,J317,J296,J290,J283,J198) -> 17005500 | K197: 0 | L197: 134000 | M197: 373000 | N197: 0 | O197: 0 | P197: 17244500 | Q197: 0 | R197: Tak | S197: Tak
A198: B/I/2/1 | B198: Utrzymanie i remonty dróg | C198: 1 zadanie | D198: T | J198: =SUM(J272,J233,J199) -> 12449384 | K198: 0 | L198: 0 | M198: 243000 | N198: 0 | O198: 0 | P198: 12692384 | Q198: 0 | R198: Tak | S198: Tak
A199: B/I/2/1/1 | B199: Utrzymanie i remonty dróg gminnych | C199: 1 podzadanie | D199: T | J199: =SUM(J231,J200) -> 12299384 | K199: 0 | L199: 0 | M199: 243000 | N199: 0 | O199: 0 | P199: 12542384 | Q199: 0 | R199: Tak | S199: Tak
A200: B/I/2/1/1 | B200: Utrzymanie i remonty dróg gminnych | C200: 1 podzadanie | D200: NIE | E200: 600 | F200: 60016 | J200: =SUM(J201:J230) -> 12126384 | K200: 0 | L200: 0 | M200: 243000 | N200: 0 | O200: 0 | P200: 12369384 | Q200: 0 | R200: Tak | S200: Tak
... 4300 more rows

Sheet KLASYCZNY
A1: PLAN WYDATKÓW w UKŁADZIE KLASYCZNYM | L1: Załącznik nr 7 do Uchwały Nr Rady Dzielnicy Śródmieście m.st. Warszawy z dnia
D3: =IF(OR(P4<>"",O4<>""),"Istnieją błędy","") ->  | E3: =E9029 -> 1206690309 | F3: 311343976 | G3: 18419661 | H3: 17167855 | I3: 17599319 | J3: 1595116 | K3: 1208049603 | L3: 297950873
A4: Dział | B4: Rozdział | C4: § | D4: Wyszczególnienie | E4: PLAN | F4: w tym Urząd m.st. Warszawy | G4: PLAN Zmiana[-] | H4: PLAN Zmiana[+] | I4: w tym Urząd Zmiana[-] | J4: w tym Urząd Zmiana[+] | K4: PLAN PO ZMIANIE | L4: w tym Urząd PO ZMIANIE | M4: Pozycja wypełniona | N4: Zmiany wypełnione | O4: =IF(COUNTIF(O5:O164,"błędny urząd")<>0,"ŹLE","") ->  | P4: =IF(COUNTIF(P5:P164,"ujemny plan")<>0,"ŹLE","") -> 
A5: 010 | D5: Rolnictwo i łowiectwo | E5: =SUM(E6,E15) -> 0 | F5: 0 | G5: 0 | H5: 0 | I5: 0 | J5: 0 | K5: 0 | L5: 0 | M5: =IF(SUM(E5:L5)>0,"Tak","") ->  | N5: =IF(SUM(G5:J5)>0,"Tak","") ->  | O5: =IF(OR(E5<F5,K5<L5,G5<I5,H5<J5),"błędny urząd","") ->  | P5: =IF(OR(E5<0,F5<0,K5<0,L5<0),"ujemny plan","") -> 
D6: WYDATKI BIEŻĄCE | E6: =SUM(E7,E10:E14) -> 0 | F6: 0 | G6: 0 | H6: 0 | I6: 0 | J6: 0 | K6: 0 | L6: 0
D7: Wydatki jednostek budżetowych w tym na: | E7: =SUM(E8:E9) -> 0 | F7: 0 | G7: 0 | H7: 0 | I7: 0 | J7: 0 | K7: 0 | L7: 0
D8: wynagrodzenia i składki od nich naliczane | E8: =SUM(E19,E33,E45,E57) -> 0 | F8: 0 | G8: 0 | H8: 0 | I8: 0 | J8: 0 | K8: 0 | L8: 0
D9: wydatki związane z realizacją ich zadań statutowych | E9: 0 | F9: 0 | G9: 0 | H9: 0 | I9: 0 | J9: 0 | K9: 0 | L9: 0
D10: Dotacje na zadania bieżące | E10: 0 | F10: 0 | G10: 0 | H10: 0 | I10: 0 | J10: 0 | K10: 0 | L10: 0
D11: Świadczenia na rzecz osób fizycznych | E11: 0 | F11: 0 | G11: 0 | H11: 0 | I11: 0 | J11: 0 | K11: 0 | L11: 0
D12: Wydatki na programy finansowane z UE | E12: 0 | F12: 0 | G12: 0 | H12: 0 | I12: 0 | J12: 0 | K12: 0 | L12: 0
D13: Obsługa długu | E13: 0 | F13: 0 | G13: 0 | H13: 0 | I13: 0 | J13: 0 | K13: 0 | L13: 0
D14: Poręczenia i gwarancje | E14: 0 | F14: 0 | G14: 0 | H14: 0 | I14: 0 | J14: 0 | K14: 0 | L14: 0
D15: WYDATKI MAJĄTKOWE | E15: 0 | F15: 0 | G15: 0 | H15: 0 | I15: 0 | J15: 0 | K15: 0 | L15: 0
B16: 01005 | D16: Prace geodezyjno - urządzeniowe na potrzeby rolnictwa | E16: =SUM(E17,E26) -> 0 | F16: 0 | G16: 0 | H16: 0 | I16: 0 | J16: 0 | K16: 0 | L16: 0
D17: WYDATKI BIEŻĄCE | E17: =SUM(E18,E21:E25) -> 0 | F17: 0 | G17: 0 | H17: 0 | I17: 0 | J17: 0 | K17: 0 | L17: 0
D18: Wydatki jednostek budżetowych w tym na: | E18: =SUM(E19:E20) -> 0 | F18: 0 | G18: 0 | H18: 0 | I18: 0 | J18: 0 | K18: 0 | L18: 0
D19: wynagrodzenia i składki od nich naliczane
D20: wydatki związane z realizacją ich zadań statutowych | E20: =0+E27 -> 0 | F20: 0 | G20: 0 | H20: 0 | I20: 0 | J20: 0 | K20: 0 | L20: 0
D21: Dotacje na zadania bieżące
D22: Świadczenia na rzecz osób fizycznych
D23: Wydatki na programy finansowane z UE
D24: Obsługa długu
D25: Poręczenia i gwarancje
D26: WYDATKI MAJĄTKOWE
C27: 4300 | D27: Zakup usług pozostałych | E27: =SUM(E28:E29) -> 0 | F27: 0 | G27: 0 | H27: 0 | I27: 0 | J27: 0 | K27: 0 | L27: 0
D28: Środki z budżetu państwa | E28: =0 -> 0 | F28: =0 -> 0 | G28: =0 -> 0 | H28: =0 -> 0 | I28: =0 -> 0 | J28: =0 -> 0 | K28: =E28-G28+H28 -> 0 | L28: =F28-I28+J28 -> 0 | M28: =IF(SUM(E28:L28)>0,"Tak","") ->  | N28: =IF(SUM(G28:J28)>0,"Tak","") ->  | O28: =IF(OR(E28<F28,K28<L28,G28<I28,H28<J28),"błędny urząd","") ->  | P28: =IF(OR(E28<0,F28<0,K28<0,L28<0),"ujemny plan","") -> 
D29: Środki z budżetu miasta | E29: =0 -> 0 | F29: =0 -> 0 | G29: =0 -> 0 | H29: =0 -> 0 | I29: =0 -> 0 | J29: =0 -> 0 | K29: =E29-G29+H29 -> 0 | L29: =F29-I29+J29 -> 0 | M29: =IF(SUM(E29:L29)>0,"Tak","") ->  | N29: =IF(SUM(G29:J29)>0,"Tak","") ->  | O29: =IF(OR(E29<F29,K29<L29,G29<I29,H29<J29),"błędny urząd","") ->  | P29: =IF(OR(E29<0,F29<0,K29<0,L29<0),"ujemny plan","") -> 
B30: 01030 | D30: Izby rolnicze | E30: =SUM(E31,E40) -> 0 | F30: 0 | G30: 0 | H30: 0 | I30: 0 | J30: 0 | K30: 0 | L30: 0
D31: WYDATKI BIEŻĄCE | E31: =SUM(E32,E35:E39) -> 0 | F31: 0 | G31: 0 | H31: 0 | I31: 0 | J31: 0 | K31: 0 | L31: 0
D32: Wydatki jednostek budżetowych w tym na: | E32: =SUM(E33:E34) -> 0 | F32: 0 | G32: 0 | H32: 0 | I32: 0 | J32: 0 | K32: 0 | L32: 0
D33: wynagrodzenia i składki od nich naliczane
D34: wydatki związane z realizacją ich zadań statutowych | E34: =0+E41 -> 0 | F34: 0 | G34: 0 | H34: 0 | I34: 0 | J34: 0 | K34: 0 | L34: 0
D35: Dotacje na zadania bieżące
D36: Świadczenia na rzecz osób fizycznych
D37: Wydatki na programy finansowane z UE
D38: Obsługa długu
D39: Poręczenia i gwarancje
D40: WYDATKI MAJĄTKOWE
C41: 2850 | D41: Wpłaty gmin na rzecz izb rolniczych w wysokości 2% uzyskanych wpływów z podatku rolnego | E41: =0+ZADANIOWY!J1962 -> 0 | F41: =0+ZADANIOWY!K1962 -> 0 | G41: =0+ZADANIOWY!L1962 -> 0 | H41: =0+ZADANIOWY!M1962 -> 0 | I41: =0+ZADANIOWY!N1962 -> 0 | J41: =0+ZADANIOWY!O1962 -> 0 | K41: 0 | L41: 0
B42: 01078 | D42: Izby rolnicze | E42: =SUM(E43,E52) -> 0 | F42: 0 | G42: 0 | H42: 0 | I42: 0 | J42: 0 | K42: 0 | L42: 0
D43: WYDATKI BIEŻĄCE | E43: =SUM(E44,E47:E51) -> 0 | F43: 0 | G43: 0 | H43: 0 | I43: 0 | J43: 0 | K43: 0 | L43: 0
D44: Wydatki jednostek budżetowych w tym na: | E44: =SUM(E45:E46) -> 0 | F44: 0 | G44: 0 | H44: 0 | I44: 0 | J44: 0 | K44: 0 | L44: 0
D45: wynagrodzenia i składki od nich naliczane
D46: wydatki związane z realizacją ich zadań statutowych
D47: Dotacje na zadania bieżące | E47: =0+E53 -> 0 | F47: 0 | G47: 0 | H47: 0 | I47: 0 | J47: 0 | K47: 0 | L47: 0
D48: Świadczenia na rzecz osób fizycznych
D49: Wydatki na programy finansowane z UE
D50: Obsługa długu
D51: Poręczenia i gwarancje
D52: WYDATKI MAJĄTKOWE
C53: 2710 | D53: Dotacja celowa na pomoc finansową udzielaną między jednostkami samorządu terytorialnego na dofinansowanie własnych zadań bieżących | E53: =0 -> 0 | F53: =0 -> 0 | G53: =0 -> 0 | H53: =0 -> 0 | I53: =0 -> 0 | J53: =0 -> 0 | K53: 0 | L53: 0
B54: 01095 | D54: Pozostała działalność | E54: =SUM(E55,E64) -> 0 | F54: 0 | G54: 0 | H54: 0 | I54: 0 | J54: 0 | K54: 0 | L54: 0
D55: WYDATKI BIEŻĄCE | E55: =SUM(E56,E59:E63) -> 0 | F55: 0 | G55: 0 | H55: 0 | I55: 0 | J55: 0 | K55: 0 | L55: 0
D56: Wydatki jednostek budżetowych w tym na: | E56: =SUM(E57:E58) -> 0 | F56: 0 | G56: 0 | H56: 0 | I56: 0 | J56: 0 | K56: 0 | L56: 0
D57: wynagrodzenia i składki od nich naliczane | E57: =0+E65+E68+E71+E80 -> 0 | F57: 0 | G57: 0 | H57: 0 | I57: 0 | J57: 0 | K57: 0 | L57: 0
D58: wydatki związane z realizacją ich zadań statutowych | E58: =0+E74+E77 -> 0 | F58: 0 | G58: 0 | H58: 0 | I58: 0 | J58: 0 | K58: 0 | L58: 0
D59: Dotacje na zadania bieżące
D60: Świadczenia na rzecz osób fizycznych
D61: Wydatki na programy finansowane z UE
D62: Obsługa długu
D63: Poręczenia i gwarancje
D64: WYDATKI MAJĄTKOWE
C65: 4010 | D65: Wynagrodzenia osobowe pracowników | E65: =SUM(E66:E67) -> 0 | F65: 0 | G65: 0 | H65: 0 | I65: 0 | J65: 0 | K65: 0 | L65: 0
D66: Środki z budżetu państwa | E66: =0 -> 0 | F66: =0 -> 0 | G66: =0 -> 0 | H66: =0 -> 0 | I66: =0 -> 0 | J66: =0 -> 0 | K66: 0 | L66: 0
D67: Środki z budżetu miasta | E67: =0 -> 0 | F67: =0 -> 0 | G67: =0 -> 0 | H67: =0 -> 0 | I67: =0 -> 0 | J67: =0 -> 0 | K67: 0 | L67: 0
C68: 4110 | D68: Składki na ubezpieczenia społeczne | E68: =SUM(E69:E70) -> 0 | F68: 0 | G68: 0 | H68: 0 | I68: 0 | J68: 0 | K68: 0 | L68: 0
D69: Środki z budżetu państwa | E69: =0 -> 0 | F69: =0 -> 0 | G69: =0 -> 0 | H69: =0 -> 0 | I69: =0 -> 0 | J69: =0 -> 0 | K69: 0 | L69: 0
D70: Środki z budżetu miasta | E70: =0 -> 0 | F70: =0 -> 0 | G70: =0 -> 0 | H70: =0 -> 0 | I70: =0 -> 0 | J70: =0 -> 0 | K70: 0 | L70: 0
C71: 4120 | D71: Składki na Fundusz Pracy oraz Fundusz Solidarnościowy | E71: =SUM(E72:E73) -> 0 | F71: 0 | G71: 0 | H71: 0 | I71: 0 | J71: 0 | K71: 0 | L71: 0
D72: Środki z budżetu państwa | E72: =0 -> 0 | F72: =0 -> 0 | G72: =0 -> 0 | H72: =0 -> 0 | I72: =0 -> 0 | J72: =0 -> 0 | K72: 0 | L72: 0
D73: Środki z budżetu miasta | E73: =0 -> 0 | F73: =0 -> 0 | G73: =0 -> 0 | H73: =0 -> 0 | I73: =0 -> 0 | J73: =0 -> 0 | K73: 0 | L73: 0
C74: 4300 | D74: Zakup usług pozostałych | E74: =SUM(E75:E76) -> 0 | F74: 0 | G74: 0 | H74: 0 | I74: 0 | J74: 0 | K74: 0 | L74: 0
D75: Środki z budżetu państwa | E75: =0+ZADANIOWY!J1955 -> 0 | F75: =0+ZADANIOWY!K1955 -> 0 | G75: =0+ZADANIOWY!L1955 -> 0 | H75: =0+ZADANIOWY!M1955 -> 0 | I75: =0+ZADANIOWY!N1955 -> 0 | J75: =0+ZADANIOWY!O1955 -> 0 | K75: 0 | L75: 0
D76: Środki z budżetu miasta | E76: =0+ZADANIOWY!J1956 -> 0 | F76: =0+ZADANIOWY!K1956 -> 0 | G76: =0+ZADANIOWY!L1956 -> 0 | H76: =0+ZADANIOWY!M1956 -> 0 | I76: =0+ZADANIOWY!N1956 -> 0 | J76: =0+ZADANIOWY!O1956 -> 0 | K76: 0 | L76: 0
C77: 4430 | D77: Różne opłaty i składki | E77: =SUM(E78:E79) -> 0 | F77: 0 | G77: 0 | H77: 0 | I77: 0 | J77: 0 | K77: 0 | L77: 0
D78: Środki z budżetu państwa | E78: =0+ZADANIOWY!J1958 -> 0 | F78: =0+ZADANIOWY!K1958 -> 0 | G78: =0+ZADANIOWY!L1958 -> 0 | H78: =0+ZADANIOWY!M1958 -> 0 | I78: =0+ZADANIOWY!N1958 -> 0 | J78: =0+ZADANIOWY!O1958 -> 0 | K78: 0 | L78: 0
D79: Środki z budżetu miasta | E79: =0+ZADANIOWY!J1959 -> 0 | F79: =0+ZADANIOWY!K1959 -> 0 | G79: =0+ZADANIOWY!L1959 -> 0 | H79: =0+ZADANIOWY!M1959 -> 0 | I79: =0+ZADANIOWY!N1959 -> 0 | J79: =0+ZADANIOWY!O1959 -> 0 | K79: 0 | L79: 0
C80: 4710 | D80: Wpłaty na PPK finansowane przez podmiot zatrudniający | E80: =SUM(E81:E82) -> 0 | F80: 0 | G80: 0 | H80: 0 | I80: 0 | J80: 0 | K80: 0 | L80: 0
D81: Środki z budżetu państwa | E81: =0 -> 0 | F81: =0 -> 0 | G81: =0 -> 0 | H81: =0 -> 0 | I81: =0 -> 0 | J81: =0 -> 0 | K81: 0 | L81: 0
D82: Środki z budżetu miasta | E82: =0 -> 0 | F82: =0 -> 0 | G82: =0 -> 0 | H82: =0 -> 0 | I82: =0 -> 0 | J82: =0 -> 0 | K82: 0 | L82: 0
A83: 020 | D83: Leśnictwo | E83: =SUM(E84,E93) -> 0 | F83: 0 | G83: 0 | H83: 0 | I83: 0 | J83: 0 | K83: 0 | L83: 0
D84: WYDATKI BIEŻĄCE | E84: =SUM(E85,E88:E92) -> 0 | F84: 0 | G84: 0 | H84: 0 | I84: 0 | J84: 0 | K84: 0 | L84: 0
D85: Wydatki jednostek budżetowych w tym na: | E85: =SUM(E86:E87) -> 0 | F85: 0 | G85: 0 | H85: 0 | I85: 0 | J85: 0 | K85: 0 | L85: 0
D86: wynagrodzenia i składki od nich naliczane | E86: =SUM(E97,E147) -> 0 | F86: 0 | G86: 0 | H86: 0 | I86: 0 | J86: 0 | K86: 0 | L86: 0
D87: wydatki związane z realizacją ich zadań statutowych | E87: 0 | F87: 0 | G87: 0 | H87: 0 | I87: 0 | J87: 0 | K87: 0 | L87: 0
D88: Dotacje na zadania bieżące | E88: 0 | F88: 0 | G88: 0 | H88: 0 | I88: 0 | J88: 0 | K88: 0 | L88: 0
D89: Świadczenia na rzecz osób fizycznych | E89: 0 | F89: 0 | G89: 0 | H89: 0 | I89: 0 | J89: 0 | K89: 0 | L89: 0
D90: Wydatki na programy finansowane z UE | E90: 0 | F90: 0 | G90: 0 | H90: 0 | I90: 0 | J90: 0 | K90: 0 | L90: 0
D91: Obsługa długu | E91: 0 | F91: 0 | G91: 0 | H91: 0 | I91: 0 | J91: 0 | K91: 0 | L91: 0
D92: Poręczenia i gwarancje | E92: 0 | F92: 0 | G92: 0 | H92: 0 | I92: 0 | J92: 0 | K92: 0 | L92: 0
D93: WYDATKI MAJĄTKOWE | E93: 0 | F93: 0 | G93: 0 | H93: 0 | I93: 0 | J93: 0 | K93: 0 | L93: 0 | M93: =IF(SUM(E93:L93)>0,"Tak","") ->  | N93: =IF(SUM(G93:J93)>0,"Tak","") ->  | O93: =IF(OR(E93<F93,K93<L93,G93<I93,H93<J93),"błędny urząd","") ->  | P93: =IF(OR(E93<0,F93<0,K93<0,L93<0),"ujemny plan","") -> 
B94: 02001 | D94: Gospodarka leśna | E94: =SUM(E95,E104) -> 0 | F94: 0 | G94: 0 | H94: 0 | I94: 0 | J94: 0 | K94: 0 | L94: 0
D95: WYDATKI BIEŻĄCE | E95: =SUM(E96,E99:E103) -> 0 | F95: 0 | G95: 0 | H95: 0 | I95: 0 | J95: 0 | K95: 0 | L95: 0
D96: Wydatki jednostek budżetowych w tym na: | E96: =SUM(E97:E98) -> 0 | F96: 0 | G96: 0 | H96: 0 | I96: 0 | J96: 0 | K96: 0 | L96: 0
D97: wynagrodzenia i składki od nich naliczane | E97: =0+E106+E107+E108+E109+E111+E143 -> 0 | F97: 0 | G97: 0 | H97: 0 | I97: 0 | J97: 0 | K97: 0 | L97: 0
D98: wydatki związane z realizacją ich zadań statutowych | E98: =0+E110+E112+E113+E116+E117+E118+E119+E120+E121+E124+E125+E126+E127+E128+E129+E130+E131+E132+E133+E134+E135+E136+E137+E138+E139+E140+E141+E142 -> 0 | F98: 0 | G98: 0 | H98: 0 | I98: 0 | J98: 0 | K98: 0 | L98: 0
D99: Dotacje na zadania bieżące
D100: Świadczenia na rzecz osób fizycznych | E100: =0+E105 -> 0 | F100: 0 | G100: 0 | H100: 0 | I100: 0 | J100: 0 | K100: 0 | L100: 0
D101: Wydatki na programy finansowane z UE | E101: =0+E114+E115+E122+E123 -> 0 | F101: 0 | G101: 0 | H101: 0 | I101: 0 | J101: 0 | K101: 0 | L101: 0
D102: Obsługa długu
D103: Poręczenia i gwarancje
D104: WYDATKI MAJĄTKOWE
C105: 3020 | D105: Wydatki osobowe niezaliczone do wynagrodzeń | E105: =0+ZADANIOWY!J1865 -> 0 | F105: =0+ZADANIOWY!K1865 -> 0 | G105: =0+ZADANIOWY!L1865 -> 0 | H105: =0+ZADANIOWY!M1865 -> 0 | I105: =0+ZADANIOWY!N1865 -> 0 | J105: =0+ZADANIOWY!O1865 -> 0 | K105: =E105-G105+H105 -> 0 | L105: =F105-I105+J105 -> 0
C106: 4010 | D106: Wynagrodzenia osobowe pracowników | E106: =0+ZADANIOWY!J1866 -> 0 | F106: =0+ZADANIOWY!K1866 -> 0 | G106: =0+ZADANIOWY!L1866 -> 0 | H106: =0+ZADANIOWY!M1866 -> 0 | I106: =0+ZADANIOWY!N1866 -> 0 | J106: =0+ZADANIOWY!O1866 -> 0 | K106: 0 | L106: 0
C107: 4040 | D107: Dodatkowe wynagrodzenie roczne | E107: =0+ZADANIOWY!J1867 -> 0 | F107: =0+ZADANIOWY!K1867 -> 0 | G107: =0+ZADANIOWY!L1867 -> 0 | H107: =0+ZADANIOWY!M1867 -> 0 | I107: =0+ZADANIOWY!N1867 -> 0 | J107: =0+ZADANIOWY!O1867 -> 0 | K107: 0 | L107: 0
C108: 4110 | D108: Składki na ubezpieczenia społeczne | E108: =0+ZADANIOWY!J1868 -> 0 | F108: =0+ZADANIOWY!K1868 -> 0 | G108: =0+ZADANIOWY!L1868 -> 0 | H108: =0+ZADANIOWY!M1868 -> 0 | I108: =0+ZADANIOWY!N1868 -> 0 | J108: =0+ZADANIOWY!O1868 -> 0 | K108: 0 | L108: 0
C109: 4120 | D109: Składki na Fundusz Pracy oraz Fundusz Solidarnościowy | E109: =0+ZADANIOWY!J1869 -> 0 | F109: =0+ZADANIOWY!K1869 -> 0 | G109: =0+ZADANIOWY!L1869 -> 0 | H109: =0+ZADANIOWY!M1869 -> 0 | I109: =0+ZADANIOWY!N1869 -> 0 | J109: =0+ZADANIOWY!O1869 -> 0 | K109: 0 | L109: 0
C110: 4140 | D110: Wpłaty na Państwowy Fundusz Rehabilitacji Osób Niepełnosprawnych | E110: =0+ZADANIOWY!J1870 -> 0 | F110: =0+ZADANIOWY!K1870 -> 0 | G110: =0+ZADANIOWY!L1870 -> 0 | H110: =0+ZADANIOWY!M1870 -> 0 | I110: =0+ZADANIOWY!N1870 -> 0 | J110: =0+ZADANIOWY!O1870 -> 0 | K110: 0 | L110: 0
C111: 4170 | D111: Wynagrodzenia bezosobowe | E111: =0+ZADANIOWY!J1871+ZADANIOWY!J1872+ZADANIOWY!J1873+ZADANIOWY!J1874+ZADANIOWY!J1875 -> 0 | F111: =0+ZADANIOWY!K1871+ZADANIOWY!K1872+ZADANIOWY!K1873+ZADANIOWY!K1874+ZADANIOWY!K1875 -> 0 | G111: =0+ZADANIOWY!L1871+ZADANIOWY!L1872+ZADANIOWY!L1873+ZADANIOWY!L1874+ZADANIOWY!L1875 -> 0 | H111: =0+ZADANIOWY!M1871+ZADANIOWY!M1872+ZADANIOWY!M1873+ZADANIOWY!M1874+ZADANIOWY!M1875 -> 0 | I111: =0+ZADANIOWY!N1871+ZADANIOWY!N1872+ZADANIOWY!N1873+ZADANIOWY!N1874+ZADANIOWY!N1875 -> 0 | J111: =0+ZADANIOWY!O1871+ZADANIOWY!O1872+ZADANIOWY!O1873+ZADANIOWY!O1874+ZADANIOWY!O1875 -> 0 | K111: 0 | L111: 0
C112: 4190 | D112: Nagrody konkursowe | E112: =0 -> 0 | F112: =0 -> 0 | G112: =0 -> 0 | H112: =0 -> 0 | I112: =0 -> 0 | J112: =0 -> 0 | K112: 0 | L112: 0
C113: 4210 | D113: Zakup materiałów i wyposażenia | E113: =0+ZADANIOWY!J1876+ZADANIOWY!J1877+ZADANIOWY!J1878+ZADANIOWY!J1879+ZADANIOWY!J1880+ZADANIOWY!J1881+ZADANIOWY!J1882 -> 0 | F113: =0+ZADANIOWY!K1876+ZADANIOWY!K1877+ZADANIOWY!K1878+ZADANIOWY!K1879+ZADANIOWY!K1880+ZADANIOWY!K1881+ZADANIOWY!K1882 -> 0 | G113: =0+ZADANIOWY!L1876+ZADANIOWY!L1877+ZADANIOWY!L1878+ZADANIOWY!L1879+ZADANIOWY!L1880+ZADANIOWY!L1881+ZADANIOWY!L1882 -> 0 | H113: =0+ZADANIOWY!M1876+ZADANIOWY!M1877+ZADANIOWY!M1878+ZADANIOWY!M1879+ZADANIOWY!M1880+ZADANIOWY!M1881+ZADANIOWY!M1882 -> 0 | I113: =0+ZADANIOWY!N1876+ZADANIOWY!N1877+ZADANIOWY!N1878+ZADANIOWY!N1879+ZADANIOWY!N1880+ZADANIOWY!N1881+ZADANIOWY!N1882 -> 0 | J113: =0+ZADANIOWY!O1876+ZADANIOWY!O1877+ZADANIOWY!O1878+ZADANIOWY!O1879+ZADANIOWY!O1880+ZADANIOWY!O1881+ZADANIOWY!O1882 -> 0 | K113: 0 | L113: 0
C114: 4217 | D114: Zakup materiałów i wyposażenia | E114: =0 -> 0 | F114: =0 -> 0 | G114: =0 -> 0 | H114: =0 -> 0 | I114: =0 -> 0 | J114: =0 -> 0 | K114: 0 | L114: 0
C115: 4219 | D115: Zakup materiałów i wyposażenia | E115: =0 -> 0 | F115: =0 -> 0 | G115: =0 -> 0 | H115: =0 -> 0 | I115: =0 -> 0 | J115: =0 -> 0 | K115: 0 | L115: 0
C116: 4220 | D116: Zakup środków żywności | E116: =0+ZADANIOWY!J1883+ZADANIOWY!J1884 -> 0 | F116: =0+ZADANIOWY!K1883+ZADANIOWY!K1884 -> 0 | G116: =0+ZADANIOWY!L1883+ZADANIOWY!L1884 -> 0 | H116: =0+ZADANIOWY!M1883+ZADANIOWY!M1884 -> 0 | I116: =0+ZADANIOWY!N1883+ZADANIOWY!N1884 -> 0 | J116: =0+ZADANIOWY!O1883+ZADANIOWY!O1884 -> 0 | K116: 0 | L116: 0
C117: 4240 | D117: Zakup środków dydaktycznych i książek | E117: =0 -> 0 | F117: =0 -> 0 | G117: =0 -> 0 | H117: =0 -> 0 | I117: =0 -> 0 | J117: =0 -> 0 | K117: 0 | L117: 0
C118: 4260 | D118: Zakup energii | E118: =0+ZADANIOWY!J1885 -> 0 | F118: =0+ZADANIOWY!K1885 -> 0 | G118: =0+ZADANIOWY!L1885 -> 0 | H118: =0+ZADANIOWY!M1885 -> 0 | I118: =0+ZADANIOWY!N1885 -> 0 | J118: =0+ZADANIOWY!O1885 -> 0 | K118: 0 | L118: 0
C119: 4270 | D119: Zakup usług remontowych | E119: =0+ZADANIOWY!J1886 -> 0 | F119: =0+ZADANIOWY!K1886 -> 0 | G119: =0+ZADANIOWY!L1886 -> 0 | H119: =0+ZADANIOWY!M1886 -> 0 | I119: =0+ZADANIOWY!N1886 -> 0 | J119: =0+ZADANIOWY!O1886 -> 0 | K119: 0 | L119: 0
C120: 4280 | D120: Zakup usług zdrowotnych | E120: =0+ZADANIOWY!J1887 -> 0 | F120: =0+ZADANIOWY!K1887 -> 0 | G120: =0+ZADANIOWY!L1887 -> 0 | H120: =0+ZADANIOWY!M1887 -> 0 | I120: =0+ZADANIOWY!N1887 -> 0 | J120: =0+ZADANIOWY!O1887 -> 0 | K120: 0 | L120: 0
C121: 4300 | D121: Zakup usług pozostałych | E121: =0+ZADANIOWY!J1888+ZADANIOWY!J1889+ZADANIOWY!J1890+ZADANIOWY!J1891+ZADANIOWY!J1892+ZADANIOWY!J1893+ZADANIOWY!J1894 -> 0 | F121: =0+ZADANIOWY!K1888+ZADANIOWY!K1889+ZADANIOWY!K1890+ZADANIOWY!K1891+ZADANIOWY!K1892+ZADANIOWY!K1893+ZADANIOWY!K1894 -> 0 | G121: =0+ZADANIOWY!L1888+ZADANIOWY!L1889+ZADANIOWY!L1890+ZADANIOWY!L1891+ZADANIOWY!L1892+ZADANIOWY!L1893+ZADANIOWY!L1894 -> 0 | H121: =0+ZADANIOWY!M1888+ZADANIOWY!M1889+ZADANIOWY!M1890+ZADANIOWY!M1891+ZADANIOWY!M1892+ZADANIOWY!M1893+ZADANIOWY!M1894 -> 0 | I121: =0+ZADANIOWY!N1888+ZADANIOWY!N1889+ZADANIOWY!N1890+ZADANIOWY!N1891+ZADANIOWY!N1892+ZADANIOWY!N1893+ZADANIOWY!N1894 -> 0 | J121: =0+ZADANIOWY!O1888+ZADANIOWY!O1889+ZADANIOWY!O1890+ZADANIOWY!O1891+ZADANIOWY!O1892+ZADANIOWY!O1893+ZADANIOWY!O1894 -> 0 | K121: 0 | L121: 0
C122: 4307 | D122: Zakup usług pozostałych | E122: =0 -> 0 | F122: =0 -> 0 | G122: =0 -> 0 | H122: =0 -> 0 | I122: =0 -> 0 | J122: =0 -> 0 | K122: 0 | L122: 0
C123: 4309 | D123: Zakup usług pozostałych | E123: =0 -> 0 | F123: =0 -> 0 | G123: =0 -> 0 | H123: =0 -> 0 | I123: =0 -> 0 | J123: =0 -> 0 | K123: 0 | L123: 0
C124: 4360 | D124: Opłaty z tytułu zakupu usług telekomunikacyjnych | E124: =0+ZADANIOWY!J1895 -> 0 | F124: =0+ZADANIOWY!K1895 -> 0 | G124: =0+ZADANIOWY!L1895 -> 0 | H124: =0+ZADANIOWY!M1895 -> 0 | I124: =0+ZADANIOWY!N1895 -> 0 | J124: =0+ZADANIOWY!O1895 -> 0 | K124: 0 | L124: 0
C125: 4380 | D125: Zakup usług obejmujących tłumaczenia | E125: =0 -> 0 | F125: =0 -> 0 | G125: =0 -> 0 | H125: =0 -> 0 | I125: =0 -> 0 | J125: =0 -> 0 | K125: 0 | L125: 0
C126: 4390 | D126: Zakup usług obejmujących wykonanie ekspertyz, analiz i opinii | E126: =0+ZADANIOWY!J1896+ZADANIOWY!J1897 -> 0 | F126: =0+ZADANIOWY!K1896+ZADANIOWY!K1897 -> 0 | G126: =0+ZADANIOWY!L1896+ZADANIOWY!L1897 -> 0 | H126: =0+ZADANIOWY!M1896+ZADANIOWY!M1897 -> 0 | I126: =0+ZADANIOWY!N1896+ZADANIOWY!N1897 -> 0 | J126: =0+ZADANIOWY!O1896+ZADANIOWY!O1897 -> 0 | K126: 0 | L126: 0
C127: 4400 | D127: Opłaty za administrowanie i czynsze za budynki, lokale i pomieszczenia garażowe | E127: =0+ZADANIOWY!J1898 -> 0 | F127: =0+ZADANIOWY!K1898 -> 0 | G127: =0+ZADANIOWY!L1898 -> 0 | H127: =0+ZADANIOWY!M1898 -> 0 | I127: =0+ZADANIOWY!N1898 -> 0 | J127: =0+ZADANIOWY!O1898 -> 0 | K127: 0 | L127: 0
C128: 4410 | D128: Podróże służbowe krajowe | E128: =0+ZADANIOWY!J1899 -> 0 | F128: =0+ZADANIOWY!K1899 -> 0 | G128: =0+ZADANIOWY!L1899 -> 0 | H128: =0+ZADANIOWY!M1899 -> 0 | I128: =0+ZADANIOWY!N1899 -> 0 | J128: =0+ZADANIOWY!O1899 -> 0 | K128: 0 | L128: 0
C129: 4420 | D129: Podróże służbowe zagraniczne | E129: =0 -> 0 | F129: =0 -> 0 | G129: =0 -> 0 | H129: =0 -> 0 | I129: =0 -> 0 | J129: =0 -> 0 | K129: 0 | L129: 0
C130: 4430 | D130: Różne opłaty i składki | E130: =0+ZADANIOWY!J1900 -> 0 | F130: =0+ZADANIOWY!K1900 -> 0 | G130: =0+ZADANIOWY!L1900 -> 0 | H130: =0+ZADANIOWY!M1900 -> 0 | I130: =0+ZADANIOWY!N1900 -> 0 | J130: =0+ZADANIOWY!O1900 -> 0 | K130: 0 | L130: 0
C131: 4440 | D131: Odpisy na zakładowy fundusz świadczeń socjalnych | E131: =0+ZADANIOWY!J1901 -> 0 | F131: =0+ZADANIOWY!K1901 -> 0 | G131: =0+ZADANIOWY!L1901 -> 0 | H131: =0+ZADANIOWY!M1901 -> 0 | I131: =0+ZADANIOWY!N1901 -> 0 | J131: =0+ZADANIOWY!O1901 -> 0 | K131: 0 | L131: 0
C132: 4480 | D132: Podatek od nieruchomości | E132: =0+ZADANIOWY!J1902 -> 0 | F132: =0+ZADANIOWY!K1902 -> 0 | G132: =0+ZADANIOWY!L1902 -> 0 | H132: =0+ZADANIOWY!M1902 -> 0 | I132: =0+ZADANIOWY!N1902 -> 0 | J132: =0+ZADANIOWY!O1902 -> 0 | K132: 0 | L132: 0
C133: 4500 | D133: Pozostałe podatki na rzecz budżetów jednostek samorządu terytorialnego | E133: =0+ZADANIOWY!J1903 -> 0 | F133: =0+ZADANIOWY!K1903 -> 0 | G133: =0+ZADANIOWY!L1903 -> 0 | H133: =0+ZADANIOWY!M1903 -> 0 | I133: =0+ZADANIOWY!N1903 -> 0 | J133: =0+ZADANIOWY!O1903 -> 0 | K133: 0 | L133: 0
C134: 4510 | D134: Opłaty na rzecz budżetu państwa | E134: =0+ZADANIOWY!J1904 -> 0 | F134: =0+ZADANIOWY!K1904 -> 0 | G134: =0+ZADANIOWY!L1904 -> 0 | H134: =0+ZADANIOWY!M1904 -> 0 | I134: =0+ZADANIOWY!N1904 -> 0 | J134: =0+ZADANIOWY!O1904 -> 0 | K134: 0 | L134: 0
C135: 4520 | D135: Opłaty na rzecz budżetów jednostek samorządu terytorialnego | E135: =0+ZADANIOWY!J1905 -> 0 | F135: =0+ZADANIOWY!K1905 -> 0 | G135: =0+ZADANIOWY!L1905 -> 0 | H135: =0+ZADANIOWY!M1905 -> 0 | I135: =0+ZADANIOWY!N1905 -> 0 | J135: =0+ZADANIOWY!O1905 -> 0 | K135: 0 | L135: 0
C136: 4530 | D136: Podatek od towarów i usług (VAT) | E136: =0+ZADANIOWY!J1906 -> 0 | F136: =0+ZADANIOWY!K1906 -> 0 | G136: =0+ZADANIOWY!L1906 -> 0 | H136: =0+ZADANIOWY!M1906 -> 0 | I136: =0+ZADANIOWY!N1906 -> 0 | J136: =0+ZADANIOWY!O1906 -> 0 | K136: 0 | L136: 0
C137: 4580 | D137: Pozostałe odsetki | E137: =0+ZADANIOWY!J1907 -> 0 | F137: =0+ZADANIOWY!K1907 -> 0 | G137: =0+ZADANIOWY!L1907 -> 0 | H137: =0+ZADANIOWY!M1907 -> 0 | I137: =0+ZADANIOWY!N1907 -> 0 | J137: =0+ZADANIOWY!O1907 -> 0 | K137: 0 | L137: 0
C138: 4590 | D138: Kary i odszkodowania wypłacane na rzecz osób fizycznych | E138: =0+ZADANIOWY!J1908 -> 0 | F138: =0+ZADANIOWY!K1908 -> 0 | G138: =0+ZADANIOWY!L1908 -> 0 | H138: =0+ZADANIOWY!M1908 -> 0 | I138: =0+ZADANIOWY!N1908 -> 0 | J138: =0+ZADANIOWY!O1908 -> 0 | K138: 0 | L138: 0
C139: 4600 | D139: Kary, odszkodowania i grzywny wypłacane na rzecz osób prawnych i innych jednostek organizacyjnych | E139: =0 -> 0 | F139: =0 -> 0 | G139: =0 -> 0 | H139: =0 -> 0 | I139: =0 -> 0 | J139: =0 -> 0 | K139: 0 | L139: 0
C140: 4610 | D140: Koszty postępowania sądowego i prokuratorskiego | E140: =0+ZADANIOWY!J1909 -> 0 | F140: =0+ZADANIOWY!K1909 -> 0 | G140: =0+ZADANIOWY!L1909 -> 0 | H140: =0+ZADANIOWY!M1909 -> 0 | I140: =0+ZADANIOWY!N1909 -> 0 | J140: =0+ZADANIOWY!O1909 -> 0 | K140: 0 | L140: 0
C141: 4680 | D141: Odsetki od nieterminowych wpłat podatku od towarów i usług (VAT) | E141: =0 -> 0 | F141: =0 -> 0 | G141: =0 -> 0 | H141: =0 -> 0 | I141: =0 -> 0 | J141: =0 -> 0 | K141: 0 | L141: 0
C142: 4700 | D142: Szkolenia pracowników niebędących członkami korpusu służby cywilnej | E142: =0+ZADANIOWY!J1910 -> 0 | F142: =0+ZADANIOWY!K1910 -> 0 | G142: =0+ZADANIOWY!L1910 -> 0 | H142: =0+ZADANIOWY!M1910 -> 0 | I142: =0+ZADANIOWY!N1910 -> 0 | J142: =0+ZADANIOWY!O1910 -> 0 | K142: 0 | L142: 0
C143: 4710 | D143: Wpłaty na PPK finansowane przez podmiot zatrudniający | E143: =0+ZADANIOWY!J1911 -> 0 | F143: =0+ZADANIOWY!K1911 -> 0 | G143: =0+ZADANIOWY!L1911 -> 0 | H143: =0+ZADANIOWY!M1911 -> 0 | I143: =0+ZADANIOWY!N1911 -> 0 | J143: =0+ZADANIOWY!O1911 -> 0 | K143: 0 | L143: 0
B144: 02095 | D144: Pozostała działalność | E144: =SUM(E145,E154) -> 0 | F144: 0 | G144: 0 | H144: 0 | I144: 0 | J144: 0 | K144: 0 | L144: 0
D145: WYDATKI BIEŻĄCE | E145: =SUM(E146,E149:E153) -> 0 | F145: 0 | G145: 0 | H145: 0 | I145: 0 | J145: 0 | K145: 0 | L145: 0
D146: Wydatki jednostek budżetowych w tym na: | E146: =SUM(E147:E148) -> 0 | F146: 0 | G146: 0 | H146: 0 | I146: 0 | J146: 0 | K146: 0 | L146: 0
D147: wynagrodzenia i składki od nich naliczane | E147: =0+E155+E156+E157 -> 0 | F147: 0 | G147: 0 | H147: 0 | I147: 0 | J147: 0 | K147: 0 | L147: 0
D148: wydatki związane z realizacją ich zadań statutowych | E148: =0+E158+E159+E160 -> 0 | F148: 0 | G148: 0 | H148: 0 | I148: 0 | J148: 0 | K148: 0 | L148: 0
D149: Dotacje na zadania bieżące
D150: Świadczenia na rzecz osób fizycznych
D151: Wydatki na programy finansowane z UE
D152: Obsługa długu
D153: Poręczenia i gwarancje
D154: WYDATKI MAJĄTKOWE
C155: 4110 | D155: Składki na ubezpieczenia społeczne | E155: =0 -> 0 | F155: =0 -> 0 | G155: =0 -> 0 | H155: =0 -> 0 | I155: =0 -> 0 | J155: =0 -> 0 | K155: 0 | L155: 0
C156: 4120 | D156: Składki na Fundusz Pracy oraz Fundusz Solidarnościowy | E156: =0 -> 0 | F156: =0 -> 0 | G156: =0 -> 0 | H156: =0 -> 0 | I156: =0 -> 0 | J156: =0 -> 0 | K156: 0 | L156: 0
C157: 4170 | D157: Wynagrodzenia bezosobowe | E157: =0 -> 0 | F157: =0 -> 0 | G157: =0 -> 0 | H157: =0 -> 0 | I157: =0 -> 0 | J157: =0 -> 0 | K157: =E157-G157+H157 -> 0 | L157: =F157-I157+J157 -> 0 | M157: =IF(SUM(E157:L157)>0,"Tak","") ->  | N157: =IF(SUM(G157:J157)>0,"Tak","") ->  | O157: =IF(OR(E157<F157,K157<L157,G157<I157,H157<J157),"błędny urząd","") ->  | P157: =IF(OR(E157<0,F157<0,K157<0,L157<0),"ujemny plan","") -> 
C158: 4270 | D158: Zakup usług remontowych | E158: =0 -> 0 | F158: =0 -> 0 | G158: =0 -> 0 | H158: =0 -> 0 | I158: =0 -> 0 | J158: =0 -> 0 | K158: 0 | L158: 0
C159: 4300 | D159: Zakup usług pozostałych | E159: =0 -> 0 | F159: =0 -> 0 | G159: =0 -> 0 | H159: =0 -> 0 | I159: =0 -> 0 | J159: =0 -> 0 | K159: 0 | L159: 0
C160: 4500 | D160: Pozostałe podatki na rzecz budżetów jednostek samorządu terytorialnego | E160: =0 -> 0 | F160: =0 -> 0 | G160: =0 -> 0 | H160: =0 -> 0 | I160: =0 -> 0 | J160: =0 -> 0 | K160: 0 | L160: 0
A161: 400 | D161: Wytwarzanie i zaopatrywanie w energię elektryczną, gaz i wodę | E161: =SUM(E162,E171) -> 340108 | F161: 0 | G161: 4700 | H161: 0 | I161: 0 | J161: 0 | K161: 335408 | L161: 0 | M161: Tak | N161: Tak
D162: WYDATKI BIEŻĄCE | E162: =SUM(E163,E166:E170) -> 340108 | F162: 0 | G162: 4700 | H162: 0 | I162: 0 | J162: 0 | K162: 335408 | L162: 0 | M162: Tak | N162: Tak
D163: Wydatki jednostek budżetowych w tym na: | E163: =SUM(E164:E165) -> 340108 | F163: 0 | G163: 4700 | H163: 0 | I163: 0 | J163: 0 | K163: 335408 | L163: 0 | M163: Tak | N163: Tak
D164: wynagrodzenia i składki od nich naliczane | E164: =SUM(E175,E204) -> 0 | F164: 0 | G164: 0 | H164: 0 | I164: 0 | J164: 0 | K164: 0 | L164: 0
D165: wydatki związane z realizacją ich zadań statutowych | E165: 340108 | F165: 0 | G165: 4700 | H165: 0 | I165: 0 | J165: 0 | K165: 335408 | L165: 0 | M165: Tak | N165: Tak
D166: Dotacje na zadania bieżące | E166: 0 | F166: 0 | G166: 0 | H166: 0 | I166: 0 | J166: 0 | K166: 0 | L166: 0
D167: Świadczenia na rzecz osób fizycznych | E167: 0 | F167: 0 | G167: 0 | H167: 0 | I167: 0 | J167: 0 | K167: 0 | L167: 0
D168: Wydatki na programy finansowane z UE | E168: 0 | F168: 0 | G168: 0 | H168: 0 | I168: 0 | J168: 0 | K168: 0 | L168: 0
D169: Obsługa długu | E169: 0 | F169: 0 | G169: 0 | H169: 0 | I169: 0 | J169: 0 | K169: 0 | L169: 0
D170: Poręczenia i gwarancje | E170: 0 | F170: 0 | G170: 0 | H170: 0 | I170: 0 | J170: 0 | K170: 0 | L170: 0
D171: WYDATKI MAJĄTKOWE | E171: 0 | F171: 0 | G171: 0 | H171: 0 | I171: 0 | J171: 0 | K171: 0 | L171: 0
B172: 40002 | D172: Dostarczanie wody | E172: =SUM(E173,E182) -> 340108 | F172: 0 | G172: 4700 | H172: 0 | I172: 0 | J172: 0 | K172: 335408 | L172: 0 | M172: Tak | N172: Tak
D173: WYDATKI BIEŻĄCE | E173: =SUM(E174,E177:E181) -> 340108 | F173: 0 | G173: 4700 | H173: 0 | I173: 0 | J173: 0 | K173: 335408 | L173: 0 | M173: Tak | N173: Tak
D174: Wydatki jednostek budżetowych w tym na: | E174: =SUM(E175:E176) -> 340108 | F174: 0 | G174: 4700 | H174: 0 | I174: 0 | J174: 0 | K174: 335408 | L174: 0 | M174: Tak | N174: Tak
D175: wynagrodzenia i składki od nich naliczane | E175: =0+E183+E184+E185 -> 0 | F175: 0 | G175: 0 | H175: 0 | I175: 0 | J175: 0 | K175: 0 | L175: 0
D176: wydatki związane z realizacją ich zadań statutowych | E176: =0+E186+E187+E188+E189+E190+E191+E192+E193+E194+E195+E196+E197+E198 -> 340108 | F176: 0 | G176: 4700 | H176: 0 | I176: 0 | J176: 0 | K176: 335408 | L176: 0 | M176: Tak | N176: Tak
D177: Dotacje na zadania bieżące
D178: Świadczenia na rzecz osób fizycznych
D179: Wydatki na programy finansowane z UE
D180: Obsługa długu
D181: Poręczenia i gwarancje
D182: WYDATKI MAJĄTKOWE | E182: =0+E199+E200 -> 0 | F182: 0 | G182: 0 | H182: 0 | I182: 0 | J182: 0 | K182: 0 | L182: 0
C183: 4110 | D183: Składki na ubezpieczenia społeczne | E183: =0+ZADANIOWY!J1574 -> 0 | F183: =0+ZADANIOWY!K1574 -> 0 | G183: =0+ZADANIOWY!L1574 -> 0 | H183: =0+ZADANIOWY!M1574 -> 0 | I183: =0+ZADANIOWY!N1574 -> 0 | J183: =0+ZADANIOWY!O1574 -> 0 | K183: 0 | L183: 0
C184: 4120 | D184: Składki na Fundusz Pracy oraz Fundusz Solidarnościowy | E184: =0+ZADANIOWY!J1575 -> 0 | F184: =0+ZADANIOWY!K1575 -> 0 | G184: =0+ZADANIOWY!L1575 -> 0 | H184: =0+ZADANIOWY!M1575 -> 0 | I184: =0+ZADANIOWY!N1575 -> 0 | J184: =0+ZADANIOWY!O1575 -> 0 | K184: 0 | L184: 0
C185: 4170 | D185: Wynagrodzenia bezosobowe | E185: =0+ZADANIOWY!J1576 -> 0 | F185: =0+ZADANIOWY!K1576 -> 0 | G185: =0+ZADANIOWY!L1576 -> 0 | H185: =0+ZADANIOWY!M1576 -> 0 | I185: =0+ZADANIOWY!N1576 -> 0 | J185: =0+ZADANIOWY!O1576 -> 0 | K185: 0 | L185: 0
C186: 4210 | D186: Zakup materiałów i wyposażenia | E186: =0+ZADANIOWY!J1577 -> 0 | F186: =0+ZADANIOWY!K1577 -> 0 | G186: =0+ZADANIOWY!L1577 -> 0 | H186: =0+ZADANIOWY!M1577 -> 0 | I186: =0+ZADANIOWY!N1577 -> 0 | J186: =0+ZADANIOWY!O1577 -> 0 | K186: 0 | L186: 0
C187: 4260 | D187: Zakup energii | E187: =0+ZADANIOWY!J1578 -> 79305 | F187: =0+ZADANIOWY!K1578 -> 0 | G187: =0+ZADANIOWY!L1578 -> 4700 | H187: =0+ZADANIOWY!M1578 -> 0 | I187: =0+ZADANIOWY!N1578 -> 0 | J187: =0+ZADANIOWY!O1578 -> 0 | K187: 74605 | L187: 0 | M187: Tak | N187: Tak
C188: 4270 | D188: Zakup usług remontowych | E188: =0+ZADANIOWY!J1579 -> 240390 | F188: =0+ZADANIOWY!K1579 -> 0 | G188: =0+ZADANIOWY!L1579 -> 0 | H188: =0+ZADANIOWY!M1579 -> 0 | I188: =0+ZADANIOWY!N1579 -> 0 | J188: =0+ZADANIOWY!O1579 -> 0 | K188: 240390 | L188: 0 | M188: Tak
C189: 4300 | D189: Zakup usług pozostałych | E189: =0+ZADANIOWY!J1580+ZADANIOWY!J1597 -> 18167 | F189: =0+ZADANIOWY!K1580+ZADANIOWY!K1597 -> 0 | G189: =0+ZADANIOWY!L1580+ZADANIOWY!L1597 -> 0 | H189: =0+ZADANIOWY!M1580+ZADANIOWY!M1597 -> 0 | I189: =0+ZADANIOWY!N1580+ZADANIOWY!N1597 -> 0 | J189: =0+ZADANIOWY!O1580+ZADANIOWY!O1597 -> 0 | K189: 18167 | L189: 0 | M189: Tak
C190: 4390 | D190: Zakup usług obejmujących wykonanie ekspertyz, analiz i opinii | E190: =0+ZADANIOWY!J1581+ZADANIOWY!J1598 -> 0 | F190: =0+ZADANIOWY!K1581+ZADANIOWY!K1598 -> 0 | G190: =0+ZADANIOWY!L1581+ZADANIOWY!L1598 -> 0 | H190: =0+ZADANIOWY!M1581+ZADANIOWY!M1598 -> 0 | I190: =0+ZADANIOWY!N1581+ZADANIOWY!N1598 -> 0 | J190: =0+ZADANIOWY!O1581+ZADANIOWY!O1598 -> 0 | K190: 0 | L190: 0
C191: 4430 | D191: Różne opłaty i składki | E191: =0+ZADANIOWY!J1582+ZADANIOWY!J1599 -> 0 | F191: =0+ZADANIOWY!K1582+ZADANIOWY!K1599 -> 0 | G191: =0+ZADANIOWY!L1582+ZADANIOWY!L1599 -> 0 | H191: =0+ZADANIOWY!M1582+ZADANIOWY!M1599 -> 0 | I191: =0+ZADANIOWY!N1582+ZADANIOWY!N1599 -> 0 | J191: =0+ZADANIOWY!O1582+ZADANIOWY!O1599 -> 0 | K191: 0 | L191: 0
C192: 4480 | D192: Podatek od nieruchomości | E192: =0+ZADANIOWY!J1583 -> 0 | F192: =0+ZADANIOWY!K1583 -> 0 | G192: =0+ZADANIOWY!L1583 -> 0 | H192: =0+ZADANIOWY!M1583 -> 0 | I192: =0+ZADANIOWY!N1583 -> 0 | J192: =0+ZADANIOWY!O1583 -> 0 | K192: 0 | L192: 0
C193: 4510 | D193: Opłaty na rzecz budżetu państwa | E193: =0+ZADANIOWY!J1584 -> 2246 | F193: =0+ZADANIOWY!K1584 -> 0 | G193: =0+ZADANIOWY!L1584 -> 0 | H193: =0+ZADANIOWY!M1584 -> 0 | I193: =0+ZADANIOWY!N1584 -> 0 | J193: =0+ZADANIOWY!O1584 -> 0 | K193: 2246 | L193: 0 | M193: Tak
C194: 4520 | D194: Opłaty na rzecz budżetów jednostek samorządu terytorialnego | E194: =0+ZADANIOWY!J1585 -> 0 | F194: =0+ZADANIOWY!K1585 -> 0 | G194: =0+ZADANIOWY!L1585 -> 0 | H194: =0+ZADANIOWY!M1585 -> 0 | I194: =0+ZADANIOWY!N1585 -> 0 | J194: =0+ZADANIOWY!O1585 -> 0 | K194: 0 | L194: 0
C195: 4530 | D195: Podatek od towarów i usług (VAT) | E195: =0 -> 0 | F195: =0 -> 0 | G195: =0 -> 0 | H195: =0 -> 0 | I195: =0 -> 0 | J195: =0 -> 0 | K195: 0 | L195: 0
C196: 4590 | D196: Kary i odszkodowania wypłacane na rzecz osób fizycznych | E196: =0 -> 0 | F196: =0 -> 0 | G196: =0 -> 0 | H196: =0 -> 0 | I196: =0 -> 0 | J196: =0 -> 0 | K196: 0 | L196: 0
C197: 4600 | D197: Kary, odszkodowania i grzywny wypłacane na rzecz osób prawnych i innych jednostek organizacyjnych | E197: =0 -> 0 | F197: =0 -> 0 | G197: =0 -> 0 | H197: =0 -> 0 | I197: =0 -> 0 | J197: =0 -> 0 | K197: 0 | L197: 0
C198: 4610 | D198: Koszty postępowania sądowego i prokuratorskiego | E198: =0 -> 0 | F198: =0 -> 0 | G198: =0 -> 0 | H198: =0 -> 0 | I198: =0 -> 0 | J198: =0 -> 0 | K198: 0 | L198: 0
C199: 6050 | D199: Wydatki inwestycyjne jednostek budżetowych | K199: 0 | L199: 0
C200: 6060 | D200: Wydatki na zakupy inwestycyjne jednostek budżetowych | K200: 0 | L200: 0
B201: 40095 | D201: Pozostała działalność | E201: =SUM(E202,E211) -> 0 | F201: 0 | G201: 0 | H201: 0 | I201: 0 | J201: 0 | K201: 0 | L201: 0
... 4299 more rows

Sheet zakład budżetowy
H1: Załącznik Nr 8 do Uchwały Nr Rady Dzielnicy Śródmieście m.st. Warszawy z dnia
A3: PLAN PRZYCHODÓW I WYDATKÓW ZAKŁADU BUDŻETOWEGO NA 2024 ROK
A4: DZIELNICA - Śródmieście
A5: ZAKŁAD BUDŻETOWY - Ośrodek Sportu i Rekreacji Dzielnicy Śródmieście
A10: Lp. | C10: Wyszczególnienie | D10: § | E10: Plan na 2024 rok | F10: Zmiana | H10: Plan na 2024 rok po zmianie
F11: Zmniejszenie | G11: Zwiększenie
A13: 1 | C13: 2 | D13: 3 | E13: 4 | F13: 5 | G13: 6 | H13: 7
A14: A | C14: STAN ŚRODKÓW OBROTOWYCH NETTO NA POCZĄTEK ROKU, W TYM: | E14: 21104 | H14: =E14+G14 -> 21104
A15: I | C15: Należności | H15: =E15+G15 -> 0
A16: II | C16: Zobowiązania | H16: =E16+G16 -> 0
A17: B | C17: PRZYCHODY OGÓŁEM | E17: =E18+E26+E27 -> 11894750 | F17: =F18 -> 1920000 | G17: =G18+G26+G27 -> 46955 | H17: =E17-F17+G17 -> 10021705
A18: I | C18: Przychody | E18: =E19+E24 -> 11894750 | F18: =F19+F24 -> 1920000 | G18: =G19+G24 -> 46955 | H18: =H19+H24 -> 10021705
B19: 1 | C19: własne | E19: =SUM(E20:E23) -> 7815000 | F19: =SUM(F20:F23) -> 1920000 | G19: =SUM(G20:G23) -> 0 | H19: =SUM(H20:H23) -> 5895000
C20: dochody z najmu i dzierżawy składników majątkowych | D20: 0750 | E20: 200000 | F20: 85000 | H20: =E20-F20+G20 -> 115000
C21: wpływy z usług | D21: 0830 | E21: 7600000 | F21: 1825000 | H21: =E21-F21+G21 -> 5775000
C22: pozostałe odsetki | D22: 0920 | E22: 5000 | F22: 4000 | H22: =E22-F22+G22 -> 1000
C23: pozostałe wplywy | D23: 0970 | E23: 10000 | F23: 6000 | H23: =E23-F23+G23 -> 4000
B24: 2 | C24: dotacje | E24: =E25 -> 4079750 | F24: =SUM(F25:F25) -> 0 | G24: =SUM(G25:G25) -> 46955 | H24: =SUM(H25:H25) -> 4126705
C25: dotacja przedmiotowa z budżetu otrzymana przez zakład budżetowy | D25: 2650 | E25: 4079750 | G25: 46955 | H25: =E25-F25+G25 -> 4126705
A26: II | C26: Pokrycie amortyzacji
A27: III | C27: Inne zwiększenia | E27: 0 | H27: =E27+G27 -> 0
A28: C | C28: SUMA [A + B] | E28: =E14+E17 -> 11915854 | F28: =F14+F17 -> 1920000 | G28: =G14+G17 -> 46955 | H28: =H14+H17 -> 10042809
A29: D | C29: KOSZTY I INNE OBCIĄŻENIA | E29: =E30+E61 -> 11894750 | F29: =F30+F61 -> 1964600 | G29: =G30+G61 -> 91555 | H29: =E29-F29+G29 -> 10021705
A30: I | C30: Bieżące | E30: =E31+E59+E38 -> 11850150 | F30: =F31+F59+F60+F38 -> 1920000 | G30: =G31+G59+G60+G38 -> 91555 | H30: =E30-F30+G30 -> 10021705
B31: 1 | C31: wynagrodzenia i pochodne | E31: =SUM(E32:E37) -> 7549500 | F31: =SUM(F32:F37) -> 1249000 | G31: =G32+G33+G34+G35+G36+G37 -> 0 | H31: =E31-F31+G31 -> 6300500
C32: wynagrodzenia osobowe pracowników | D32: 4010 | E32: 5874500 | F32: 1024000 | H32: =E32+G32-F32 -> 4850500
C33: dodatkowe wynagrodzenie roczne | D33: 4040 | E33: 397000 | F33: 20000 | H33: 377000
C34: składki na ubezpieczenia społeczne | D34: 4110 | E34: 1028000 | F34: 158000 | H34: 870000
C35: składki na Fundusz Pracy | D35: 4120 | E35: 140000 | F35: 26000 | H35: 114000
C36: wynagrodzenia bezosobowe | D36: 4170 | E36: 70000 | H36: 70000
C37: wpłaty na PPK finansowane przez podmiot zatrudniający | D37: 4710 | E37: 40000 | F37: 21000 | H37: 19000
B38: 2 | C38: wydatki rzeczowe | E38: =SUM(E39:E58) -> 4300650 | F38: =SUM(F39:F58) -> 671000 | G38: =SUM(G39:G58) -> 91555 | H38: =SUM(H39:H58) -> 3736205
C39: wydatki osobowe nie zaliczane do wynagrodzeń | D39: 3020 | E39: 20000 | H39: =E39-F39+G39 -> 20000
C40: wpłaty na Państwowy Fundusz Niepełnosprawnych | D40: 4140 | E40: 25000 | F40: 15000 | H40: =E40+G40 -> 25000
C41: nagrody konkursowe | D41: 4190 | E41: 10000 | H41: =E41-F41+G41 -> 10000
C42: zakup materiałów i wyposażenia | D42: 4210 | E42: 287850 | G42: 37350 | H42: =E42-F42+G42 -> 325200
C43: zakup środków żywności | D43: 4220 | E43: 0 | H43: 0
C44: zakup energii | D44: 4260 | E44: 1745000 | F44: 351100 | H44: 1393900
C45: zakup usług remontowych | D45: 4270 | E45: 430400 | F45: 120000 | H45: 310400
C46: zakup usług zdrowotnych | D46: 4280 | E46: 30000 | F46: 15000 | H46: 15000
C47: zakup usług pozostałych | D47: 4300 | E47: 1116900 | F47: 43900 | G47: 46955 | H47: 1119955
C48: opłaty z tyt. zakupu usł. Telekomunikacyjnych | D48: 4360 | E48: 10000 | F48: 1000 | H48: 9000
C49: zakup usług obejmujących wykonanie ekspertyz, analiz i opinii | D49: 4390 | E49: 30000 | G49: 7250 | H49: 37250
C50: podróże służbowe krajowe | D50: 4410 | E50: 15000 | H50: 15000
C51: różne opłaty i składki | D51: 4430 | E51: 50000 | F51: 20000 | H51: 30000
C52: odpis na ZFŚS | D52: 4440 | E52: 162000 | H52: 162000
C53: podatek od nieruchomości | D53: 4480 | E53: 0 | H53: 0
C54: opłaty na rzecz budżetów jednostek samorządu terytorialnego | D54: 4520 | E54: 0 | H54: 0
C55: podatek od towarów i usług (VAT) | D55: 4530 | E55: 357500 | F55: 100000 | H55: 257500
C56: koszty komornicze i sądowe | D56: 4610 | E56: 1000 | H56: =E56-F56+G56 -> 1000
C57: szkolenie pracowników niebędących członkami korpusu służby cywilnej | D57: 4700 | E57: 10000 | F57: 5000 | H57: =E57-F57+G57 -> 5000
C58: składki na Fundusz Emerytur Pomostowych | D58: 4780 | E58: 0 | H58: 0
B59: 3 | C59: Odpisy amortyzacji | H59: =E59+G59 -> 0
B60: 4 | C60: Inne zmniejszenia | H60: 0
A61: II | C61: Inwestycyjne | E61: =SUM(E62:E63) -> 44600 | F61: =SUM(F62:F63) -> 44600 | G61: =SUM(G62:G63) -> 0 | H61: =SUM(H62:H63) -> 0
C62: wydatki inwestycyjne samorządowych zakładów budżetowych | D62: 6070 | E62: 24600 | F62: 24600 | H62: =E62-F62+G62 -> 0
C63: zakupy inwestycyjne | D63: 6080 | E63: 20000 | F63: 20000 | G63: 0 | H63: =E63-F63+G63 -> 0
A64: E | C64: PODATEK DOCHODOWY OD OSÓB PRAWNYCH | H64: 0
A65: F | C65: WPŁATA DO BUDŻETU NADWYŻKI ŚRODKÓW OBROTOWYCH | H65: 0
A66: G | C66: STAN ŚRODKÓW OBROTOWYCH NETTO NA KONIEC ROKU, W TYM: | E66: 21104 | H66: =E66+G66 -> 21104
A67: I | C67: Należności | H67: 0
A68: II | C68: Zobowiązania | H68: 0
A69: H | C69: SUMA [D + E + F + G] | E69: =E31+E38+E61+E66 -> 11915854 | F69: =F29+F64+F65+F66 -> 1964600 | G69: =G29+G64+G65+G66 -> 91555 | H69: =H31+H38+H61+H66 -> 10057809
